﻿Department Family,Entity,Date,Expense Type,Expense Area,Supplier,Transaction Number,Amount,Item Description
BEIS,UKRI - AHRC,03/10/2022,Corporate Events,International Partnership and Engagement,Calder Conference Ltd,99811725,5760.00,Corporate Events
BEIS,UKRI - AHRC,04/10/2022,Research Grant Expenditure,Cross Council Responsive Mode Awards,UKRI - Economic & Social Research Council,99811467,58525.36,Research Grant Expenditure
BEIS,UKRI - AHRC,04/10/2022,Fees (Including College Members),Operations,Unspecified,99814275,230.00,Fees (Including College Members)
BEIS,UKRI - AHRC,04/10/2022,Fees (Including College Members),Operations,Unspecified,99814276,170.00,Fees (Including College Members)
BEIS,UKRI - AHRC,04/10/2022,Fees (Including College Members),Operations,Unspecified,99814277,170.00,Fees (Including College Members)
BEIS,UKRI - AHRC,04/10/2022,Fees (Including College Members),Operations,Unspecified,99814278,170.00,Fees (Including College Members)
BEIS,UKRI - AHRC,04/10/2022,Fees (Including College Members),Operations,Unspecified,99814279,170.00,Fees (Including College Members)
BEIS,UKRI - AHRC,04/10/2022,Fees (Including College Members),Operations,Unspecified,99814280,170.00,Fees (Including College Members)
BEIS,UKRI - AHRC,04/10/2022,Fees (Including College Members),Operations,Unspecified,99814281,170.00,Fees (Including College Members)
BEIS,UKRI - AHRC,04/10/2022,Fees (Including College Members),Operations,Unspecified,99814282,170.00,Fees (Including College Members)
BEIS,UKRI - AHRC,05/10/2022,Fees (Including College Members),Health and Environmental Humanities,Unspecified,99814665,80.00,Fees (Including College Members)
BEIS,UKRI - AHRC,07/10/2022,Corporate Events,AI&Design,Calder Conference Ltd,99811722,3643.40,Corporate Events
BEIS,UKRI - AHRC,07/10/2022,Conferences & Seminars,SMT,Beyond Conference Ltd,99813909,120000.00,Conferences & Seminars
BEIS,UKRI - AHRC,10/10/2022,Research Grant Expenditure,Artificial Intelligence,The Nuffield Foundation,99817661,147000.00,Research Grant Expenditure
BEIS,UKRI - AHRC,10/10/2022,T&S UK - Other Charges,Skills Strategy,Unspecified,99818991,22.28,T&S UK - Other Charges
BEIS,UKRI - AHRC,10/10/2022,Health & Safety (inc. Medicals & Opticians),Skills Strategy,Unspecified,99818992,74.00,Health & Safety (inc. Medicals & Opticians)
BEIS,UKRI - AHRC,11/10/2022,Fellowships,Public Policy,UKRI - Economic & Social Research Council,99810253,13442.62,Fellowships
BEIS,UKRI - AHRC,11/10/2022,T&S UK - Public Transport,Operations,Unspecified,99811308,2.50,T&S UK - Public Transport
BEIS,UKRI - AHRC,11/10/2022,T&S UK - Subsistence,Operations,Unspecified,99811308,12.94,T&S UK - Subsistence
BEIS,UKRI - AHRC,11/10/2022,T&S Overseas - Flights,Infrastruture Roadmap,Corporate Travel Management (North) Ltd,99818583,2.50,T&S Overseas - Flights
BEIS,UKRI - AHRC,11/10/2022,T&S Overseas - Flights,Infrastruture Roadmap,Corporate Travel Management (North) Ltd,99818583,270.42,T&S Overseas - Flights
BEIS,UKRI - AHRC,11/10/2022,T&S Overseas - Flights,Operations,Corporate Travel Management (North) Ltd,99818583,2.50,T&S Overseas - Flights
BEIS,UKRI - AHRC,11/10/2022,T&S Overseas - Flights,Operations,Corporate Travel Management (North) Ltd,99818583,232.12,T&S Overseas - Flights
BEIS,UKRI - AHRC,11/10/2022,T&S UK - Accommodation,AI&Design,Corporate Travel Management (North) Ltd,99818583,0.80,T&S UK - Accommodation
BEIS,UKRI - AHRC,11/10/2022,T&S UK - Accommodation,AI&Design,Corporate Travel Management (North) Ltd,99818583,218.50,T&S UK - Accommodation
BEIS,UKRI - AHRC,11/10/2022,T&S UK - Accommodation,AI&Design,Corporate Travel Management (North) Ltd,99818583,0.16,T&S UK - Accommodation
BEIS,UKRI - AHRC,11/10/2022,T&S UK - Accommodation,Board and Committee,Corporate Travel Management (North) Ltd,99818583,2.00,T&S UK - Accommodation
BEIS,UKRI - AHRC,11/10/2022,T&S UK - Accommodation,Board and Committee,Corporate Travel Management (North) Ltd,99818583,2.00,T&S UK - Accommodation
BEIS,UKRI - AHRC,11/10/2022,T&S UK - Accommodation,Board and Committee,Corporate Travel Management (North) Ltd,99818583,2.00,T&S UK - Accommodation
BEIS,UKRI - AHRC,11/10/2022,T&S UK - Accommodation,Board and Committee,Corporate Travel Management (North) Ltd,99818583,2.00,T&S UK - Accommodation
BEIS,UKRI - AHRC,11/10/2022,T&S UK - Accommodation,Board and Committee,Corporate Travel Management (North) Ltd,99818583,2.00,T&S UK - Accommodation
BEIS,UKRI - AHRC,11/10/2022,T&S UK - Accommodation,Board and Committee,Corporate Travel Management (North) Ltd,99818583,2.00,T&S UK - Accommodation
BEIS,UKRI - AHRC,11/10/2022,T&S UK - Accommodation,Board and Committee,Corporate Travel Management (North) Ltd,99818583,2.00,T&S UK - Accommodation
BEIS,UKRI - AHRC,11/10/2022,T&S UK - Accommodation,Board and Committee,Corporate Travel Management (North) Ltd,99818583,2.00,T&S UK - Accommodation
BEIS,UKRI - AHRC,11/10/2022,T&S UK - Accommodation,Board and Committee,Corporate Travel Management (North) Ltd,99818583,3.20,T&S UK - Accommodation
BEIS,UKRI - AHRC,11/10/2022,T&S UK - Accommodation,Executive Office,Corporate Travel Management (North) Ltd,99818583,0.80,T&S UK - Accommodation
BEIS,UKRI - AHRC,11/10/2022,T&S UK - Accommodation,Executive Office,Corporate Travel Management (North) Ltd,99818583,75.00,T&S UK - Accommodation
BEIS,UKRI - AHRC,11/10/2022,T&S UK - Accommodation,Executive Office,Corporate Travel Management (North) Ltd,99818583,0.16,T&S UK - Accommodation
BEIS,UKRI - AHRC,11/10/2022,T&S UK - Accommodation,HERA JRP Project,Corporate Travel Management (North) Ltd,99818583,0.80,T&S UK - Accommodation
BEIS,UKRI - AHRC,11/10/2022,T&S UK - Accommodation,HERA JRP Project,Corporate Travel Management (North) Ltd,99818583,72.00,T&S UK - Accommodation
BEIS,UKRI - AHRC,11/10/2022,T&S UK - Accommodation,HERA JRP Project,Corporate Travel Management (North) Ltd,99818583,0.16,T&S UK - Accommodation
BEIS,UKRI - AHRC,11/10/2022,T&S UK - Accommodation,Infrastruture Roadmap,Corporate Travel Management (North) Ltd,99818583,0.80,T&S UK - Accommodation
BEIS,UKRI - AHRC,11/10/2022,T&S UK - Accommodation,Infrastruture Roadmap,Corporate Travel Management (North) Ltd,99818583,165.00,T&S UK - Accommodation
BEIS,UKRI - AHRC,11/10/2022,T&S UK - Accommodation,Infrastruture Roadmap,Corporate Travel Management (North) Ltd,99818583,0.80,T&S UK - Accommodation
BEIS,UKRI - AHRC,11/10/2022,T&S UK - Accommodation,Infrastruture Roadmap,Corporate Travel Management (North) Ltd,99818583,99.00,T&S UK - Accommodation
BEIS,UKRI - AHRC,11/10/2022,T&S UK - Accommodation,Infrastruture Roadmap,Corporate Travel Management (North) Ltd,99818583,0.80,T&S UK - Accommodation
BEIS,UKRI - AHRC,11/10/2022,T&S UK - Accommodation,Infrastruture Roadmap,Corporate Travel Management (North) Ltd,99818583,76.22,T&S UK - Accommodation
BEIS,UKRI - AHRC,11/10/2022,T&S UK - Accommodation,Infrastruture Roadmap,Corporate Travel Management (North) Ltd,99818583,0.80,T&S UK - Accommodation
BEIS,UKRI - AHRC,11/10/2022,T&S UK - Accommodation,Infrastruture Roadmap,Corporate Travel Management (North) Ltd,99818583,158.00,T&S UK - Accommodation
BEIS,UKRI - AHRC,11/10/2022,T&S UK - Accommodation,Infrastruture Roadmap,Corporate Travel Management (North) Ltd,99818583,0.64,T&S UK - Accommodation
BEIS,UKRI - AHRC,11/10/2022,T&S UK - Accommodation,International Partnership and Engagement,Corporate Travel Management (North) Ltd,99818583,0.80,T&S UK - Accommodation
BEIS,UKRI - AHRC,11/10/2022,T&S UK - Accommodation,International Partnership and Engagement,Corporate Travel Management (North) Ltd,99818583,72.00,T&S UK - Accommodation
BEIS,UKRI - AHRC,11/10/2022,T&S UK - Accommodation,International Partnership and Engagement,Corporate Travel Management (North) Ltd,99818583,0.80,T&S UK - Accommodation
BEIS,UKRI - AHRC,11/10/2022,T&S UK - Accommodation,International Partnership and Engagement,Corporate Travel Management (North) Ltd,99818583,158.00,T&S UK - Accommodation
BEIS,UKRI - AHRC,11/10/2022,T&S UK - Accommodation,International Partnership and Engagement,Corporate Travel Management (North) Ltd,99818583,0.32,T&S UK - Accommodation
BEIS,UKRI - AHRC,11/10/2022,T&S UK - Accommodation,SMT,Corporate Travel Management (North) Ltd,99818583,0.80,T&S UK - Accommodation
BEIS,UKRI - AHRC,11/10/2022,T&S UK - Accommodation,SMT,Corporate Travel Management (North) Ltd,99818583,0.80,T&S UK - Accommodation
BEIS,UKRI - AHRC,11/10/2022,T&S UK - Accommodation,SMT,Corporate Travel Management (North) Ltd,99818583,0.80,T&S UK - Accommodation
BEIS,UKRI - AHRC,11/10/2022,T&S UK - Accommodation,SMT,Corporate Travel Management (North) Ltd,99818583,65.00,T&S UK - Accommodation
BEIS,UKRI - AHRC,11/10/2022,T&S UK - Accommodation,SMT,Corporate Travel Management (North) Ltd,99818583,0.48,T&S UK - Accommodation
BEIS,UKRI - AHRC,11/10/2022,T&S UK - Public Transport,AHRC - Creative Industries,Corporate Travel Management (North) Ltd,99818583,0.50,T&S UK - Public Transport
BEIS,UKRI - AHRC,11/10/2022,T&S UK - Public Transport,AHRC - Creative Industries,Corporate Travel Management (North) Ltd,99818583,155.40,T&S UK - Public Transport
BEIS,UKRI - AHRC,11/10/2022,T&S UK - Public Transport,AHRC - Creative Industries,Corporate Travel Management (North) Ltd,99818583,0.25,T&S UK - Public Transport
BEIS,UKRI - AHRC,11/10/2022,T&S UK - Public Transport,AHRC - Creative Industries,Corporate Travel Management (North) Ltd,99818583,54.80,T&S UK - Public Transport
BEIS,UKRI - AHRC,11/10/2022,T&S UK - Public Transport,AHRC - Creative Industries,Corporate Travel Management (North) Ltd,99818583,0.25,T&S UK - Public Transport
BEIS,UKRI - AHRC,11/10/2022,T&S UK - Public Transport,AHRC - Creative Industries,Corporate Travel Management (North) Ltd,99818583,41.80,T&S UK - Public Transport
BEIS,UKRI - AHRC,11/10/2022,T&S UK - Public Transport,AI&Design,Corporate Travel Management (North) Ltd,99818583,0.25,T&S UK - Public Transport
BEIS,UKRI - AHRC,11/10/2022,T&S UK - Public Transport,AI&Design,Corporate Travel Management (North) Ltd,99818583,133.20,T&S UK - Public Transport
BEIS,UKRI - AHRC,11/10/2022,T&S UK - Public Transport,AI&Design,Corporate Travel Management (North) Ltd,99818583,2.60,T&S UK - Public Transport
BEIS,UKRI - AHRC,11/10/2022,T&S UK - Public Transport,AI&Design,Corporate Travel Management (North) Ltd,99818583,83.80,T&S UK - Public Transport
BEIS,UKRI - AHRC,11/10/2022,T&S UK - Public Transport,Executive Office,Corporate Travel Management (North) Ltd,99818583,0.25,T&S UK - Public Transport
BEIS,UKRI - AHRC,11/10/2022,T&S UK - Public Transport,Executive Office,Corporate Travel Management (North) Ltd,99818583,151.20,T&S UK - Public Transport
BEIS,UKRI - AHRC,11/10/2022,T&S UK - Public Transport,Executive Office,Corporate Travel Management (North) Ltd,99818583,0.25,T&S UK - Public Transport
BEIS,UKRI - AHRC,11/10/2022,T&S UK - Public Transport,Executive Office,Corporate Travel Management (North) Ltd,99818583,151.20,T&S UK - Public Transport
BEIS,UKRI - AHRC,11/10/2022,T&S UK - Public Transport,Health and Environmental Humanities,Corporate Travel Management (North) Ltd,99818583,0.25,T&S UK - Public Transport
BEIS,UKRI - AHRC,11/10/2022,T&S UK - Public Transport,Health and Environmental Humanities,Corporate Travel Management (North) Ltd,99818583,151.20,T&S UK - Public Transport
BEIS,UKRI - AHRC,11/10/2022,T&S UK - Public Transport,Health and Environmental Humanities,Corporate Travel Management (North) Ltd,99818583,0.25,T&S UK - Public Transport
BEIS,UKRI - AHRC,11/10/2022,T&S UK - Public Transport,Health and Environmental Humanities,Corporate Travel Management (North) Ltd,99818583,74.00,T&S UK - Public Transport
BEIS,UKRI - AHRC,11/10/2022,T&S UK - Public Transport,Health and Environmental Humanities,Corporate Travel Management (North) Ltd,99818583,0.25,T&S UK - Public Transport
BEIS,UKRI - AHRC,11/10/2022,T&S UK - Public Transport,Health and Environmental Humanities,Corporate Travel Management (North) Ltd,99818583,57.20,T&S UK - Public Transport
BEIS,UKRI - AHRC,11/10/2022,T&S UK - Public Transport,Infrastruture Roadmap,Corporate Travel Management (North) Ltd,99818583,0.25,T&S UK - Public Transport
BEIS,UKRI - AHRC,11/10/2022,T&S UK - Public Transport,Infrastruture Roadmap,Corporate Travel Management (North) Ltd,99818583,98.60,T&S UK - Public Transport
BEIS,UKRI - AHRC,11/10/2022,T&S UK - Public Transport,Infrastruture Roadmap,Corporate Travel Management (North) Ltd,99818583,0.25,T&S UK - Public Transport
BEIS,UKRI - AHRC,11/10/2022,T&S UK - Public Transport,Infrastruture Roadmap,Corporate Travel Management (North) Ltd,99818583,354.90,T&S UK - Public Transport
BEIS,UKRI - AHRC,11/10/2022,T&S UK - Public Transport,Infrastruture Roadmap,Corporate Travel Management (North) Ltd,99818583,0.25,T&S UK - Public Transport
BEIS,UKRI - AHRC,11/10/2022,T&S UK - Public Transport,Infrastruture Roadmap,Corporate Travel Management (North) Ltd,99818583,17.50,T&S UK - Public Transport
BEIS,UKRI - AHRC,11/10/2022,T&S UK - Public Transport,Infrastruture Roadmap,Corporate Travel Management (North) Ltd,99818583,0.25,T&S UK - Public Transport
BEIS,UKRI - AHRC,11/10/2022,T&S UK - Public Transport,Infrastruture Roadmap,Corporate Travel Management (North) Ltd,99818583,186.00,T&S UK - Public Transport
BEIS,UKRI - AHRC,11/10/2022,T&S UK - Public Transport,Infrastruture Roadmap,Corporate Travel Management (North) Ltd,99818583,0.25,T&S UK - Public Transport
BEIS,UKRI - AHRC,11/10/2022,T&S UK - Public Transport,Infrastruture Roadmap,Corporate Travel Management (North) Ltd,99818583,171.80,T&S UK - Public Transport
BEIS,UKRI - AHRC,11/10/2022,T&S UK - Public Transport,Infrastruture Roadmap,Corporate Travel Management (North) Ltd,99818583,0.25,T&S UK - Public Transport
BEIS,UKRI - AHRC,11/10/2022,T&S UK - Public Transport,Infrastruture Roadmap,Corporate Travel Management (North) Ltd,99818583,183.90,T&S UK - Public Transport
BEIS,UKRI - AHRC,11/10/2022,T&S UK - Public Transport,Infrastruture Roadmap,Corporate Travel Management (North) Ltd,99818583,0.25,T&S UK - Public Transport
BEIS,UKRI - AHRC,11/10/2022,T&S UK - Public Transport,Infrastruture Roadmap,Corporate Travel Management (North) Ltd,99818583,158.70,T&S UK - Public Transport
BEIS,UKRI - AHRC,11/10/2022,T&S UK - Public Transport,Infrastruture Roadmap,Corporate Travel Management (North) Ltd,99818583,0.25,T&S UK - Public Transport
BEIS,UKRI - AHRC,11/10/2022,T&S UK - Public Transport,Infrastruture Roadmap,Corporate Travel Management (North) Ltd,99818583,73.00,T&S UK - Public Transport
BEIS,UKRI - AHRC,11/10/2022,T&S UK - Public Transport,Infrastruture Roadmap,Corporate Travel Management (North) Ltd,99818583,0.25,T&S UK - Public Transport
BEIS,UKRI - AHRC,11/10/2022,T&S UK - Public Transport,Infrastruture Roadmap,Corporate Travel Management (North) Ltd,99818583,77.70,T&S UK - Public Transport
BEIS,UKRI - AHRC,11/10/2022,T&S UK - Public Transport,Infrastruture Roadmap,Corporate Travel Management (North) Ltd,99818583,0.50,T&S UK - Public Transport
BEIS,UKRI - AHRC,11/10/2022,T&S UK - Public Transport,Infrastruture Roadmap,Corporate Travel Management (North) Ltd,99818583,62.70,T&S UK - Public Transport
BEIS,UKRI - AHRC,11/10/2022,T&S UK - Public Transport,Infrastruture Roadmap,Corporate Travel Management (North) Ltd,99818583,62.70,T&S UK - Public Transport
BEIS,UKRI - AHRC,11/10/2022,T&S UK - Public Transport,Infrastruture Roadmap,Corporate Travel Management (North) Ltd,99818583,0.25,T&S UK - Public Transport
BEIS,UKRI - AHRC,11/10/2022,T&S UK - Public Transport,Infrastruture Roadmap,Corporate Travel Management (North) Ltd,99818583,414.00,T&S UK - Public Transport
BEIS,UKRI - AHRC,11/10/2022,T&S UK - Public Transport,Infrastruture Roadmap,Corporate Travel Management (North) Ltd,99818583,0.75,T&S UK - Public Transport
BEIS,UKRI - AHRC,11/10/2022,T&S UK - Public Transport,Infrastruture Roadmap,Corporate Travel Management (North) Ltd,99818583,106.00,T&S UK - Public Transport
BEIS,UKRI - AHRC,11/10/2022,T&S UK - Public Transport,Infrastruture Roadmap,Corporate Travel Management (North) Ltd,99818583,270.60,T&S UK - Public Transport
BEIS,UKRI - AHRC,11/10/2022,T&S UK - Public Transport,Infrastruture Roadmap,Corporate Travel Management (North) Ltd,99818583,50.20,T&S UK - Public Transport
BEIS,UKRI - AHRC,11/10/2022,T&S UK - Public Transport,Infrastruture Roadmap,Corporate Travel Management (North) Ltd,99818583,0.25,T&S UK - Public Transport
BEIS,UKRI - AHRC,11/10/2022,T&S UK - Public Transport,Infrastruture Roadmap,Corporate Travel Management (North) Ltd,99818583,7.80,T&S UK - Public Transport
BEIS,UKRI - AHRC,11/10/2022,T&S UK - Public Transport,Infrastruture Roadmap,Corporate Travel Management (North) Ltd,99818583,0.25,T&S UK - Public Transport
BEIS,UKRI - AHRC,11/10/2022,T&S UK - Public Transport,Infrastruture Roadmap,Corporate Travel Management (North) Ltd,99818583,180.00,T&S UK - Public Transport
BEIS,UKRI - AHRC,11/10/2022,T&S UK - Public Transport,International Partnership and Engagement,Corporate Travel Management (North) Ltd,99818583,0.25,T&S UK - Public Transport
BEIS,UKRI - AHRC,11/10/2022,T&S UK - Public Transport,International Partnership and Engagement,Corporate Travel Management (North) Ltd,99818583,48.80,T&S UK - Public Transport
BEIS,UKRI - AHRC,11/10/2022,T&S UK - Public Transport,Operations,Corporate Travel Management (North) Ltd,99818583,0.25,T&S UK - Public Transport
BEIS,UKRI - AHRC,11/10/2022,T&S UK - Public Transport,Operations,Corporate Travel Management (North) Ltd,99818583,71.30,T&S UK - Public Transport
BEIS,UKRI - AHRC,11/10/2022,T&S UK - Public Transport,Operations,Corporate Travel Management (North) Ltd,99818583,0.25,T&S UK - Public Transport
BEIS,UKRI - AHRC,11/10/2022,T&S UK - Public Transport,Operations,Corporate Travel Management (North) Ltd,99818583,71.30,T&S UK - Public Transport
BEIS,UKRI - AHRC,11/10/2022,T&S UK - Public Transport,Programme Management Office,Corporate Travel Management (North) Ltd,99818583,0.25,T&S UK - Public Transport
BEIS,UKRI - AHRC,11/10/2022,T&S UK - Public Transport,Programme Management Office,Corporate Travel Management (North) Ltd,99818583,158.70,T&S UK - Public Transport
BEIS,UKRI - AHRC,11/10/2022,T&S UK - Public Transport,Programme Management Office,Corporate Travel Management (North) Ltd,99818583,0.25,T&S UK - Public Transport
BEIS,UKRI - AHRC,11/10/2022,T&S UK - Public Transport,Programme Management Office,Corporate Travel Management (North) Ltd,99818583,60.20,T&S UK - Public Transport
BEIS,UKRI - AHRC,11/10/2022,T&S UK - Public Transport,SMT,Corporate Travel Management (North) Ltd,99818583,0.25,T&S UK - Public Transport
BEIS,UKRI - AHRC,11/10/2022,T&S UK - Public Transport,SMT,Corporate Travel Management (North) Ltd,99818583,73.00,T&S UK - Public Transport
BEIS,UKRI - AHRC,11/10/2022,T&S UK - Public Transport,SMT,Corporate Travel Management (North) Ltd,99818583,0.25,T&S UK - Public Transport
BEIS,UKRI - AHRC,11/10/2022,T&S UK - Public Transport,SMT,Corporate Travel Management (North) Ltd,99818583,151.20,T&S UK - Public Transport
BEIS,UKRI - AHRC,11/10/2022,T&S UK - Public Transport,SMT,Corporate Travel Management (North) Ltd,99818583,0.25,T&S UK - Public Transport
BEIS,UKRI - AHRC,11/10/2022,T&S UK - Public Transport,SMT,Corporate Travel Management (North) Ltd,99818583,158.70,T&S UK - Public Transport
BEIS,UKRI - AHRC,11/10/2022,T&S UK - Public Transport,SMT,Corporate Travel Management (North) Ltd,99818583,2.50,T&S UK - Public Transport
BEIS,UKRI - AHRC,11/10/2022,T&S UK - Public Transport,SMT,Corporate Travel Management (North) Ltd,99818583,34.36,T&S UK - Public Transport
BEIS,UKRI - AHRC,11/10/2022,T&S UK - Public Transport,SMT,Corporate Travel Management (North) Ltd,99818583,0.25,T&S UK - Public Transport
BEIS,UKRI - AHRC,11/10/2022,T&S UK - Public Transport,SMT,Corporate Travel Management (North) Ltd,99818583,16.20,T&S UK - Public Transport
BEIS,UKRI - AHRC,11/10/2022,T&S UK - Public Transport,SMT,Corporate Travel Management (North) Ltd,99818583,0.50,T&S UK - Public Transport
BEIS,UKRI - AHRC,11/10/2022,T&S UK - Public Transport,SMT,Corporate Travel Management (North) Ltd,99818583,28.90,T&S UK - Public Transport
BEIS,UKRI - AHRC,11/10/2022,T&S UK - Public Transport,SMT,Corporate Travel Management (North) Ltd,99818583,135.40,T&S UK - Public Transport
BEIS,UKRI - AHRC,11/10/2022,T&S UK - Public Transport,SMT,Corporate Travel Management (North) Ltd,99818583,2.50,T&S UK - Public Transport
BEIS,UKRI - AHRC,11/10/2022,T&S UK - Public Transport,SMT,Corporate Travel Management (North) Ltd,99818583,20.62,T&S UK - Public Transport
BEIS,UKRI - AHRC,11/10/2022,T&S UK - Public Transport,SMT,Corporate Travel Management (North) Ltd,99818583,5.00,T&S UK - Public Transport
BEIS,UKRI - AHRC,11/10/2022,T&S UK - Public Transport,SMT,Corporate Travel Management (North) Ltd,99818583,-239.80,T&S UK - Public Transport
BEIS,UKRI - AHRC,11/10/2022,T&S UK - Public Transport,SMT,Corporate Travel Management (North) Ltd,99818583,0.25,T&S UK - Public Transport
BEIS,UKRI - AHRC,11/10/2022,T&S UK - Public Transport,SMT,Corporate Travel Management (North) Ltd,99818583,25.90,T&S UK - Public Transport
BEIS,UKRI - AHRC,11/10/2022,T&S UK - Public Transport,SMT,Corporate Travel Management (North) Ltd,99818583,0.25,T&S UK - Public Transport
BEIS,UKRI - AHRC,11/10/2022,T&S UK - Public Transport,SMT,Corporate Travel Management (North) Ltd,99818583,146.30,T&S UK - Public Transport
BEIS,UKRI - AHRC,11/10/2022,T&S UK - Public Transport,SMT,Corporate Travel Management (North) Ltd,99818583,0.25,T&S UK - Public Transport
BEIS,UKRI - AHRC,11/10/2022,T&S UK - Public Transport,SMT,Corporate Travel Management (North) Ltd,99818583,292.60,T&S UK - Public Transport
BEIS,UKRI - AHRC,11/10/2022,T&S UK - Public Transport,SMT,Corporate Travel Management (North) Ltd,99818583,5.00,T&S UK - Public Transport
BEIS,UKRI - AHRC,11/10/2022,T&S UK - Public Transport,SMT,Corporate Travel Management (North) Ltd,99818583,14.22,T&S UK - Public Transport
BEIS,UKRI - AHRC,11/10/2022,T&S UK - Public Transport,SMT,Corporate Travel Management (North) Ltd,99818583,9.30,T&S UK - Public Transport
BEIS,UKRI - AHRC,11/10/2022,T&S UK - Public Transport,SMT,Corporate Travel Management (North) Ltd,99818583,2.50,T&S UK - Public Transport
BEIS,UKRI - AHRC,11/10/2022,T&S UK - Public Transport,SMT,Corporate Travel Management (North) Ltd,99818583,13.72,T&S UK - Public Transport
BEIS,UKRI - AHRC,11/10/2022,T&S UK - Public Transport,SMT,Corporate Travel Management (North) Ltd,99818583,0.25,T&S UK - Public Transport
BEIS,UKRI - AHRC,11/10/2022,T&S UK - Public Transport,SMT,Corporate Travel Management (North) Ltd,99818583,57.20,T&S UK - Public Transport
BEIS,UKRI - AHRC,11/10/2022,T&S UK - Public Transport,SMT,Corporate Travel Management (North) Ltd,99818583,0.25,T&S UK - Public Transport
BEIS,UKRI - AHRC,11/10/2022,T&S UK - Public Transport,SMT,Corporate Travel Management (North) Ltd,99818583,57.20,T&S UK - Public Transport
BEIS,UKRI - AHRC,11/10/2022,T&S UK - Public Transport,SMT,Corporate Travel Management (North) Ltd,99818583,0.25,T&S UK - Public Transport
BEIS,UKRI - AHRC,11/10/2022,T&S UK - Public Transport,SMT,Corporate Travel Management (North) Ltd,99818583,55.00,T&S UK - Public Transport
BEIS,UKRI - AHRC,11/10/2022,T&S UK - Public Transport,SMT,Corporate Travel Management (North) Ltd,99818583,0.25,T&S UK - Public Transport
BEIS,UKRI - AHRC,11/10/2022,T&S UK - Public Transport,SMT,Corporate Travel Management (North) Ltd,99818583,28.60,T&S UK - Public Transport
BEIS,UKRI - AHRC,11/10/2022,T&S UK - Public Transport,SMT,Corporate Travel Management (North) Ltd,99818583,0.25,T&S UK - Public Transport
BEIS,UKRI - AHRC,11/10/2022,T&S UK - Public Transport,SMT,Corporate Travel Management (North) Ltd,99818583,32.20,T&S UK - Public Transport
BEIS,UKRI - AHRC,11/10/2022,T&S UK - Public Transport,SMT,Corporate Travel Management (North) Ltd,99818583,0.50,T&S UK - Public Transport
BEIS,UKRI - AHRC,11/10/2022,T&S UK - Public Transport,SMT,Corporate Travel Management (North) Ltd,99818583,86.80,T&S UK - Public Transport
BEIS,UKRI - AHRC,11/10/2022,T&S UK - Public Transport,SMT,Corporate Travel Management (North) Ltd,99818583,16.80,T&S UK - Public Transport
BEIS,UKRI - AHRC,11/10/2022,T&S UK - Public Transport,SMT,Corporate Travel Management (North) Ltd,99818583,0.25,T&S UK - Public Transport
BEIS,UKRI - AHRC,11/10/2022,T&S UK - Public Transport,SMT,Corporate Travel Management (North) Ltd,99818583,123.30,T&S UK - Public Transport
BEIS,UKRI - AHRC,11/10/2022,T&S UK - Public Transport,SMT,Corporate Travel Management (North) Ltd,99818583,0.25,T&S UK - Public Transport
BEIS,UKRI - AHRC,11/10/2022,T&S UK - Public Transport,SMT,Corporate Travel Management (North) Ltd,99818583,12.50,T&S UK - Public Transport
BEIS,UKRI - AHRC,11/10/2022,T&S UK - Public Transport,SMT,Corporate Travel Management (North) Ltd,99818583,2.50,T&S UK - Public Transport
BEIS,UKRI - AHRC,11/10/2022,T&S UK - Public Transport,Strategy and Evidence,Corporate Travel Management (North) Ltd,99818583,0.25,T&S UK - Public Transport
BEIS,UKRI - AHRC,11/10/2022,T&S UK - Public Transport,Strategy and Evidence,Corporate Travel Management (North) Ltd,99818583,48.90,T&S UK - Public Transport
BEIS,UKRI - AHRC,12/10/2022,Unspecified,Balance Sheet,HM Revenue & Customs,99817236,66261.81,NI Payable Salaries
BEIS,UKRI - AHRC,12/10/2022,Unspecified,Balance Sheet,HM Revenue & Customs,99817237,47967.07,PAYE Payable Salaries
BEIS,UKRI - AHRC,12/10/2022,Unspecified,Balance Sheet,HM Revenue & Customs,99817238,5036.00,Student Loans
BEIS,UKRI - AHRC,12/10/2022,Unspecified,Corporate Services,HM Revenue & Customs,99817239,1667.00,Apprenticeship Levy
BEIS,UKRI - AHRC,12/10/2022,Fees (Including College Members),Public Engagement,Unspecified,99819904,115.00,Fees (Including College Members)
BEIS,UKRI - AHRC,12/10/2022,Fees (Including College Members),Health and Environmental Humanities,Unspecified,99819905,510.00,Fees (Including College Members)
BEIS,UKRI - AHRC,12/10/2022,Fees (Including College Members),Health and Environmental Humanities,Unspecified,99819906,510.00,Fees (Including College Members)
BEIS,UKRI - AHRC,12/10/2022,Fees (Including College Members),Health and Environmental Humanities,Unspecified,99819907,340.00,Fees (Including College Members)
BEIS,UKRI - AHRC,12/10/2022,Fees (Including College Members),Health and Environmental Humanities,Unspecified,99819908,510.00,Fees (Including College Members)
BEIS,UKRI - AHRC,12/10/2022,Fees (Including College Members),Health and Environmental Humanities,Unspecified,99819909,340.00,Fees (Including College Members)
BEIS,UKRI - AHRC,12/10/2022,Fees (Including College Members),Health and Environmental Humanities,Unspecified,99819910,510.00,Fees (Including College Members)
BEIS,UKRI - AHRC,12/10/2022,Fees (Including College Members),Health and Environmental Humanities,Unspecified,99819911,510.00,Fees (Including College Members)
BEIS,UKRI - AHRC,12/10/2022,Fees (Including College Members),Health and Environmental Humanities,Unspecified,99819912,510.00,Fees (Including College Members)
BEIS,UKRI - AHRC,12/10/2022,Fees (Including College Members),Health and Environmental Humanities,Unspecified,99819913,510.00,Fees (Including College Members)
BEIS,UKRI - AHRC,12/10/2022,Fees (Including College Members),Health and Environmental Humanities,Unspecified,99819914,690.00,Fees (Including College Members)
BEIS,UKRI - AHRC,12/10/2022,Fees (Including College Members),Health and Environmental Humanities,Unspecified,99819915,510.00,Fees (Including College Members)
BEIS,UKRI - AHRC,12/10/2022,Fees (Including College Members),Health and Environmental Humanities,Unspecified,99819916,510.00,Fees (Including College Members)
BEIS,UKRI - AHRC,12/10/2022,Fees (Including College Members),Health and Environmental Humanities,Unspecified,99819917,510.00,Fees (Including College Members)
BEIS,UKRI - AHRC,12/10/2022,Fees (Including College Members),Health and Environmental Humanities,Unspecified,99819918,510.00,Fees (Including College Members)
BEIS,UKRI - AHRC,12/10/2022,Fees (Including College Members),Operations,Unspecified,99819919,340.00,Fees (Including College Members)
BEIS,UKRI - AHRC,12/10/2022,Fees (Including College Members),Operations,Unspecified,99819920,340.00,Fees (Including College Members)
BEIS,UKRI - AHRC,12/10/2022,Fees (Including College Members),Operations,Unspecified,99819921,340.00,Fees (Including College Members)
BEIS,UKRI - AHRC,12/10/2022,Fees (Including College Members),Operations,Unspecified,99819922,170.00,Fees (Including College Members)
BEIS,UKRI - AHRC,12/10/2022,Fees (Including College Members),Operations,Unspecified,99819923,340.00,Fees (Including College Members)
BEIS,UKRI - AHRC,12/10/2022,Fees (Including College Members),Operations,Unspecified,99819924,340.00,Fees (Including College Members)
BEIS,UKRI - AHRC,12/10/2022,Fees (Including College Members),Operations,Unspecified,99819925,460.00,Fees (Including College Members)
BEIS,UKRI - AHRC,12/10/2022,Fees (Including College Members),Operations,Unspecified,99819926,340.00,Fees (Including College Members)
BEIS,UKRI - AHRC,12/10/2022,Fees (Including College Members),Operations,Unspecified,99819927,340.00,Fees (Including College Members)
BEIS,UKRI - AHRC,12/10/2022,Fees (Including College Members),Operations,Unspecified,99819928,170.00,Fees (Including College Members)
BEIS,UKRI - AHRC,13/10/2022,Unspecified,Industrial Strategy Challenge Fund (ISCF) - Creative Clusters,FRONTIER ECONOMICS LTD,99565733,30000.00,Legal & Professional Services
BEIS,UKRI - AHRC,13/10/2022,Catering Contracts,SMT,Calder Conference Ltd,99807900,1504.38,Catering Contracts
BEIS,UKRI - AHRC,13/10/2022,Voluntary Deductions,Balance Sheet,Swindon Office Sports and Social Club,99817240,32.00,Voluntary Deductions
BEIS,UKRI - AHRC,13/10/2022,Union Deductions,Balance Sheet,PCS Union,99817241,58.67,Union Deductions
BEIS,UKRI - AHRC,13/10/2022,Unspecified,Balance Sheet,Unspecified,99817242,8459.14,Ees Pension Deductions - JSS
BEIS,UKRI - AHRC,13/10/2022,Unspecified,Balance Sheet,Unspecified,99817243,36849.06,Ers Pension Deductions - JSS
BEIS,UKRI - AHRC,13/10/2022,Unspecified,Balance Sheet,Scottish Widows,99817244,193.37,Partnership Pension Deductions
BEIS,UKRI - AHRC,13/10/2022,Unspecified,Balance Sheet,Cabinet Office RM Shared Services,99817245,11197.30,Ees Pension Deductions - MyCSP
BEIS,UKRI - AHRC,13/10/2022,Unspecified,Balance Sheet,Cabinet Office RM Shared Services,99817246,50871.38,Ers Pension Deductions - MyCSP
BEIS,UKRI - AHRC,13/10/2022,Unspecified,Balance Sheet,Unspecified,99817247,266.17,Ees Pension Deductions - MRC
BEIS,UKRI - AHRC,13/10/2022,Unspecified,Balance Sheet,Unspecified,99817248,655.20,Ers Pension Deductions - MRC
BEIS,UKRI - AHRC,13/10/2022,Nursery Deductions,Balance Sheet,UKRI - Engineering & Physical Sciences Research Council,99817249,1256.00,Nursery Deductions
BEIS,UKRI - AHRC,13/10/2022,T&S UK - Other Charges,Operations,Unspecified,99821135,25.00,T&S UK - Other Charges
BEIS,UKRI - AHRC,13/10/2022,T&S UK - Subsistence,Executive Office,Unspecified,99821136,4.10,T&S UK - Subsistence
BEIS,UKRI - AHRC,13/10/2022,T&S UK - Subsistence,Executive Office,Unspecified,99821136,14.95,T&S UK - Subsistence
BEIS,UKRI - AHRC,13/10/2022,T&S UK - Public Transport,AI&Design,Unspecified,99821137,70.59,T&S UK - Public Transport
BEIS,UKRI - AHRC,13/10/2022,Health & Safety (inc. Medicals & Opticians),International Partnership and Engagement,Unspecified,99821138,17.00,Health & Safety (inc. Medicals & Opticians)
BEIS,UKRI - AHRC,13/10/2022,T&S UK - Subsistence,International Partnership and Engagement,Unspecified,99821138,25.00,T&S UK - Subsistence
BEIS,UKRI - AHRC,13/10/2022,T&S UK - Subsistence,International Partnership and Engagement,Unspecified,99821138,16.88,T&S UK - Subsistence
BEIS,UKRI - AHRC,14/10/2022,T&S UK - Public Transport,SMT,Unspecified,99816105,15.72,T&S UK - Public Transport
BEIS,UKRI - AHRC,14/10/2022,T&S UK - Subsistence,SMT,Unspecified,99816105,60.73,T&S UK - Subsistence
BEIS,UKRI - AHRC,14/10/2022,T&S UK - Subsistence,SMT,Unspecified,99816105,13.03,T&S UK - Subsistence
BEIS,UKRI - AHRC,14/10/2022,Fees (Including College Members),Operations,Unspecified,99821179,170.00,Fees (Including College Members)
BEIS,UKRI - AHRC,14/10/2022,Fees (Including College Members),Operations,Unspecified,99821180,170.00,Fees (Including College Members)
BEIS,UKRI - AHRC,14/10/2022,Fees (Including College Members),Operations,Unspecified,99821181,170.00,Fees (Including College Members)
BEIS,UKRI - AHRC,14/10/2022,Fees (Including College Members),Operations,Unspecified,99821182,170.00,Fees (Including College Members)
BEIS,UKRI - AHRC,14/10/2022,Fees (Including College Members),Operations,Unspecified,99821183,170.00,Fees (Including College Members)
BEIS,UKRI - AHRC,14/10/2022,Fees (Including College Members),Operations,Unspecified,99821184,170.00,Fees (Including College Members)
BEIS,UKRI - AHRC,14/10/2022,Fees (Including College Members),Operations,Unspecified,99821185,170.00,Fees (Including College Members)
BEIS,UKRI - AHRC,14/10/2022,Fees (Including College Members),Operations,Unspecified,99821186,340.00,Fees (Including College Members)
BEIS,UKRI - AHRC,14/10/2022,Fees (Including College Members),SPF- Modern Slavery and Human Rights,Unspecified,99821187,340.00,Fees (Including College Members)
BEIS,UKRI - AHRC,14/10/2022,T&S UK - Subsistence,SMT,Unspecified,99821393,31.65,T&S UK - Subsistence
BEIS,UKRI - AHRC,17/10/2022,Fees (Including College Members),Operations,Unspecified,99822091,170.00,Fees (Including College Members)
BEIS,UKRI - AHRC,17/10/2022,Fees (Including College Members),Public Engagement,Unspecified,99822092,85.00,Fees (Including College Members)
BEIS,UKRI - AHRC,17/10/2022,Fees (Including College Members),Public Engagement,Unspecified,99822093,85.00,Fees (Including College Members)
BEIS,UKRI - AHRC,17/10/2022,Fees (Including College Members),Operations,Unspecified,99822094,170.00,Fees (Including College Members)
BEIS,UKRI - AHRC,17/10/2022,Fees (Including College Members),Operations,Unspecified,99822095,170.00,Fees (Including College Members)
BEIS,UKRI - AHRC,17/10/2022,Health & Safety (inc. Medicals & Opticians),"History, Heritage, Languages and Literature",Unspecified,99822438,16.99,Health & Safety (inc. Medicals & Opticians)
BEIS,UKRI - AHRC,18/10/2022,Training Awards - Postgraduates,Collabrative Doctoral Grants - Block Payment,University of the Highlands and Islands,99818272,5427.00,Training Awards - Postgraduates
BEIS,UKRI - AHRC,18/10/2022,Training Awards - Postgraduates,Collabrative Doctoral Grants - Block Payment,University of Edinburgh,99818273,5427.00,Training Awards - Postgraduates
BEIS,UKRI - AHRC,18/10/2022,Training Awards - Postgraduates,Collabrative Doctoral Grants - Block Payment,University of Oxford,99818274,5427.00,Training Awards - Postgraduates
BEIS,UKRI - AHRC,18/10/2022,Training Awards - Postgraduates,Collabrative Doctoral Grants - Block Payment,Teesside University,99818275,5838.29,Training Awards - Postgraduates
BEIS,UKRI - AHRC,18/10/2022,Training Awards - Postgraduates,Collabrative Doctoral Grants - Block Payment,University of Edinburgh,99818276,5427.00,Training Awards - Postgraduates
BEIS,UKRI - AHRC,18/10/2022,Training Awards - Postgraduates,International Placement Scheme,University of Newcastle Upon Tyne,99818277,6250.00,Training Awards - Postgraduates
BEIS,UKRI - AHRC,18/10/2022,Training Awards - Postgraduates,Collabrative Doctoral Grants - Block Payment,University of Sussex,99818278,6048.01,Training Awards - Postgraduates
BEIS,UKRI - AHRC,18/10/2022,Training Awards - Postgraduates,Collabrative Doctoral Grants - Block Payment,University of Southampton GRANT,99818279,6048.01,Training Awards - Postgraduates
BEIS,UKRI - AHRC,18/10/2022,Training Awards - Postgraduates,Collabrative Doctoral Grants - Block Payment,University of Cambridge,99818280,6048.01,Training Awards - Postgraduates
BEIS,UKRI - AHRC,18/10/2022,Training Awards - Postgraduates,Collabrative Doctoral Grants - Block Payment,Bournemouth University,99818281,5646.50,Training Awards - Postgraduates
BEIS,UKRI - AHRC,18/10/2022,Training Awards - Postgraduates,Collabrative Doctoral Grants - Block Payment,Bournemouth University,99818282,5539.75,Training Awards - Postgraduates
BEIS,UKRI - AHRC,18/10/2022,Training Awards - Postgraduates,Collabrative Doctoral Grants - Block Payment,Birkbeck College,99818283,6298.01,Training Awards - Postgraduates
BEIS,UKRI - AHRC,18/10/2022,Training Awards - Postgraduates,Collabrative Doctoral Grants - Block Payment,King's College London,99818284,6297.49,Training Awards - Postgraduates
BEIS,UKRI - AHRC,18/10/2022,Training Awards - Postgraduates,Collabrative Doctoral Grants - Block Payment,University of Warwick,99818285,6048.01,Training Awards - Postgraduates
BEIS,UKRI - AHRC,18/10/2022,Training Awards - Postgraduates,Collabrative Doctoral Grants - Block Payment,University of York,99818286,5798.01,Training Awards - Postgraduates
BEIS,UKRI - AHRC,18/10/2022,Training Awards - Postgraduates,Collabrative Doctoral Grants - Block Payment,University of Oxford,99818287,6048.01,Training Awards - Postgraduates
BEIS,UKRI - AHRC,18/10/2022,Training Awards - Postgraduates,Collabrative Doctoral Grants - Block Payment,Birkbeck College,99818288,6298.01,Training Awards - Postgraduates
BEIS,UKRI - AHRC,18/10/2022,Training Awards - Postgraduates,Collabrative Doctoral Grants - Block Payment,University of Leicester,99818289,5646.50,Training Awards - Postgraduates
BEIS,UKRI - AHRC,18/10/2022,Training Awards - Postgraduates,Collabrative Doctoral Grants - Block Payment,University of Durham,99818290,6048.01,Training Awards - Postgraduates
BEIS,UKRI - AHRC,18/10/2022,Training Awards - Postgraduates,Collabrative Doctoral Grants - Block Payment,University of Edinburgh,99818291,5798.01,Training Awards - Postgraduates
BEIS,UKRI - AHRC,18/10/2022,Training Awards - Postgraduates,Collabrative Doctoral Grants - Block Payment,University College London,99818292,6298.01,Training Awards - Postgraduates
BEIS,UKRI - AHRC,18/10/2022,Training Awards - Postgraduates,Collabrative Doctoral Grants - Block Payment,Birkbeck College,99818293,6298.01,Training Awards - Postgraduates
BEIS,UKRI - AHRC,18/10/2022,Training Awards - Postgraduates,Collabrative Doctoral Grants - Block Payment,University of Southampton GRANT,99818294,5941.26,Training Awards - Postgraduates
BEIS,UKRI - AHRC,18/10/2022,Training Awards - Postgraduates,Collabrative Doctoral Grants - Block Payment,University of Leeds,99818295,5539.75,Training Awards - Postgraduates
BEIS,UKRI - AHRC,18/10/2022,Training Awards - Postgraduates,Collabrative Doctoral Grants - Block Payment,University of Leeds,99818295,6048.01,Training Awards - Postgraduates
BEIS,UKRI - AHRC,18/10/2022,Training Awards - Postgraduates,Collabrative Doctoral Grants - Block Payment,University College London,99818296,6298.01,Training Awards - Postgraduates
BEIS,UKRI - AHRC,18/10/2022,Training Awards - Postgraduates,Collabrative Doctoral Grants - Block Payment,University College London,99818297,6298.01,Training Awards - Postgraduates
BEIS,UKRI - AHRC,18/10/2022,Training Awards - Postgraduates,Collabrative Doctoral Grants - Block Payment,University of Edinburgh,99818298,5798.01,Training Awards - Postgraduates
BEIS,UKRI - AHRC,18/10/2022,Training Awards - Postgraduates,Collabrative Doctoral Grants - Block Payment,Courtauld Institute of Art,99818299,5896.50,Training Awards - Postgraduates
BEIS,UKRI - AHRC,18/10/2022,Training Awards - Postgraduates,Collabrative Doctoral Grants - Block Payment,University of Southampton GRANT,99818300,6048.01,Training Awards - Postgraduates
BEIS,UKRI - AHRC,18/10/2022,Training Awards - Postgraduates,Collabrative Doctoral Grants - Block Payment,University of Leeds,99818301,5289.75,Training Awards - Postgraduates
BEIS,UKRI - AHRC,18/10/2022,Training Awards - Postgraduates,Collabrative Doctoral Grants - Block Payment,University of Leeds,99818301,5798.01,Training Awards - Postgraduates
BEIS,UKRI - AHRC,18/10/2022,Training Awards - Postgraduates,Collabrative Doctoral Grants - Block Payment,University of Exeter,99818302,6048.01,Training Awards - Postgraduates
BEIS,UKRI - AHRC,18/10/2022,Training Awards - Postgraduates,Collabrative Doctoral Grants - Block Payment,University of Exeter,99818303,6048.01,Training Awards - Postgraduates
BEIS,UKRI - AHRC,18/10/2022,Training Awards - Postgraduates,Collabrative Doctoral Grants - Block Payment,University of Newcastle Upon Tyne,99818304,6048.01,Training Awards - Postgraduates
BEIS,UKRI - AHRC,18/10/2022,Training Awards - Postgraduates,Collabrative Doctoral Grants - Block Payment,"Royal Holloway, University of London",99818305,6298.01,Training Awards - Postgraduates
BEIS,UKRI - AHRC,18/10/2022,Training Awards - Postgraduates,Collabrative Doctoral Grants - Block Payment,University of Hull,99818306,6048.01,Training Awards - Postgraduates
BEIS,UKRI - AHRC,18/10/2022,Training Awards - Postgraduates,Collabrative Doctoral Grants - Block Payment,University of Exeter,99818307,5798.01,Training Awards - Postgraduates
BEIS,UKRI - AHRC,18/10/2022,Training Awards - Postgraduates,Collabrative Doctoral Grants - Block Payment,University of Essex,99818308,6048.01,Training Awards - Postgraduates
BEIS,UKRI - AHRC,18/10/2022,Training Awards - Postgraduates,Collabrative Doctoral Grants - Block Payment,Edge Hill University College,99818309,5646.50,Training Awards - Postgraduates
BEIS,UKRI - AHRC,18/10/2022,Training Awards - Postgraduates,Collabrative Doctoral Grants - Block Payment,Royal Northern College of Music,99818310,5646.50,Training Awards - Postgraduates
BEIS,UKRI - AHRC,18/10/2022,Training Awards - Postgraduates,Collabrative Doctoral Grants - Block Payment,University of Liverpool,99818311,5941.26,Training Awards - Postgraduates
BEIS,UKRI - AHRC,18/10/2022,Training Awards - Postgraduates,Collabrative Doctoral Grants - Block Payment,University of East Anglia,99818312,6048.01,Training Awards - Postgraduates
BEIS,UKRI - AHRC,18/10/2022,Training Awards - Postgraduates,Collabrative Doctoral Grants - Block Payment,University of Edinburgh,99818313,5145.45,Training Awards - Postgraduates
BEIS,UKRI - AHRC,18/10/2022,Training Awards - Postgraduates,Collabrative Doctoral Grants - Block Payment,University of Edinburgh,99818313,5145.45,Training Awards - Postgraduates
BEIS,UKRI - AHRC,18/10/2022,Training Awards - Postgraduates,Collabrative Doctoral Grants - Block Payment,University of Edinburgh,99818313,5145.45,Training Awards - Postgraduates
BEIS,UKRI - AHRC,18/10/2022,Training Awards - Postgraduates,Collabrative Doctoral Grants - Block Payment,University of Edinburgh,99818314,5798.01,Training Awards - Postgraduates
BEIS,UKRI - AHRC,18/10/2022,Training Awards - Postgraduates,Collabrative Doctoral Grants - Block Payment,University of Leeds,99818315,5706.81,Training Awards - Postgraduates
BEIS,UKRI - AHRC,18/10/2022,Training Awards - Postgraduates,Collabrative Doctoral Grants - Block Payment,University of Leeds,99818315,6108.32,Training Awards - Postgraduates
BEIS,UKRI - AHRC,18/10/2022,Training Awards - Postgraduates,Collabrative Doctoral Grants - Block Payment,University of Brighton,99818316,5798.01,Training Awards - Postgraduates
BEIS,UKRI - AHRC,18/10/2022,Training Awards - Postgraduates,Collabrative Doctoral Grants - Block Payment,The University of Manchester,99818317,6048.01,Training Awards - Postgraduates
BEIS,UKRI - AHRC,18/10/2022,Training Awards - Postgraduates,Collabrative Doctoral Grants - Block Payment,University of York,99818318,6030.51,Training Awards - Postgraduates
BEIS,UKRI - AHRC,18/10/2022,Training Awards - Postgraduates,Collabrative Doctoral Grants - Block Payment,Cardiff University,99818319,5682.51,Training Awards - Postgraduates
BEIS,UKRI - AHRC,18/10/2022,Training Awards - Postgraduates,Collabrative Doctoral Grants - Block Payment,University of Sheffield,99818320,6030.51,Training Awards - Postgraduates
BEIS,UKRI - AHRC,18/10/2022,Training Awards - Postgraduates,Collabrative Doctoral Grants - Block Payment,Heriot Watt University,99818321,5281.00,Training Awards - Postgraduates
BEIS,UKRI - AHRC,18/10/2022,Training Awards - Postgraduates,Collabrative Doctoral Grants - Block Payment,University of Durham,99818322,5932.51,Training Awards - Postgraduates
BEIS,UKRI - AHRC,18/10/2022,Training Awards - Postgraduates,Collabrative Doctoral Grants - Block Payment,University of East Anglia,99818323,5780.51,Training Awards - Postgraduates
BEIS,UKRI - AHRC,18/10/2022,Training Awards - Postgraduates,Collabrative Doctoral Grants - Block Payment,University of East Anglia,99818324,6030.51,Training Awards - Postgraduates
BEIS,UKRI - AHRC,18/10/2022,Training Awards - Postgraduates,Collabrative Doctoral Grants - Block Payment,University of Reading,99818325,5682.51,Training Awards - Postgraduates
BEIS,UKRI - AHRC,18/10/2022,Training Awards - Postgraduates,Collabrative Doctoral Grants - Block Payment,University of Bristol GRANT,99818326,5932.51,Training Awards - Postgraduates
BEIS,UKRI - AHRC,18/10/2022,Training Awards - Postgraduates,Collabrative Doctoral Grants - Block Payment,Birkbeck College,99818327,6280.51,Training Awards - Postgraduates
BEIS,UKRI - AHRC,18/10/2022,Training Awards - Postgraduates,Collabrative Doctoral Grants - Block Payment,University of Lincoln,99818328,6030.51,Training Awards - Postgraduates
BEIS,UKRI - AHRC,18/10/2022,Training Awards - Postgraduates,Collabrative Doctoral Grants - Block Payment,"Royal Holloway, University of London",99818329,6280.51,Training Awards - Postgraduates
BEIS,UKRI - AHRC,18/10/2022,Training Awards - Postgraduates,Collabrative Doctoral Grants - Block Payment,University of Cambridge,99818330,6030.51,Training Awards - Postgraduates
BEIS,UKRI - AHRC,18/10/2022,Training Awards - Postgraduates,Collabrative Doctoral Grants - Block Payment,University of Sheffield,99818331,5682.51,Training Awards - Postgraduates
BEIS,UKRI - AHRC,18/10/2022,Training Awards - Postgraduates,Collabrative Doctoral Grants - Block Payment,University of Cambridge,99818332,6030.51,Training Awards - Postgraduates
BEIS,UKRI - AHRC,18/10/2022,Training Awards - Postgraduates,Collabrative Doctoral Grants - Block Payment,Queen Mary University of London,99818333,5879.00,Training Awards - Postgraduates
BEIS,UKRI - AHRC,18/10/2022,Training Awards - Postgraduates,Collabrative Doctoral Grants - Block Payment,Birkbeck College,99818334,6280.51,Training Awards - Postgraduates
BEIS,UKRI - AHRC,18/10/2022,Training Awards - Postgraduates,Collabrative Doctoral Grants - Block Payment,University of Reading,99818335,6030.51,Training Awards - Postgraduates
BEIS,UKRI - AHRC,18/10/2022,Training Awards - Postgraduates,Collabrative Doctoral Grants - Block Payment,Birkbeck College,99818336,6182.51,Training Awards - Postgraduates
BEIS,UKRI - AHRC,18/10/2022,Training Awards - Postgraduates,Collabrative Doctoral Grants - Block Payment,University of Bath,99818337,5780.51,Training Awards - Postgraduates
BEIS,UKRI - AHRC,18/10/2022,Training Awards - Postgraduates,Collabrative Doctoral Grants - Block Payment,Queen Mary University of London,99818338,6182.51,Training Awards - Postgraduates
BEIS,UKRI - AHRC,18/10/2022,Training Awards - Postgraduates,Collabrative Doctoral Grants - Block Payment,University of Leeds,99818339,5531.00,Training Awards - Postgraduates
BEIS,UKRI - AHRC,18/10/2022,Training Awards - Postgraduates,Collabrative Doctoral Grants - Block Payment,University of Leeds,99818339,6030.51,Training Awards - Postgraduates
BEIS,UKRI - AHRC,18/10/2022,Training Awards - Postgraduates,Collabrative Doctoral Grants - Block Payment,University of Durham,99818340,6030.51,Training Awards - Postgraduates
BEIS,UKRI - AHRC,18/10/2022,Training Awards - Postgraduates,Collabrative Doctoral Grants - Block Payment,Manchester Metropolitan University,99818341,5682.51,Training Awards - Postgraduates
BEIS,UKRI - AHRC,18/10/2022,Training Awards - Postgraduates,Collabrative Doctoral Grants - Block Payment,Birkbeck College,99818342,6280.51,Training Awards - Postgraduates
BEIS,UKRI - AHRC,18/10/2022,Training Awards - Postgraduates,Collabrative Doctoral Grants - Block Payment,Birkbeck College,99818343,6182.51,Training Awards - Postgraduates
BEIS,UKRI - AHRC,18/10/2022,Training Awards - Postgraduates,Collabrative Doctoral Grants - Block Payment,University of London,99818344,6280.51,Training Awards - Postgraduates
BEIS,UKRI - AHRC,18/10/2022,Training Awards - Postgraduates,Collabrative Doctoral Grants - Block Payment,University of London,99818345,6280.51,Training Awards - Postgraduates
BEIS,UKRI - AHRC,18/10/2022,Training Awards - Postgraduates,Collabrative Doctoral Grants - Block Payment,University of Portsmouth,99818346,5629.00,Training Awards - Postgraduates
BEIS,UKRI - AHRC,18/10/2022,Training Awards - Postgraduates,Collabrative Doctoral Grants - Block Payment,Northumbria University,99818347,5780.51,Training Awards - Postgraduates
BEIS,UKRI - AHRC,18/10/2022,Training Awards - Postgraduates,Collabrative Doctoral Grants - Block Payment,University of Winchester,99818348,5629.00,Training Awards - Postgraduates
BEIS,UKRI - AHRC,18/10/2022,Training Awards - Postgraduates,Collabrative Doctoral Grants - Block Payment,Birkbeck College,99818349,6280.51,Training Awards - Postgraduates
BEIS,UKRI - AHRC,18/10/2022,Training Awards - Postgraduates,Collabrative Doctoral Grants - Block Payment,Cardiff University,99818350,6030.51,Training Awards - Postgraduates
BEIS,UKRI - AHRC,18/10/2022,Training Awards - Postgraduates,Collabrative Doctoral Grants - Block Payment,Manchester Metropolitan University,99818351,6030.51,Training Awards - Postgraduates
BEIS,UKRI - AHRC,18/10/2022,Training Awards - Postgraduates,Collabrative Doctoral Grants - Block Payment,University of Reading,99818352,6030.51,Training Awards - Postgraduates
BEIS,UKRI - AHRC,18/10/2022,Training Awards - Postgraduates,Collabrative Doctoral Grants - Block Payment,Northumbria University,99818353,5932.51,Training Awards - Postgraduates
BEIS,UKRI - AHRC,18/10/2022,Training Awards - Postgraduates,Collabrative Doctoral Grants - Block Payment,London School of Economics and Political Science,99818354,5879.00,Training Awards - Postgraduates
BEIS,UKRI - AHRC,18/10/2022,Training Awards - Postgraduates,Collabrative Doctoral Grants - Block Payment,University of Exeter,99818355,10436.63,Training Awards - Postgraduates
BEIS,UKRI - AHRC,18/10/2022,Training Awards - Postgraduates,Collabrative Doctoral Grants - Block Payment,University of Warwick,99818356,5780.51,Training Awards - Postgraduates
BEIS,UKRI - AHRC,18/10/2022,Training Awards - Postgraduates,Collabrative Doctoral Grants - Block Payment,Canterbury Christ Church University GRANT,99818357,6030.51,Training Awards - Postgraduates
BEIS,UKRI - AHRC,18/10/2022,Training Awards - Postgraduates,Collabrative Doctoral Grants - Block Payment,University College London,99818358,6280.51,Training Awards - Postgraduates
BEIS,UKRI - AHRC,18/10/2022,Training Awards - Postgraduates,Collabrative Doctoral Grants - Block Payment,University of Glasgow,99818359,5780.51,Training Awards - Postgraduates
BEIS,UKRI - AHRC,18/10/2022,Training Awards - Postgraduates,Collabrative Doctoral Grants - Block Payment,University of York,99818360,6030.51,Training Awards - Postgraduates
BEIS,UKRI - AHRC,18/10/2022,Training Awards - Postgraduates,Collabrative Doctoral Grants - Block Payment,University of Exeter,99818361,6030.51,Training Awards - Postgraduates
BEIS,UKRI - AHRC,18/10/2022,Training Awards - Postgraduates,Collabrative Doctoral Grants - Block Payment,University of Edinburgh,99818362,5780.51,Training Awards - Postgraduates
BEIS,UKRI - AHRC,18/10/2022,Training Awards - Postgraduates,Collabrative Doctoral Grants - Block Payment,University of Glasgow,99818363,5780.51,Training Awards - Postgraduates
BEIS,UKRI - AHRC,18/10/2022,Training Awards - Postgraduates,Collabrative Doctoral Grants - Block Payment,University of Edinburgh,99818364,5780.51,Training Awards - Postgraduates
BEIS,UKRI - AHRC,18/10/2022,Training Awards - Postgraduates,International Placement Scheme,University of Leeds,99818365,4935.00,Training Awards - Postgraduates
BEIS,UKRI - AHRC,18/10/2022,Training Awards - Postgraduates,Collabrative Doctoral Grants - Block Payment,"Royal Holloway, University of London",99818366,6280.51,Training Awards - Postgraduates
BEIS,UKRI - AHRC,18/10/2022,Training Awards - Postgraduates,Collabrative Doctoral Grants - Block Payment,University of Brighton,99818367,5588.76,Training Awards - Postgraduates
BEIS,UKRI - AHRC,18/10/2022,Training Awards - Postgraduates,Collabrative Doctoral Grants - Block Payment,Cardiff University,99818368,4889.06,Training Awards - Postgraduates
BEIS,UKRI - AHRC,18/10/2022,Training Awards - Postgraduates,Collabrative Doctoral Grants - Block Payment,University College London,99818369,3541.13,Training Awards - Postgraduates
BEIS,UKRI - AHRC,18/10/2022,Training Awards - Postgraduates,Collabrative Doctoral Grants - Block Payment,University of Leicester,99818370,2639.68,Training Awards - Postgraduates
BEIS,UKRI - AHRC,18/10/2022,Training Awards - Postgraduates,Collabrative Doctoral Grants - Block Payment,University of Leeds,99818371,5187.25,Training Awards - Postgraduates
BEIS,UKRI - AHRC,18/10/2022,Training Awards - Postgraduates,Collabrative Doctoral Grants - Block Payment,University of Leeds,99818371,2911.10,Training Awards - Postgraduates
BEIS,UKRI - AHRC,18/10/2022,Training Awards - Postgraduates,Collabrative Doctoral Grants - Block Payment,Birkbeck College,99818372,3541.13,Training Awards - Postgraduates
BEIS,UKRI - AHRC,18/10/2022,Training Awards - Postgraduates,Collabrative Doctoral Grants - Block Payment,University of Hertfordshire,99818373,4889.06,Training Awards - Postgraduates
BEIS,UKRI - AHRC,18/10/2022,Training Awards - Postgraduates,Collabrative Doctoral Grants - Block Payment,Goldsmiths College University of London,99818374,3541.13,Training Awards - Postgraduates
BEIS,UKRI - AHRC,18/10/2022,Training Awards - Postgraduates,Collabrative Doctoral Grants - Block Payment,University of Brighton,99818375,3041.19,Training Awards - Postgraduates
BEIS,UKRI - AHRC,18/10/2022,Training Awards - Postgraduates,Collabrative Doctoral Grants - Block Payment,The Open University,99818376,3041.19,Training Awards - Postgraduates
BEIS,UKRI - AHRC,18/10/2022,Training Awards - Postgraduates,Collabrative Doctoral Grants - Block Payment,University of Bristol GRANT,99818377,3023.53,Training Awards - Postgraduates
BEIS,UKRI - AHRC,18/10/2022,Training Awards - Postgraduates,Collabrative Doctoral Grants - Block Payment,University of Bristol GRANT,99818378,2871.35,Training Awards - Postgraduates
BEIS,UKRI - AHRC,18/10/2022,Training Awards - Postgraduates,Collabrative Doctoral Grants - Block Payment,University of Oxford,99818379,3041.19,Training Awards - Postgraduates
BEIS,UKRI - AHRC,18/10/2022,Training Awards - Postgraduates,Collabrative Doctoral Grants - Block Payment,De Montfort University,99818380,4622.01,Training Awards - Postgraduates
BEIS,UKRI - AHRC,18/10/2022,Training Awards - Postgraduates,Collabrative Doctoral Grants - Block Payment,University of Kent,99818381,2842.43,Training Awards - Postgraduates
BEIS,UKRI - AHRC,18/10/2022,Training Awards - Postgraduates,Collabrative Doctoral Grants - Block Payment,University of East Anglia,99818382,5588.76,Training Awards - Postgraduates
BEIS,UKRI - AHRC,18/10/2022,Training Awards - Postgraduates,Collabrative Doctoral Grants - Block Payment,University of East Anglia,99818383,2911.10,Training Awards - Postgraduates
BEIS,UKRI - AHRC,18/10/2022,Training Awards - Postgraduates,Collabrative Doctoral Grants - Block Payment,University of East Anglia,99818384,2911.10,Training Awards - Postgraduates
BEIS,UKRI - AHRC,18/10/2022,Training Awards - Postgraduates,Collabrative Doctoral Grants - Block Payment,University of Edinburgh,99818385,3041.19,Training Awards - Postgraduates
BEIS,UKRI - AHRC,18/10/2022,Training Awards - Postgraduates,Collabrative Doctoral Grants - Block Payment,University of Southampton GRANT,99818386,2639.68,Training Awards - Postgraduates
BEIS,UKRI - AHRC,18/10/2022,Training Awards - Postgraduates,Collabrative Doctoral Grants - Block Payment,University of London,99818387,3541.13,Training Awards - Postgraduates
BEIS,UKRI - AHRC,18/10/2022,Training Awards - Postgraduates,Collabrative Doctoral Grants - Block Payment,University of Nottingham,99818388,2972.93,Training Awards - Postgraduates
BEIS,UKRI - AHRC,18/10/2022,Training Awards - Postgraduates,Collabrative Doctoral Grants - Block Payment,University of Brighton,99818389,3041.19,Training Awards - Postgraduates
BEIS,UKRI - AHRC,18/10/2022,Training Awards - Postgraduates,Collabrative Doctoral Grants - Block Payment,Imperial College London,99818390,3541.13,Training Awards - Postgraduates
BEIS,UKRI - AHRC,18/10/2022,Training Awards - Postgraduates,Collabrative Doctoral Grants - Block Payment,Sheffield Hallam University,99818391,3041.19,Training Awards - Postgraduates
BEIS,UKRI - AHRC,18/10/2022,Training Awards - Postgraduates,Collabrative Doctoral Grants - Block Payment,University of Glasgow,99818392,3041.19,Training Awards - Postgraduates
BEIS,UKRI - AHRC,18/10/2022,Training Awards - Postgraduates,Collabrative Doctoral Grants - Block Payment,University College London,99818393,3139.62,Training Awards - Postgraduates
BEIS,UKRI - AHRC,18/10/2022,Training Awards - Postgraduates,Collabrative Doctoral Grants - Block Payment,University of Leeds,99818394,5187.25,Training Awards - Postgraduates
BEIS,UKRI - AHRC,18/10/2022,Training Awards - Postgraduates,Collabrative Doctoral Grants - Block Payment,University of Leeds,99818394,2639.68,Training Awards - Postgraduates
BEIS,UKRI - AHRC,18/10/2022,Training Awards - Postgraduates,Collabrative Doctoral Grants - Block Payment,King's College London,99818395,3541.13,Training Awards - Postgraduates
BEIS,UKRI - AHRC,18/10/2022,Training Awards - Postgraduates,Collabrative Doctoral Grants - Block Payment,King's College London,99818396,3139.62,Training Awards - Postgraduates
BEIS,UKRI - AHRC,18/10/2022,Training Awards - Postgraduates,Collabrative Doctoral Grants - Block Payment,University of Edinburgh,99818397,3041.19,Training Awards - Postgraduates
BEIS,UKRI - AHRC,18/10/2022,Training Awards - Postgraduates,Collabrative Doctoral Grants - Block Payment,University of Leeds,99818398,5187.25,Training Awards - Postgraduates
BEIS,UKRI - AHRC,18/10/2022,Training Awards - Postgraduates,Collabrative Doctoral Grants - Block Payment,University of Leeds,99818398,3041.19,Training Awards - Postgraduates
BEIS,UKRI - AHRC,18/10/2022,Training Awards - Postgraduates,Collabrative Doctoral Grants - Block Payment,University of York,99818399,3041.19,Training Awards - Postgraduates
BEIS,UKRI - AHRC,18/10/2022,Training Awards - Postgraduates,Collabrative Doctoral Grants - Block Payment,University of Durham,99818400,3041.19,Training Awards - Postgraduates
BEIS,UKRI - AHRC,18/10/2022,Training Awards - Postgraduates,Collabrative Doctoral Grants - Block Payment,University College London,99818401,5389.04,Training Awards - Postgraduates
BEIS,UKRI - AHRC,18/10/2022,Training Awards - Postgraduates,Collabrative Doctoral Grants - Block Payment,University of the Arts London,99818402,3541.13,Training Awards - Postgraduates
BEIS,UKRI - AHRC,18/10/2022,Training Awards - Postgraduates,Collabrative Doctoral Grants - Block Payment,University of the Arts London,99818403,3541.13,Training Awards - Postgraduates
BEIS,UKRI - AHRC,18/10/2022,Training Awards - Postgraduates,Collabrative Doctoral Grants - Block Payment,University of Warwick,99818404,3041.19,Training Awards - Postgraduates
BEIS,UKRI - AHRC,18/10/2022,Training Awards - Postgraduates,Collabrative Doctoral Grants - Block Payment,University of Strathclyde,99818405,3041.19,Training Awards - Postgraduates
BEIS,UKRI - AHRC,18/10/2022,Training Awards - Postgraduates,Collabrative Doctoral Grants - Block Payment,Goldsmiths College University of London,99818406,6088.76,Training Awards - Postgraduates
BEIS,UKRI - AHRC,18/10/2022,Training Awards - Postgraduates,Collabrative Doctoral Grants - Block Payment,University of St Andrews,99818407,3041.19,Training Awards - Postgraduates
BEIS,UKRI - AHRC,18/10/2022,Training Awards - Postgraduates,Collabrative Doctoral Grants - Block Payment,University College London,99818408,3541.13,Training Awards - Postgraduates
BEIS,UKRI - AHRC,18/10/2022,Training Awards - Postgraduates,Collabrative Doctoral Grants - Block Payment,University College London,99818409,3541.13,Training Awards - Postgraduates
BEIS,UKRI - AHRC,18/10/2022,Training Awards - Postgraduates,Collabrative Doctoral Grants - Block Payment,University of Hull,99818410,3041.19,Training Awards - Postgraduates
BEIS,UKRI - AHRC,18/10/2022,Training Awards - Postgraduates,Collabrative Doctoral Grants - Block Payment,"City, University of London",99818411,3541.13,Training Awards - Postgraduates
BEIS,UKRI - AHRC,18/10/2022,Training Awards - Postgraduates,Collabrative Doctoral Grants - Block Payment,Glasgow Caledonian University,99818412,5416.50,Training Awards - Postgraduates
BEIS,UKRI - AHRC,18/10/2022,Training Awards - Postgraduates,Collabrative Doctoral Grants - Block Payment,University of Leicester,99818413,3041.19,Training Awards - Postgraduates
BEIS,UKRI - AHRC,18/10/2022,Training Awards - Postgraduates,Collabrative Doctoral Grants - Block Payment,University of York,99818414,3003.83,Training Awards - Postgraduates
BEIS,UKRI - AHRC,18/10/2022,Training Awards - Postgraduates,Collabrative Doctoral Grants - Block Payment,Loughborough University,99818415,3041.19,Training Awards - Postgraduates
BEIS,UKRI - AHRC,18/10/2022,Training Awards - Postgraduates,Collabrative Doctoral Grants - Block Payment,University of Edinburgh,99818416,3041.19,Training Awards - Postgraduates
BEIS,UKRI - AHRC,18/10/2022,Training Awards - Postgraduates,Industrial Strategy Challenge Fund (ISCF) - Skills,"Royal Holloway, University of London",99818417,458.31,Training Awards - Postgraduates
BEIS,UKRI - AHRC,18/10/2022,Training Awards - Postgraduates,Industrial Strategy Challenge Fund (ISCF) - Skills,The University of Manchester,99818418,401.51,Training Awards - Postgraduates
BEIS,UKRI - AHRC,18/10/2022,Training Awards - Postgraduates,Industrial Strategy Challenge Fund (ISCF) - Skills,University of Glasgow,99818419,165.42,Training Awards - Postgraduates
BEIS,UKRI - AHRC,18/10/2022,Training Awards - Postgraduates,Industrial Strategy Challenge Fund (ISCF) - Skills,University of Newcastle Upon Tyne,99818420,401.51,Training Awards - Postgraduates
BEIS,UKRI - AHRC,18/10/2022,Training Awards - Postgraduates,Collabrative Doctoral Grants - Block Payment,The British Museum,99818421,16450.00,Training Awards - Postgraduates
BEIS,UKRI - AHRC,18/10/2022,Training Awards - Postgraduates,Collabrative Doctoral Grants - Block Payment,Sheffield Hallam University,99818423,202.75,Training Awards - Postgraduates
BEIS,UKRI - AHRC,18/10/2022,Training Awards - Postgraduates,Collabrative Doctoral Grants - Block Payment,De Montfort University,99818424,401.51,Training Awards - Postgraduates
BEIS,UKRI - AHRC,18/10/2022,Training Awards - Postgraduates,Collabrative Doctoral Grants - Block Payment,Courtauld Institute of Art,99818425,401.51,Training Awards - Postgraduates
BEIS,UKRI - AHRC,18/10/2022,Training Awards - Postgraduates,Collabrative Doctoral Grants - Block Payment,University of the Arts London,99818426,401.51,Training Awards - Postgraduates
BEIS,UKRI - AHRC,18/10/2022,Training Awards - Postgraduates,Collabrative Doctoral Grants - Block Payment,University of Cambridge,99818427,401.51,Training Awards - Postgraduates
BEIS,UKRI - AHRC,18/10/2022,Training Awards - Postgraduates,Collabrative Doctoral Grants - Block Payment,University of Strathclyde,99818428,202.75,Training Awards - Postgraduates
BEIS,UKRI - AHRC,18/10/2022,Training Awards - Postgraduates,Collabrative Doctoral Grants - Block Payment,University of Kent,99818429,68.26,Training Awards - Postgraduates
BEIS,UKRI - AHRC,18/10/2022,Training Awards - Postgraduates,Collabrative Doctoral Grants - Block Payment,University College London,99818430,401.51,Training Awards - Postgraduates
BEIS,UKRI - AHRC,18/10/2022,Training Awards - Postgraduates,Collabrative Doctoral Grants - Block Payment,University of Durham,99818431,119.24,Training Awards - Postgraduates
BEIS,UKRI - AHRC,18/10/2022,Training Awards - Postgraduates,Collabrative Doctoral Grants - Block Payment,University of Leeds,99818432,2599.22,Training Awards - Postgraduates
BEIS,UKRI - AHRC,18/10/2022,Training Awards - Postgraduates,Collabrative Doctoral Grants - Block Payment,Royal College of Art,99818433,401.51,Training Awards - Postgraduates
BEIS,UKRI - AHRC,18/10/2022,Training Awards - Postgraduates,Collabrative Doctoral Grants - Block Payment,University of Glasgow,99818434,271.42,Training Awards - Postgraduates
BEIS,UKRI - AHRC,18/10/2022,Training Awards - Postgraduates,Collabrative Doctoral Grants - Block Payment,De Montfort University,99818435,401.51,Training Awards - Postgraduates
BEIS,UKRI - AHRC,18/10/2022,Training Awards - Postgraduates,Collabrative Doctoral Grants - Block Payment,University College London,99818436,322.01,Training Awards - Postgraduates
BEIS,UKRI - AHRC,18/10/2022,Training Awards - Postgraduates,Collabrative Doctoral Grants - Block Payment,"City, University of London",99818437,3206.62,Training Awards - Postgraduates
BEIS,UKRI - AHRC,18/10/2022,Training Awards - Postgraduates,Collabrative Doctoral Grants - Block Payment,Goldsmiths College University of London,99818438,401.51,Training Awards - Postgraduates
BEIS,UKRI - AHRC,18/10/2022,Training Awards - Postgraduates,Collabrative Doctoral Grants - Block Payment,University of Liverpool,99818439,271.42,Training Awards - Postgraduates
BEIS,UKRI - AHRC,18/10/2022,Training Awards - Postgraduates,Collabrative Doctoral Grants - Block Payment,University of Brighton,99818440,401.51,Training Awards - Postgraduates
BEIS,UKRI - AHRC,18/10/2022,Training Awards - Postgraduates,Collabrative Doctoral Grants - Block Payment,Northumbria University,99818441,202.75,Training Awards - Postgraduates
BEIS,UKRI - AHRC,18/10/2022,Training Awards - Postgraduates,Collabrative Doctoral Grants - Block Payment,"SOAS, University of London",99818442,401.51,Training Awards - Postgraduates
BEIS,UKRI - AHRC,18/10/2022,Training Awards - Postgraduates,Collabrative Doctoral Grants - Block Payment,University of Stirling,99818443,401.51,Training Awards - Postgraduates
BEIS,UKRI - AHRC,18/10/2022,Training Awards - Postgraduates,Collabrative Doctoral Grants - Block Payment,University of Sheffield,99818444,401.51,Training Awards - Postgraduates
BEIS,UKRI - AHRC,18/10/2022,Training Awards - Postgraduates,Collabrative Doctoral Grants - Block Payment,University of London,99818445,401.51,Training Awards - Postgraduates
BEIS,UKRI - AHRC,18/10/2022,Training Awards - Postgraduates,Collabrative Doctoral Grants - Block Payment,University of Sheffield,99818446,401.51,Training Awards - Postgraduates
BEIS,UKRI - AHRC,18/10/2022,Training Awards - Postgraduates,BGP Award,University of Sussex,99818447,914526.24,Training Awards - Postgraduates
BEIS,UKRI - AHRC,18/10/2022,Training Awards - Postgraduates,BGP Award,The University of Manchester,99818448,713723.36,Training Awards - Postgraduates
BEIS,UKRI - AHRC,18/10/2022,Training Awards - Postgraduates,BGP Award,University of Bristol GRANT,99818449,496974.72,Training Awards - Postgraduates
BEIS,UKRI - AHRC,18/10/2022,Training Awards - Postgraduates,BGP Award,"Royal Holloway, University of London",99818450,992028.85,Training Awards - Postgraduates
BEIS,UKRI - AHRC,18/10/2022,Training Awards - Postgraduates,BGP Award,University of York,99818451,787980.34,Training Awards - Postgraduates
BEIS,UKRI - AHRC,18/10/2022,Training Awards - Postgraduates,BGP Award,University of Nottingham,99818452,1166702.72,Training Awards - Postgraduates
BEIS,UKRI - AHRC,18/10/2022,Training Awards - Postgraduates,BGP Award,University of Glasgow,99818453,930023.47,Training Awards - Postgraduates
BEIS,UKRI - AHRC,18/10/2022,Training Awards - Postgraduates,BGP Award,University of Oxford,99818454,1253876.40,Training Awards - Postgraduates
BEIS,UKRI - AHRC,18/10/2022,Training Awards - Postgraduates,BGP Award,University College London,99818455,1214500.40,Training Awards - Postgraduates
BEIS,UKRI - AHRC,18/10/2022,Training Awards - Postgraduates,BGP Award,University of Newcastle Upon Tyne,99818456,936012.65,Training Awards - Postgraduates
BEIS,UKRI - AHRC,18/10/2022,Training Awards - Postgraduates,Collabrative Doctoral Grants - Block Payment,Cardiff University,99818457,401.51,Training Awards - Postgraduates
BEIS,UKRI - AHRC,18/10/2022,Training Awards - Postgraduates,Collabrative Doctoral Grants - Block Payment,De Montfort University,99818458,401.51,Training Awards - Postgraduates
BEIS,UKRI - AHRC,18/10/2022,Training Awards - Postgraduates,Collabrative Doctoral Grants - Block Payment,University of Birmingham GRANT,99818459,364.15,Training Awards - Postgraduates
BEIS,UKRI - AHRC,18/10/2022,Training Awards - Postgraduates,Collabrative Doctoral Grants - Block Payment,University of York,99818460,333.25,Training Awards - Postgraduates
BEIS,UKRI - AHRC,18/10/2022,Training Awards - Postgraduates,Collabrative Doctoral Grants - Block Payment,University of York,99818461,271.42,Training Awards - Postgraduates
BEIS,UKRI - AHRC,18/10/2022,Training Awards - Postgraduates,Collabrative Doctoral Grants - Block Payment,University of Bristol GRANT,99818462,169.84,Training Awards - Postgraduates
BEIS,UKRI - AHRC,18/10/2022,Training Awards - Postgraduates,Collabrative Doctoral Grants - Block Payment,University of Kent,99818463,401.51,Training Awards - Postgraduates
BEIS,UKRI - AHRC,18/10/2022,Training Awards - Postgraduates,Collabrative Doctoral Grants - Block Payment,University of Bedfordshire,99818464,202.75,Training Awards - Postgraduates
BEIS,UKRI - AHRC,18/10/2022,Training Awards - Postgraduates,Collabrative Doctoral Grants - Block Payment,University of York,99818465,401.51,Training Awards - Postgraduates
BEIS,UKRI - AHRC,18/10/2022,Training Awards - Postgraduates,Collabrative Doctoral Grants - Block Payment,University of St Andrews,99818466,401.51,Training Awards - Postgraduates
BEIS,UKRI - AHRC,18/10/2022,Training Awards - Postgraduates,BGP Award,"Royal Holloway, University of London",99818467,14875.59,Training Awards - Postgraduates
BEIS,UKRI - AHRC,18/10/2022,Training Awards - Postgraduates,BGP Award,University of Bristol GRANT,99818468,5133.59,Training Awards - Postgraduates
BEIS,UKRI - AHRC,18/10/2022,Training Awards - Postgraduates,BGP Award,University of Newcastle Upon Tyne,99818469,3284.68,Training Awards - Postgraduates
BEIS,UKRI - AHRC,18/10/2022,Training Awards - Postgraduates,BGP Award,University of Glasgow,99818470,7344.25,Training Awards - Postgraduates
BEIS,UKRI - AHRC,18/10/2022,Training Awards - Postgraduates,BGP Award,The University of Manchester,99818471,3342.08,Training Awards - Postgraduates
BEIS,UKRI - AHRC,18/10/2022,Training Awards - Postgraduates,BGP Award,University of Cambridge,99818472,1206.51,Training Awards - Postgraduates
BEIS,UKRI - AHRC,18/10/2022,Training Awards - Postgraduates,BGP Award,University of Oxford,99818473,3951.17,Training Awards - Postgraduates
BEIS,UKRI - AHRC,18/10/2022,Training Awards - Postgraduates,BGP Award,University College London,99818474,7493.60,Training Awards - Postgraduates
BEIS,UKRI - AHRC,18/10/2022,Training Awards - Postgraduates,BGP Award,University of Sussex,99818475,13193.70,Training Awards - Postgraduates
BEIS,UKRI - AHRC,18/10/2022,Training Awards - Postgraduates,BGP Award,University of Nottingham,99818476,4956.91,Training Awards - Postgraduates
BEIS,UKRI - AHRC,18/10/2022,Training Awards - Postgraduates,BGP Award,University of Nottingham,99818476,4956.93,Training Awards - Postgraduates
BEIS,UKRI - AHRC,18/10/2022,Training Awards - Postgraduates,BGP Award,University of York,99818477,4795.92,Training Awards - Postgraduates
BEIS,UKRI - AHRC,18/10/2022,Training Awards - Postgraduates,BGP Award,Northumbria University,99818478,2075.75,Training Awards - Postgraduates
BEIS,UKRI - AHRC,18/10/2022,Training Awards - Postgraduates,BGP Award,University College London,99818479,624.34,Training Awards - Postgraduates
BEIS,UKRI - AHRC,18/10/2022,Training Awards - Postgraduates,BGP Award,University of Hull,99818480,1339.02,Training Awards - Postgraduates
BEIS,UKRI - AHRC,18/10/2022,Training Awards - Postgraduates,BGP Award,University of Glasgow,99818481,1606.01,Training Awards - Postgraduates
BEIS,UKRI - AHRC,18/10/2022,Training Awards - Postgraduates,BGP Award,University of the West of England,99818482,1005.77,Training Awards - Postgraduates
BEIS,UKRI - AHRC,18/10/2022,Training Awards - Postgraduates,BGP Award,Royal College of Art,99818483,4143.09,Training Awards - Postgraduates
BEIS,UKRI - AHRC,18/10/2022,Training Awards - Postgraduates,BGP Award,University of Reading,99818484,4017.02,Training Awards - Postgraduates
BEIS,UKRI - AHRC,18/10/2022,Training Awards - Postgraduates,Collabrative Doctoral Grants - Block Payment,University of Stirling,99819100,4693.17,Training Awards - Postgraduates
BEIS,UKRI - AHRC,18/10/2022,Training Awards - Postgraduates,International Placement Scheme,University of Cambridge,99819101,-3870.00,Training Awards - Postgraduates
BEIS,UKRI - AHRC,18/10/2022,Training Awards - Postgraduates,International Placement Scheme,Goldsmiths College University of London,99819102,9718.41,Training Awards - Postgraduates
BEIS,UKRI - AHRC,18/10/2022,Training Awards - Postgraduates,International Placement Scheme,University of York,99819103,5370.00,Training Awards - Postgraduates
BEIS,UKRI - AHRC,18/10/2022,Training Awards - Postgraduates,International Placement Scheme,University of Cambridge,99819104,800.00,Training Awards - Postgraduates
BEIS,UKRI - AHRC,18/10/2022,Training Awards - Postgraduates,International Placement Scheme,University of Newcastle Upon Tyne,99819105,5370.00,Training Awards - Postgraduates
BEIS,UKRI - AHRC,18/10/2022,Training Awards - Postgraduates,International Placement Scheme,Edge Hill University College,99819106,3270.58,Training Awards - Postgraduates
BEIS,UKRI - AHRC,18/10/2022,Training Awards - Postgraduates,International Placement Scheme,King's College London,99819107,2370.00,Training Awards - Postgraduates
BEIS,UKRI - AHRC,18/10/2022,Training Awards - Postgraduates,International Placement Scheme,University of Stirling,99819108,-788.27,Training Awards - Postgraduates
BEIS,UKRI - AHRC,18/10/2022,Training Awards - Postgraduates,Collabrative Doctoral Grants - Block Payment,University of Edinburgh,99819109,-8649.50,Training Awards - Postgraduates
BEIS,UKRI - AHRC,18/10/2022,Training Awards - Postgraduates,Collabrative Doctoral Grants - Block Payment,University of Westminster,99819110,15200.00,Training Awards - Postgraduates
BEIS,UKRI - AHRC,18/10/2022,Training Awards - Postgraduates,Collabrative Doctoral Grants - Block Payment,University of Lincoln,99819111,-1745.50,Training Awards - Postgraduates
BEIS,UKRI - AHRC,18/10/2022,Conferences & Seminars,International Partnership and Engagement,Calder Conference Ltd,99822933,1500.00,Conferences & Seminars
BEIS,UKRI - AHRC,18/10/2022,T&S UK - Other Charges,International Development and Area Studies,Unspecified,99823054,100.00,T&S UK - Other Charges
BEIS,UKRI - AHRC,18/10/2022,T&S UK - Public Transport,AI&Design,Unspecified,99823055,2.50,T&S UK - Public Transport
BEIS,UKRI - AHRC,18/10/2022,T&S UK - Subsistence,AI&Design,Unspecified,99823055,4.44,T&S UK - Subsistence
BEIS,UKRI - AHRC,19/10/2022,Training Awards - Postgraduates,Collabrative Doctoral Grants - Block Payment,The National Archives,99818422,0.06,Training Awards - Postgraduates
BEIS,UKRI - AHRC,19/10/2022,Research Consumables,Cultural Value EDI,Enact Equality Ltd,99823402,20800.00,Research Consumables
BEIS,UKRI - AHRC,19/10/2022,T&S UK - Other Charges,Public and Stakeholder Engagement,Unspecified,99823492,179.00,T&S UK - Other Charges
BEIS,UKRI - AHRC,19/10/2022,T&S UK - Subsistence,International Partnership and Engagement,Unspecified,99823493,14.95,T&S UK - Subsistence
BEIS,UKRI - AHRC,19/10/2022,T&S UK - Subsistence,International Partnership and Engagement,Unspecified,99823493,5.00,T&S UK - Subsistence
BEIS,UKRI - AHRC,19/10/2022,Health & Safety (inc. Medicals & Opticians),Health and Environmental Humanities,Unspecified,99823494,16.99,Health & Safety (inc. Medicals & Opticians)
BEIS,UKRI - AHRC,20/10/2022,Staff Training,SMT,Arma (UK) Ltd (The Association of Research Managers and Administrators),99821991,121.20,Staff Training
BEIS,UKRI - AHRC,20/10/2022,Fees (Including College Members),Operations,Unspecified,99823602,230.00,Fees (Including College Members)
BEIS,UKRI - AHRC,20/10/2022,Fees (Including College Members),Operations,Unspecified,99823603,170.00,Fees (Including College Members)
BEIS,UKRI - AHRC,20/10/2022,Non-staff travel and subsistance,International Partnership and Engagement,Unspecified,99823604,89.00,Non-staff travel and subsistance
BEIS,UKRI - AHRC,20/10/2022,Non-staff travel and subsistance,International Partnership and Engagement,Unspecified,99823605,157.39,Non-staff travel and subsistance
BEIS,UKRI - AHRC,20/10/2022,Non-staff travel and subsistance,International Partnership and Engagement,Unspecified,99823606,90.00,Non-staff travel and subsistance
BEIS,UKRI - AHRC,20/10/2022,Non-staff travel and subsistance,International Partnership and Engagement,Unspecified,99823607,138.48,Non-staff travel and subsistance
BEIS,UKRI - AHRC,20/10/2022,Non-staff travel and subsistance,International Partnership and Engagement,Unspecified,99823608,62.43,Non-staff travel and subsistance
BEIS,UKRI - AHRC,20/10/2022,Non-staff travel and subsistance,International Partnership and Engagement,Unspecified,99823609,46.79,Non-staff travel and subsistance
BEIS,UKRI - AHRC,20/10/2022,Non-staff travel and subsistance,International Partnership and Engagement,Unspecified,99823610,227.39,Non-staff travel and subsistance
BEIS,UKRI - AHRC,20/10/2022,Non-staff travel and subsistance,International Partnership and Engagement,Unspecified,99823611,370.48,Non-staff travel and subsistance
BEIS,UKRI - AHRC,20/10/2022,Non-staff travel and subsistance,International Partnership and Engagement,Unspecified,99823612,131.39,Non-staff travel and subsistance
BEIS,UKRI - AHRC,20/10/2022,Non-staff travel and subsistance,International Partnership and Engagement,Unspecified,99823613,239.87,Non-staff travel and subsistance
BEIS,UKRI - AHRC,20/10/2022,Unspecified,Skills Strategy,Melian Dialogue Research Ltd,99823900,13020.00,Legal & Professional Services
BEIS,UKRI - AHRC,20/10/2022,Staff Training,SMT,Civil Service College,99824397,714.00,Staff Training
BEIS,UKRI - AHRC,20/10/2022,T&S UK - Public Transport,Infrastruture Roadmap,Unspecified,99824495,8.40,T&S UK - Public Transport
BEIS,UKRI - AHRC,20/10/2022,T&S UK - Subsistence,Infrastruture Roadmap,Unspecified,99824495,10.85,T&S UK - Subsistence
BEIS,UKRI - AHRC,21/10/2022,Unspecified,SMT,University of St Andrews,99820565,120897.37,Secondments
BEIS,UKRI - AHRC,21/10/2022,Unspecified,Infrastructure Fund - RICHeS,Alexander Mann Solutions Ltd,99822296,1386.12,Legal & Professional Services
BEIS,UKRI - AHRC,21/10/2022,T&S UK - Other Charges,International Development and Area Studies,Unspecified,99825852,199.99,T&S UK - Other Charges
BEIS,UKRI - AHRC,24/10/2022,Fees (Including College Members),Health and Environmental Humanities,Unspecified,99825371,510.00,Fees (Including College Members)
BEIS,UKRI - AHRC,24/10/2022,Health & Safety (inc. Medicals & Opticians),International Partnership and Engagement,Unspecified,99826062,16.99,Health & Safety (inc. Medicals & Opticians)
BEIS,UKRI - AHRC,24/10/2022,Health & Safety (inc. Medicals & Opticians),International Partnership and Engagement,Unspecified,99826063,16.99,Health & Safety (inc. Medicals & Opticians)
BEIS,UKRI - AHRC,25/10/2022,Fees (Including College Members),Operations,Unspecified,99827188,170.00,Fees (Including College Members)
BEIS,UKRI - AHRC,25/10/2022,Fees (Including College Members),Operations,Unspecified,99827189,170.00,Fees (Including College Members)
BEIS,UKRI - AHRC,25/10/2022,Fees (Including College Members),Operations,Unspecified,99827190,170.00,Fees (Including College Members)
BEIS,UKRI - AHRC,25/10/2022,Fees (Including College Members),Operations,Unspecified,99827191,170.00,Fees (Including College Members)
BEIS,UKRI - AHRC,26/10/2022,Research Grant Expenditure,Connected Communities Programme,Bangor University,99813911,9429.52,Research Grant Expenditure
BEIS,UKRI - AHRC,26/10/2022,Non-staff travel and subsistance,International Partnership and Engagement,Unspecified,99823614,504.36,Non-staff travel and subsistance
BEIS,UKRI - AHRC,26/10/2022,Fees (Including College Members),Operations,Unspecified,99827407,170.00,Fees (Including College Members)
BEIS,UKRI - AHRC,26/10/2022,Fees (Including College Members),Operations,Unspecified,99827408,170.00,Fees (Including College Members)
BEIS,UKRI - AHRC,26/10/2022,Non-staff travel and subsistance,Operations,Unspecified,99827409,36.00,Non-staff travel and subsistance
BEIS,UKRI - AHRC,26/10/2022,Fees (Including College Members),Operations,Unspecified,99827410,170.00,Fees (Including College Members)
BEIS,UKRI - AHRC,26/10/2022,Health & Safety (inc. Medicals & Opticians),Executive Office,Unspecified,99828129,22.00,Health & Safety (inc. Medicals & Opticians)
BEIS,UKRI - AHRC,26/10/2022,Health & Safety (inc. Medicals & Opticians),International Partnership and Engagement,Unspecified,99828130,25.00,Health & Safety (inc. Medicals & Opticians)
BEIS,UKRI - AHRC,26/10/2022,T&S UK - Subsistence,AHRC - Creative Industries,Unspecified,99828131,3.90,T&S UK - Subsistence
BEIS,UKRI - AHRC,26/10/2022,T&S UK - Subsistence,AHRC - Creative Industries,Unspecified,99828131,11.27,T&S UK - Subsistence
BEIS,UKRI - AHRC,26/10/2022,T&S UK - Subsistence,AHRC - Creative Industries,Unspecified,99828131,3.00,T&S UK - Subsistence
BEIS,UKRI - AHRC,26/10/2022,T&S UK - Subsistence,AHRC - Creative Industries,Unspecified,99828131,10.00,T&S UK - Subsistence
BEIS,UKRI - AHRC,27/10/2022,Unspecified,Infrastructure Fund - RICHeS,Alexander Mann Solutions Ltd,99825988,1386.12,Legal & Professional Services
BEIS,UKRI - AHRC,27/10/2022,Fees (Including College Members),Operations,Unspecified,99828138,170.00,Fees (Including College Members)
BEIS,UKRI - AHRC,27/10/2022,Fees (Including College Members),Operations,Unspecified,99828139,170.00,Fees (Including College Members)
BEIS,UKRI - AHRC,31/10/2022,Fees (Including College Members),Operations,Unspecified,99828651,230.00,Fees (Including College Members)
BEIS,UKRI - AHRC,31/10/2022,Fees (Including College Members),Operations,Unspecified,99828652,170.00,Fees (Including College Members)
BEIS,UKRI - AHRC,31/10/2022,Fees (Including College Members),Operations,Unspecified,99828653,170.00,Fees (Including College Members)
BEIS,UKRI - AHRC,31/10/2022,Non-staff travel and subsistance,SMT,Unspecified,99828654,102.70,Non-staff travel and subsistance
BEIS,UKRI - AHRC,31/10/2022,Health & Safety (inc. Medicals & Opticians),AI&Design,Unspecified,99829475,16.99,Health & Safety (inc. Medicals & Opticians)
BEIS,UKRI - AHRC,31/10/2022,T&S UK - Subsistence,AI&Design,Unspecified,99829475,10.90,T&S UK - Subsistence
BEIS,UKRI - BBSRC,03/10/2022,Unspecified,FG - Estates,Powis Hughes Ltd,99811713,1710.56,Legal & Professional Services
BEIS,UKRI - BBSRC,03/10/2022,Fees (Including College Members),Science Group,Unspecified,99813218,460.00,Fees (Including College Members)
BEIS,UKRI - BBSRC,03/10/2022,T&S UK - Accommodation,Science Group,Unspecified,99813983,104.00,T&S UK - Accommodation
BEIS,UKRI - BBSRC,03/10/2022,T&S UK - Public Transport,Science Group,Unspecified,99813983,11.00,T&S UK - Public Transport
BEIS,UKRI - BBSRC,03/10/2022,T&S UK - Subsistence,Science Group,Unspecified,99813983,3.50,T&S UK - Subsistence
BEIS,UKRI - BBSRC,03/10/2022,T&S UK - Subsistence,Science Group,Unspecified,99813983,10.00,T&S UK - Subsistence
BEIS,UKRI - BBSRC,04/10/2022,Unspecified,Innovation and Skills Group,BearingPoint Ltd,99806657,93900.00,Legal & Professional Services
BEIS,UKRI - BBSRC,04/10/2022,Research Grant Expenditure,Science Group,UKRI - Medical Research Council,99811176,48297.15,Research Grant Expenditure
BEIS,UKRI - BBSRC,04/10/2022,T&S UK - Other Charges,CE - IRU,Unspecified,99814849,3.15,T&S UK - Other Charges
BEIS,UKRI - BBSRC,04/10/2022,T&S UK - Public Transport,CE - IRU,Unspecified,99814849,5.40,T&S UK - Public Transport
BEIS,UKRI - BBSRC,04/10/2022,T&S UK - Subsistence,CE - IRU,Unspecified,99814849,5.00,T&S UK - Subsistence
BEIS,UKRI - BBSRC,04/10/2022,T&S UK - Other Charges,CIMG - Director,Unspecified,99814850,9.99,T&S UK - Other Charges
BEIS,UKRI - BBSRC,04/10/2022,T&S UK - Parking Tolls Congestion Charges,CIMG - Director,Unspecified,99814850,18.00,T&S UK - Parking Tolls Congestion Charges
BEIS,UKRI - BBSRC,04/10/2022,T&S UK - Subsistence,CIMG - Director,Unspecified,99814850,4.98,T&S UK - Subsistence
BEIS,UKRI - BBSRC,04/10/2022,T&S UK - Subsistence,CIMG - Director,Unspecified,99814850,25.00,T&S UK - Subsistence
BEIS,UKRI - BBSRC,04/10/2022,T&S UK - Vehicle Hire,CIMG - Director,Unspecified,99814850,111.12,T&S UK - Vehicle Hire
BEIS,UKRI - BBSRC,04/10/2022,T&S UK - Public Transport,Science Group,Unspecified,99814851,12.50,T&S UK - Public Transport
BEIS,UKRI - BBSRC,05/10/2022,T&S UK - Subsistence,Science Group,Unspecified,99815380,19.60,T&S UK - Subsistence
BEIS,UKRI - BBSRC,05/10/2022,T&S UK - Subsistence,Science Group,Unspecified,99815380,5.00,T&S UK - Subsistence
BEIS,UKRI - BBSRC,06/10/2022,T&S UK - Public Transport,CE - IRU,Unspecified,99817267,9.00,T&S UK - Public Transport
BEIS,UKRI - BBSRC,06/10/2022,T&S UK - Subsistence,CE - IRU,Unspecified,99817267,18.00,T&S UK - Subsistence
BEIS,UKRI - BBSRC,06/10/2022,T&S UK - Subsistence,CE - IRU,Unspecified,99817267,7.40,T&S UK - Subsistence
BEIS,UKRI - BBSRC,06/10/2022,T&S Overseas - Accommodation,Science Group,Unspecified,99817268,5.36,T&S Overseas - Accommodation
BEIS,UKRI - BBSRC,06/10/2022,T&S Overseas - Subsistence,Science Group,Unspecified,99817268,26.78,T&S Overseas - Subsistence
BEIS,UKRI - BBSRC,06/10/2022,T&S Overseas - Subsistence,Science Group,Unspecified,99817268,15.53,T&S Overseas - Subsistence
BEIS,UKRI - BBSRC,06/10/2022,T&S UK - Public Transport,Innovation and Skills Group,Unspecified,99817269,6.30,T&S UK - Public Transport
BEIS,UKRI - BBSRC,06/10/2022,T&S UK - Subsistence,Innovation and Skills Group,Unspecified,99817269,23.92,T&S UK - Subsistence
BEIS,UKRI - BBSRC,07/10/2022,Research Grant Expenditure,SPF W1 EMBL EBI,EMBL (European Molecular Biology Laboratory),99811727,156780.08,Research Grant Expenditure
BEIS,UKRI - BBSRC,07/10/2022,Research Grant Expenditure,SPF W1 EMBL EBI,EMBL (European Molecular Biology Laboratory),99811728,600.00,Research Grant Expenditure
BEIS,UKRI - BBSRC,07/10/2022,Research Grant Expenditure,SPF W1 EMBL EBI,EMBL (European Molecular Biology Laboratory),99812510,837.98,Research Grant Expenditure
BEIS,UKRI - BBSRC,07/10/2022,Security Services,FG - Estates,Babraham Institute,99816253,8400.00,Security Services
BEIS,UKRI - BBSRC,07/10/2022,Health & Safety (inc. Medicals & Opticians),Science Group,Unspecified,99816463,15.00,Health & Safety (inc. Medicals & Opticians)
BEIS,UKRI - BBSRC,07/10/2022,T&S UK - Other Charges,Science Group,Unspecified,99816464,150.00,T&S UK - Other Charges
BEIS,UKRI - BBSRC,07/10/2022,T&S UK - Public Transport,CE - Chief Executive,Unspecified,99816465,5.80,T&S UK - Public Transport
BEIS,UKRI - BBSRC,07/10/2022,T&S UK - Subsistence,CE - Chief Executive,Unspecified,99816465,10.00,T&S UK - Subsistence
BEIS,UKRI - BBSRC,07/10/2022,T&S UK - Subsistence,CE - Chief Executive,Unspecified,99816466,10.00,T&S UK - Subsistence
BEIS,UKRI - BBSRC,11/10/2022,Research Grant Expenditure,International,UKRI - Medical Research Council,99811175,64583.33,Research Grant Expenditure
BEIS,UKRI - BBSRC,11/10/2022,T&S Overseas - Flights,CE - Chief Executive,Corporate Travel Management (North) Ltd,99818586,2.50,T&S Overseas - Flights
BEIS,UKRI - BBSRC,11/10/2022,T&S Overseas - Flights,CE - Chief Executive,Corporate Travel Management (North) Ltd,99818586,125.21,T&S Overseas - Flights
BEIS,UKRI - BBSRC,11/10/2022,T&S Overseas - Flights,CE - IRU,Corporate Travel Management (North) Ltd,99818586,2.50,T&S Overseas - Flights
BEIS,UKRI - BBSRC,11/10/2022,T&S Overseas - Flights,CE - IRU,Corporate Travel Management (North) Ltd,99818586,204.00,T&S Overseas - Flights
BEIS,UKRI - BBSRC,11/10/2022,T&S Overseas - Flights,CE - IRU,Corporate Travel Management (North) Ltd,99818586,2.50,T&S Overseas - Flights
BEIS,UKRI - BBSRC,11/10/2022,T&S Overseas - Flights,CE - IRU,Corporate Travel Management (North) Ltd,99818586,272.07,T&S Overseas - Flights
BEIS,UKRI - BBSRC,11/10/2022,T&S Overseas - Flights,Science Group,Corporate Travel Management (North) Ltd,99818586,2.50,T&S Overseas - Flights
BEIS,UKRI - BBSRC,11/10/2022,T&S Overseas - Flights,Science Group,Corporate Travel Management (North) Ltd,99818586,160.77,T&S Overseas - Flights
BEIS,UKRI - BBSRC,11/10/2022,T&S Overseas - Flights,Science Group,Corporate Travel Management (North) Ltd,99818586,2.50,T&S Overseas - Flights
BEIS,UKRI - BBSRC,11/10/2022,T&S Overseas - Flights,Science Group,Corporate Travel Management (North) Ltd,99818586,208.32,T&S Overseas - Flights
BEIS,UKRI - BBSRC,11/10/2022,T&S Overseas - Flights,Science Group,Corporate Travel Management (North) Ltd,99818586,2.50,T&S Overseas - Flights
BEIS,UKRI - BBSRC,11/10/2022,T&S Overseas - Flights,Science Group,Corporate Travel Management (North) Ltd,99818586,666.20,T&S Overseas - Flights
BEIS,UKRI - BBSRC,11/10/2022,T&S Overseas - Flights,Science Group,Corporate Travel Management (North) Ltd,99818586,2.50,T&S Overseas - Flights
BEIS,UKRI - BBSRC,11/10/2022,T&S Overseas - Flights,Science Group,Corporate Travel Management (North) Ltd,99818586,754.06,T&S Overseas - Flights
BEIS,UKRI - BBSRC,11/10/2022,T&S Overseas - Flights,Science Group – Admin Function,Corporate Travel Management (North) Ltd,99818586,2.50,T&S Overseas - Flights
BEIS,UKRI - BBSRC,11/10/2022,T&S Overseas - Flights,Science Group – Admin Function,Corporate Travel Management (North) Ltd,99818586,344.57,T&S Overseas - Flights
BEIS,UKRI - BBSRC,11/10/2022,T&S Overseas - Public Transport,CE - Chief Executive,Corporate Travel Management (North) Ltd,99818586,2.50,T&S Overseas - Public Transport
BEIS,UKRI - BBSRC,11/10/2022,T&S Overseas - Public Transport,CE - Chief Executive,Corporate Travel Management (North) Ltd,99818586,110.00,T&S Overseas - Public Transport
BEIS,UKRI - BBSRC,11/10/2022,T&S Overseas - Public Transport,CE - IRU,Corporate Travel Management (North) Ltd,99818586,2.50,T&S Overseas - Public Transport
BEIS,UKRI - BBSRC,11/10/2022,T&S Overseas - Public Transport,CE - IRU,Corporate Travel Management (North) Ltd,99818586,229.00,T&S Overseas - Public Transport
BEIS,UKRI - BBSRC,11/10/2022,T&S UK - Accommodation,BBSRC Champions,Corporate Travel Management (North) Ltd,99818586,2.00,T&S UK - Accommodation
BEIS,UKRI - BBSRC,11/10/2022,T&S UK - Accommodation,BBSRC Champions,Corporate Travel Management (North) Ltd,99818586,2.00,T&S UK - Accommodation
BEIS,UKRI - BBSRC,11/10/2022,T&S UK - Accommodation,BBSRC Champions,Corporate Travel Management (North) Ltd,99818586,0.40,T&S UK - Accommodation
BEIS,UKRI - BBSRC,11/10/2022,T&S UK - Accommodation,BBSRC Champions,Corporate Travel Management (North) Ltd,99818586,0.40,T&S UK - Accommodation
BEIS,UKRI - BBSRC,11/10/2022,T&S UK - Accommodation,CE - Chief Executive,Corporate Travel Management (North) Ltd,99818586,2.00,T&S UK - Accommodation
BEIS,UKRI - BBSRC,11/10/2022,T&S UK - Accommodation,CE - Chief Executive,Corporate Travel Management (North) Ltd,99818586,45.00,T&S UK - Accommodation
BEIS,UKRI - BBSRC,11/10/2022,T&S UK - Accommodation,CE - Chief Executive,Corporate Travel Management (North) Ltd,99818586,0.80,T&S UK - Accommodation
BEIS,UKRI - BBSRC,11/10/2022,T&S UK - Accommodation,CE - Chief Executive,Corporate Travel Management (North) Ltd,99818586,215.70,T&S UK - Accommodation
BEIS,UKRI - BBSRC,11/10/2022,T&S UK - Accommodation,CE - Chief Executive,Corporate Travel Management (North) Ltd,99818586,0.80,T&S UK - Accommodation
BEIS,UKRI - BBSRC,11/10/2022,T&S UK - Accommodation,CE - Chief Executive,Corporate Travel Management (North) Ltd,99818586,151.10,T&S UK - Accommodation
BEIS,UKRI - BBSRC,11/10/2022,T&S UK - Accommodation,CE - Chief Executive,Corporate Travel Management (North) Ltd,99818586,0.72,T&S UK - Accommodation
BEIS,UKRI - BBSRC,11/10/2022,T&S UK - Accommodation,CIMG - Director,Corporate Travel Management (North) Ltd,99818586,0.80,T&S UK - Accommodation
BEIS,UKRI - BBSRC,11/10/2022,T&S UK - Accommodation,CIMG - Director,Corporate Travel Management (North) Ltd,99818586,85.50,T&S UK - Accommodation
BEIS,UKRI - BBSRC,11/10/2022,T&S UK - Accommodation,CIMG - Director,Corporate Travel Management (North) Ltd,99818586,0.80,T&S UK - Accommodation
BEIS,UKRI - BBSRC,11/10/2022,T&S UK - Accommodation,CIMG - Director,Corporate Travel Management (North) Ltd,99818586,0.80,T&S UK - Accommodation
BEIS,UKRI - BBSRC,11/10/2022,T&S UK - Accommodation,CIMG - Director,Corporate Travel Management (North) Ltd,99818586,85.00,T&S UK - Accommodation
BEIS,UKRI - BBSRC,11/10/2022,T&S UK - Accommodation,CIMG - Director,Corporate Travel Management (North) Ltd,99818586,0.48,T&S UK - Accommodation
BEIS,UKRI - BBSRC,11/10/2022,T&S UK - Accommodation,FG - Estates,Corporate Travel Management (North) Ltd,99818586,0.80,T&S UK - Accommodation
BEIS,UKRI - BBSRC,11/10/2022,T&S UK - Accommodation,FG - Estates,Corporate Travel Management (North) Ltd,99818586,85.00,T&S UK - Accommodation
BEIS,UKRI - BBSRC,11/10/2022,T&S UK - Accommodation,FG - Estates,Corporate Travel Management (North) Ltd,99818586,0.16,T&S UK - Accommodation
BEIS,UKRI - BBSRC,11/10/2022,T&S UK - Accommodation,Innovation and Skills Group,Corporate Travel Management (North) Ltd,99818586,0.80,T&S UK - Accommodation
BEIS,UKRI - BBSRC,11/10/2022,T&S UK - Accommodation,Innovation and Skills Group,Corporate Travel Management (North) Ltd,99818586,0.80,T&S UK - Accommodation
BEIS,UKRI - BBSRC,11/10/2022,T&S UK - Accommodation,Innovation and Skills Group,Corporate Travel Management (North) Ltd,99818586,148.20,T&S UK - Accommodation
BEIS,UKRI - BBSRC,11/10/2022,T&S UK - Accommodation,Innovation and Skills Group,Corporate Travel Management (North) Ltd,99818586,1.60,T&S UK - Accommodation
BEIS,UKRI - BBSRC,11/10/2022,T&S UK - Accommodation,Innovation and Skills Group,Corporate Travel Management (North) Ltd,99818586,99.00,T&S UK - Accommodation
BEIS,UKRI - BBSRC,11/10/2022,T&S UK - Accommodation,Innovation and Skills Group,Corporate Travel Management (North) Ltd,99818586,0.80,T&S UK - Accommodation
BEIS,UKRI - BBSRC,11/10/2022,T&S UK - Accommodation,Innovation and Skills Group,Corporate Travel Management (North) Ltd,99818586,128.25,T&S UK - Accommodation
BEIS,UKRI - BBSRC,11/10/2022,T&S UK - Accommodation,Innovation and Skills Group,Corporate Travel Management (North) Ltd,99818586,0.80,T&S UK - Accommodation
BEIS,UKRI - BBSRC,11/10/2022,T&S UK - Accommodation,Innovation and Skills Group,Corporate Travel Management (North) Ltd,99818586,128.25,T&S UK - Accommodation
BEIS,UKRI - BBSRC,11/10/2022,T&S UK - Accommodation,Innovation and Skills Group,Corporate Travel Management (North) Ltd,99818586,0.80,T&S UK - Accommodation
BEIS,UKRI - BBSRC,11/10/2022,T&S UK - Accommodation,Innovation and Skills Group,Corporate Travel Management (North) Ltd,99818586,0.80,T&S UK - Accommodation
BEIS,UKRI - BBSRC,11/10/2022,T&S UK - Accommodation,Innovation and Skills Group,Corporate Travel Management (North) Ltd,99818586,68.00,T&S UK - Accommodation
BEIS,UKRI - BBSRC,11/10/2022,T&S UK - Accommodation,Innovation and Skills Group,Corporate Travel Management (North) Ltd,99818586,0.80,T&S UK - Accommodation
BEIS,UKRI - BBSRC,11/10/2022,T&S UK - Accommodation,Innovation and Skills Group,Corporate Travel Management (North) Ltd,99818586,68.00,T&S UK - Accommodation
BEIS,UKRI - BBSRC,11/10/2022,T&S UK - Accommodation,Innovation and Skills Group,Corporate Travel Management (North) Ltd,99818586,0.64,T&S UK - Accommodation
BEIS,UKRI - BBSRC,11/10/2022,T&S UK - Accommodation,Innovation and Skills Group,Corporate Travel Management (North) Ltd,99818586,0.80,T&S UK - Accommodation
BEIS,UKRI - BBSRC,11/10/2022,T&S UK - Accommodation,Science Group,Corporate Travel Management (North) Ltd,99818586,0.80,T&S UK - Accommodation
BEIS,UKRI - BBSRC,11/10/2022,T&S UK - Accommodation,Science Group,Corporate Travel Management (North) Ltd,99818586,110.00,T&S UK - Accommodation
BEIS,UKRI - BBSRC,11/10/2022,T&S UK - Accommodation,Science Group,Corporate Travel Management (North) Ltd,99818586,0.80,T&S UK - Accommodation
BEIS,UKRI - BBSRC,11/10/2022,T&S UK - Accommodation,Science Group,Corporate Travel Management (North) Ltd,99818586,66.52,T&S UK - Accommodation
BEIS,UKRI - BBSRC,11/10/2022,T&S UK - Accommodation,Science Group,Corporate Travel Management (North) Ltd,99818586,0.80,T&S UK - Accommodation
BEIS,UKRI - BBSRC,11/10/2022,T&S UK - Accommodation,Science Group,Corporate Travel Management (North) Ltd,99818586,90.00,T&S UK - Accommodation
BEIS,UKRI - BBSRC,11/10/2022,T&S UK - Accommodation,Science Group,Corporate Travel Management (North) Ltd,99818586,0.80,T&S UK - Accommodation
BEIS,UKRI - BBSRC,11/10/2022,T&S UK - Accommodation,Science Group,Corporate Travel Management (North) Ltd,99818586,90.00,T&S UK - Accommodation
BEIS,UKRI - BBSRC,11/10/2022,T&S UK - Accommodation,Science Group,Corporate Travel Management (North) Ltd,99818586,0.80,T&S UK - Accommodation
BEIS,UKRI - BBSRC,11/10/2022,T&S UK - Accommodation,Science Group,Corporate Travel Management (North) Ltd,99818586,82.09,T&S UK - Accommodation
BEIS,UKRI - BBSRC,11/10/2022,T&S UK - Accommodation,Science Group,Corporate Travel Management (North) Ltd,99818586,0.80,T&S UK - Accommodation
BEIS,UKRI - BBSRC,11/10/2022,T&S UK - Accommodation,Science Group,Corporate Travel Management (North) Ltd,99818586,0.80,T&S UK - Accommodation
BEIS,UKRI - BBSRC,11/10/2022,T&S UK - Accommodation,Science Group,Corporate Travel Management (North) Ltd,99818586,148.20,T&S UK - Accommodation
BEIS,UKRI - BBSRC,11/10/2022,T&S UK - Accommodation,Science Group,Corporate Travel Management (North) Ltd,99818586,0.80,T&S UK - Accommodation
BEIS,UKRI - BBSRC,11/10/2022,T&S UK - Accommodation,Science Group,Corporate Travel Management (North) Ltd,99818586,318.50,T&S UK - Accommodation
BEIS,UKRI - BBSRC,11/10/2022,T&S UK - Accommodation,Science Group,Corporate Travel Management (North) Ltd,99818586,0.80,T&S UK - Accommodation
BEIS,UKRI - BBSRC,11/10/2022,T&S UK - Accommodation,Science Group,Corporate Travel Management (North) Ltd,99818586,102.00,T&S UK - Accommodation
BEIS,UKRI - BBSRC,11/10/2022,T&S UK - Accommodation,Science Group,Corporate Travel Management (North) Ltd,99818586,0.80,T&S UK - Accommodation
BEIS,UKRI - BBSRC,11/10/2022,T&S UK - Accommodation,Science Group,Corporate Travel Management (North) Ltd,99818586,116.85,T&S UK - Accommodation
BEIS,UKRI - BBSRC,11/10/2022,T&S UK - Accommodation,Science Group,Corporate Travel Management (North) Ltd,99818586,0.80,T&S UK - Accommodation
BEIS,UKRI - BBSRC,11/10/2022,T&S UK - Accommodation,Science Group,Corporate Travel Management (North) Ltd,99818586,92.95,T&S UK - Accommodation
BEIS,UKRI - BBSRC,11/10/2022,T&S UK - Accommodation,Science Group,Corporate Travel Management (North) Ltd,99818586,1.76,T&S UK - Accommodation
BEIS,UKRI - BBSRC,11/10/2022,T&S UK - Accommodation,Science Group – Admin Function,Corporate Travel Management (North) Ltd,99818586,0.80,T&S UK - Accommodation
BEIS,UKRI - BBSRC,11/10/2022,T&S UK - Accommodation,Science Group – Admin Function,Corporate Travel Management (North) Ltd,99818586,82.09,T&S UK - Accommodation
BEIS,UKRI - BBSRC,11/10/2022,T&S UK - Accommodation,Science Group – Admin Function,Corporate Travel Management (North) Ltd,99818586,0.16,T&S UK - Accommodation
BEIS,UKRI - BBSRC,11/10/2022,T&S UK - Flights,CE - CPS,Corporate Travel Management (North) Ltd,99818586,2.50,T&S UK - Flights
BEIS,UKRI - BBSRC,11/10/2022,T&S UK - Flights,CE - CPS,Corporate Travel Management (North) Ltd,99818586,123.46,T&S UK - Flights
BEIS,UKRI - BBSRC,11/10/2022,T&S UK - Flights,CE - Chief Executive,Corporate Travel Management (North) Ltd,99818586,2.50,T&S UK - Flights
BEIS,UKRI - BBSRC,11/10/2022,T&S UK - Flights,CE - Chief Executive,Corporate Travel Management (North) Ltd,99818586,273.94,T&S UK - Flights
BEIS,UKRI - BBSRC,11/10/2022,T&S UK - Flights,CE - IRU,Corporate Travel Management (North) Ltd,99818586,2.50,T&S UK - Flights
BEIS,UKRI - BBSRC,11/10/2022,T&S UK - Flights,CE - IRU,Corporate Travel Management (North) Ltd,99818586,181.98,T&S UK - Flights
BEIS,UKRI - BBSRC,11/10/2022,T&S UK - Flights,CE - IRU,Corporate Travel Management (North) Ltd,99818586,2.50,T&S UK - Flights
BEIS,UKRI - BBSRC,11/10/2022,T&S UK - Flights,CE - IRU,Corporate Travel Management (North) Ltd,99818586,304.46,T&S UK - Flights
BEIS,UKRI - BBSRC,11/10/2022,T&S UK - Flights,Science Group,Corporate Travel Management (North) Ltd,99818586,4.50,T&S UK - Flights
BEIS,UKRI - BBSRC,11/10/2022,T&S UK - Flights,Science Group,Corporate Travel Management (North) Ltd,99818586,79.99,T&S UK - Flights
BEIS,UKRI - BBSRC,11/10/2022,T&S UK - Public Transport,CE - CPS,Corporate Travel Management (North) Ltd,99818586,0.25,T&S UK - Public Transport
BEIS,UKRI - BBSRC,11/10/2022,T&S UK - Public Transport,CE - CPS,Corporate Travel Management (North) Ltd,99818586,113.20,T&S UK - Public Transport
BEIS,UKRI - BBSRC,11/10/2022,T&S UK - Public Transport,CE - CPS,Corporate Travel Management (North) Ltd,99818586,0.25,T&S UK - Public Transport
BEIS,UKRI - BBSRC,11/10/2022,T&S UK - Public Transport,CE - CPS,Corporate Travel Management (North) Ltd,99818586,99.50,T&S UK - Public Transport
BEIS,UKRI - BBSRC,11/10/2022,T&S UK - Public Transport,CE - CPS,Corporate Travel Management (North) Ltd,99818586,0.25,T&S UK - Public Transport
BEIS,UKRI - BBSRC,11/10/2022,T&S UK - Public Transport,CE - CPS,Corporate Travel Management (North) Ltd,99818586,113.20,T&S UK - Public Transport
BEIS,UKRI - BBSRC,11/10/2022,T&S UK - Public Transport,CE - CPS,Corporate Travel Management (North) Ltd,99818586,0.25,T&S UK - Public Transport
BEIS,UKRI - BBSRC,11/10/2022,T&S UK - Public Transport,CE - CPS,Corporate Travel Management (North) Ltd,99818586,113.20,T&S UK - Public Transport
BEIS,UKRI - BBSRC,11/10/2022,T&S UK - Public Transport,CE - CPS,Corporate Travel Management (North) Ltd,99818586,0.25,T&S UK - Public Transport
BEIS,UKRI - BBSRC,11/10/2022,T&S UK - Public Transport,CE - CPS,Corporate Travel Management (North) Ltd,99818586,37.00,T&S UK - Public Transport
BEIS,UKRI - BBSRC,11/10/2022,T&S UK - Public Transport,CE - CPS,Corporate Travel Management (North) Ltd,99818586,0.25,T&S UK - Public Transport
BEIS,UKRI - BBSRC,11/10/2022,T&S UK - Public Transport,CE - CPS,Corporate Travel Management (North) Ltd,99818586,63.10,T&S UK - Public Transport
BEIS,UKRI - BBSRC,11/10/2022,T&S UK - Public Transport,CE - CPS,Corporate Travel Management (North) Ltd,99818586,0.25,T&S UK - Public Transport
BEIS,UKRI - BBSRC,11/10/2022,T&S UK - Public Transport,CE - CPS,Corporate Travel Management (North) Ltd,99818586,52.20,T&S UK - Public Transport
BEIS,UKRI - BBSRC,11/10/2022,T&S UK - Public Transport,CE - CPS,Corporate Travel Management (North) Ltd,99818586,0.25,T&S UK - Public Transport
BEIS,UKRI - BBSRC,11/10/2022,T&S UK - Public Transport,CE - CPS,Corporate Travel Management (North) Ltd,99818586,52.20,T&S UK - Public Transport
BEIS,UKRI - BBSRC,11/10/2022,T&S UK - Public Transport,CE - CPS,Corporate Travel Management (North) Ltd,99818586,0.25,T&S UK - Public Transport
BEIS,UKRI - BBSRC,11/10/2022,T&S UK - Public Transport,CE - CPS,Corporate Travel Management (North) Ltd,99818586,48.40,T&S UK - Public Transport
BEIS,UKRI - BBSRC,11/10/2022,T&S UK - Public Transport,CE - CPS,Corporate Travel Management (North) Ltd,99818586,0.25,T&S UK - Public Transport
BEIS,UKRI - BBSRC,11/10/2022,T&S UK - Public Transport,CE - CPS,Corporate Travel Management (North) Ltd,99818586,63.10,T&S UK - Public Transport
BEIS,UKRI - BBSRC,11/10/2022,T&S UK - Public Transport,CE - CPS,Corporate Travel Management (North) Ltd,99818586,0.25,T&S UK - Public Transport
BEIS,UKRI - BBSRC,11/10/2022,T&S UK - Public Transport,CE - CPS,Corporate Travel Management (North) Ltd,99818586,47.40,T&S UK - Public Transport
BEIS,UKRI - BBSRC,11/10/2022,T&S UK - Public Transport,CE - Chief Executive,Corporate Travel Management (North) Ltd,99818586,0.25,T&S UK - Public Transport
BEIS,UKRI - BBSRC,11/10/2022,T&S UK - Public Transport,CE - Chief Executive,Corporate Travel Management (North) Ltd,99818586,70.00,T&S UK - Public Transport
BEIS,UKRI - BBSRC,11/10/2022,T&S UK - Public Transport,CE - Chief Executive,Corporate Travel Management (North) Ltd,99818586,0.25,T&S UK - Public Transport
BEIS,UKRI - BBSRC,11/10/2022,T&S UK - Public Transport,CE - Chief Executive,Corporate Travel Management (North) Ltd,99818586,82.00,T&S UK - Public Transport
BEIS,UKRI - BBSRC,11/10/2022,T&S UK - Public Transport,CE - Chief Executive,Corporate Travel Management (North) Ltd,99818586,0.25,T&S UK - Public Transport
BEIS,UKRI - BBSRC,11/10/2022,T&S UK - Public Transport,CE - Chief Executive,Corporate Travel Management (North) Ltd,99818586,70.00,T&S UK - Public Transport
BEIS,UKRI - BBSRC,11/10/2022,T&S UK - Public Transport,CE - Chief Executive,Corporate Travel Management (North) Ltd,99818586,0.25,T&S UK - Public Transport
BEIS,UKRI - BBSRC,11/10/2022,T&S UK - Public Transport,CE - Chief Executive,Corporate Travel Management (North) Ltd,99818586,59.90,T&S UK - Public Transport
BEIS,UKRI - BBSRC,11/10/2022,T&S UK - Public Transport,CE - Chief Executive,Corporate Travel Management (North) Ltd,99818586,0.25,T&S UK - Public Transport
BEIS,UKRI - BBSRC,11/10/2022,T&S UK - Public Transport,CE - Chief Executive,Corporate Travel Management (North) Ltd,99818586,67.00,T&S UK - Public Transport
BEIS,UKRI - BBSRC,11/10/2022,T&S UK - Public Transport,CE - Chief Executive,Corporate Travel Management (North) Ltd,99818586,0.25,T&S UK - Public Transport
BEIS,UKRI - BBSRC,11/10/2022,T&S UK - Public Transport,CE - Chief Executive,Corporate Travel Management (North) Ltd,99818586,110.00,T&S UK - Public Transport
BEIS,UKRI - BBSRC,11/10/2022,T&S UK - Public Transport,CE - Chief Executive,Corporate Travel Management (North) Ltd,99818586,0.25,T&S UK - Public Transport
BEIS,UKRI - BBSRC,11/10/2022,T&S UK - Public Transport,CE - Chief Executive,Corporate Travel Management (North) Ltd,99818586,97.50,T&S UK - Public Transport
BEIS,UKRI - BBSRC,11/10/2022,T&S UK - Public Transport,CE - Chief Executive,Corporate Travel Management (North) Ltd,99818586,0.25,T&S UK - Public Transport
BEIS,UKRI - BBSRC,11/10/2022,T&S UK - Public Transport,CE - Chief Executive,Corporate Travel Management (North) Ltd,99818586,34.70,T&S UK - Public Transport
BEIS,UKRI - BBSRC,11/10/2022,T&S UK - Public Transport,CE - Chief Executive,Corporate Travel Management (North) Ltd,99818586,0.25,T&S UK - Public Transport
BEIS,UKRI - BBSRC,11/10/2022,T&S UK - Public Transport,CE - Chief Executive,Corporate Travel Management (North) Ltd,99818586,53.00,T&S UK - Public Transport
BEIS,UKRI - BBSRC,11/10/2022,T&S UK - Public Transport,CE - Chief Executive,Corporate Travel Management (North) Ltd,99818586,0.25,T&S UK - Public Transport
BEIS,UKRI - BBSRC,11/10/2022,T&S UK - Public Transport,CE - Chief Executive,Corporate Travel Management (North) Ltd,99818586,195.00,T&S UK - Public Transport
BEIS,UKRI - BBSRC,11/10/2022,T&S UK - Public Transport,CE - Chief Executive,Corporate Travel Management (North) Ltd,99818586,0.25,T&S UK - Public Transport
BEIS,UKRI - BBSRC,11/10/2022,T&S UK - Public Transport,CE - Chief Executive,Corporate Travel Management (North) Ltd,99818586,195.00,T&S UK - Public Transport
BEIS,UKRI - BBSRC,11/10/2022,T&S UK - Public Transport,CE - Chief Executive,Corporate Travel Management (North) Ltd,99818586,0.25,T&S UK - Public Transport
BEIS,UKRI - BBSRC,11/10/2022,T&S UK - Public Transport,CE - Chief Executive,Corporate Travel Management (North) Ltd,99818586,52.10,T&S UK - Public Transport
BEIS,UKRI - BBSRC,11/10/2022,T&S UK - Public Transport,CE - Chief Executive,Corporate Travel Management (North) Ltd,99818586,0.13,T&S UK - Public Transport
BEIS,UKRI - BBSRC,11/10/2022,T&S UK - Public Transport,CE - Chief Executive,Corporate Travel Management (North) Ltd,99818586,95.30,T&S UK - Public Transport
BEIS,UKRI - BBSRC,11/10/2022,T&S UK - Public Transport,CE - Chief Executive,Corporate Travel Management (North) Ltd,99818586,0.12,T&S UK - Public Transport
BEIS,UKRI - BBSRC,11/10/2022,T&S UK - Public Transport,CE - Chief Executive,Corporate Travel Management (North) Ltd,99818586,95.30,T&S UK - Public Transport
BEIS,UKRI - BBSRC,11/10/2022,T&S UK - Public Transport,CE - Chief Executive,Corporate Travel Management (North) Ltd,99818586,0.25,T&S UK - Public Transport
BEIS,UKRI - BBSRC,11/10/2022,T&S UK - Public Transport,CE - Chief Executive,Corporate Travel Management (North) Ltd,99818586,141.00,T&S UK - Public Transport
BEIS,UKRI - BBSRC,11/10/2022,T&S UK - Public Transport,CE - IRU,Corporate Travel Management (North) Ltd,99818586,0.25,T&S UK - Public Transport
BEIS,UKRI - BBSRC,11/10/2022,T&S UK - Public Transport,CE - IRU,Corporate Travel Management (North) Ltd,99818586,76.60,T&S UK - Public Transport
BEIS,UKRI - BBSRC,11/10/2022,T&S UK - Public Transport,CE - IRU,Corporate Travel Management (North) Ltd,99818586,0.25,T&S UK - Public Transport
BEIS,UKRI - BBSRC,11/10/2022,T&S UK - Public Transport,CE - IRU,Corporate Travel Management (North) Ltd,99818586,77.30,T&S UK - Public Transport
BEIS,UKRI - BBSRC,11/10/2022,T&S UK - Public Transport,CE - IRU,Corporate Travel Management (North) Ltd,99818586,0.25,T&S UK - Public Transport
BEIS,UKRI - BBSRC,11/10/2022,T&S UK - Public Transport,CE - IRU,Corporate Travel Management (North) Ltd,99818586,23.50,T&S UK - Public Transport
BEIS,UKRI - BBSRC,11/10/2022,T&S UK - Public Transport,CE - IRU,Corporate Travel Management (North) Ltd,99818586,0.25,T&S UK - Public Transport
BEIS,UKRI - BBSRC,11/10/2022,T&S UK - Public Transport,CE - IRU,Corporate Travel Management (North) Ltd,99818586,32.80,T&S UK - Public Transport
BEIS,UKRI - BBSRC,11/10/2022,T&S UK - Public Transport,CE - IRU,Corporate Travel Management (North) Ltd,99818586,0.25,T&S UK - Public Transport
BEIS,UKRI - BBSRC,11/10/2022,T&S UK - Public Transport,CE - IRU,Corporate Travel Management (North) Ltd,99818586,105.80,T&S UK - Public Transport
BEIS,UKRI - BBSRC,11/10/2022,T&S UK - Public Transport,CE - IRU,Corporate Travel Management (North) Ltd,99818586,0.25,T&S UK - Public Transport
BEIS,UKRI - BBSRC,11/10/2022,T&S UK - Public Transport,CE - IRU,Corporate Travel Management (North) Ltd,99818586,102.00,T&S UK - Public Transport
BEIS,UKRI - BBSRC,11/10/2022,T&S UK - Public Transport,CE - IRU,Corporate Travel Management (North) Ltd,99818586,0.25,T&S UK - Public Transport
BEIS,UKRI - BBSRC,11/10/2022,T&S UK - Public Transport,CE - IRU,Corporate Travel Management (North) Ltd,99818586,105.80,T&S UK - Public Transport
BEIS,UKRI - BBSRC,11/10/2022,T&S UK - Public Transport,European Initiatives,Corporate Travel Management (North) Ltd,99818586,0.25,T&S UK - Public Transport
BEIS,UKRI - BBSRC,11/10/2022,T&S UK - Public Transport,European Initiatives,Corporate Travel Management (North) Ltd,99818586,127.20,T&S UK - Public Transport
BEIS,UKRI - BBSRC,11/10/2022,T&S UK - Public Transport,European Initiatives,Corporate Travel Management (North) Ltd,99818586,0.25,T&S UK - Public Transport
BEIS,UKRI - BBSRC,11/10/2022,T&S UK - Public Transport,European Initiatives,Corporate Travel Management (North) Ltd,99818586,140.90,T&S UK - Public Transport
BEIS,UKRI - BBSRC,11/10/2022,T&S UK - Public Transport,European Initiatives,Corporate Travel Management (North) Ltd,99818586,0.25,T&S UK - Public Transport
BEIS,UKRI - BBSRC,11/10/2022,T&S UK - Public Transport,European Initiatives,Corporate Travel Management (North) Ltd,99818586,141.00,T&S UK - Public Transport
BEIS,UKRI - BBSRC,11/10/2022,T&S UK - Public Transport,Innovation and Skills Group,Corporate Travel Management (North) Ltd,99818586,0.25,T&S UK - Public Transport
BEIS,UKRI - BBSRC,11/10/2022,T&S UK - Public Transport,Innovation and Skills Group,Corporate Travel Management (North) Ltd,99818586,12.60,T&S UK - Public Transport
BEIS,UKRI - BBSRC,11/10/2022,T&S UK - Public Transport,Innovation and Skills Group,Corporate Travel Management (North) Ltd,99818586,0.25,T&S UK - Public Transport
BEIS,UKRI - BBSRC,11/10/2022,T&S UK - Public Transport,Innovation and Skills Group,Corporate Travel Management (North) Ltd,99818586,34.60,T&S UK - Public Transport
BEIS,UKRI - BBSRC,11/10/2022,T&S UK - Public Transport,Innovation and Skills Group,Corporate Travel Management (North) Ltd,99818586,0.25,T&S UK - Public Transport
BEIS,UKRI - BBSRC,11/10/2022,T&S UK - Public Transport,Innovation and Skills Group,Corporate Travel Management (North) Ltd,99818586,34.60,T&S UK - Public Transport
BEIS,UKRI - BBSRC,11/10/2022,T&S UK - Public Transport,Innovation and Skills Group,Corporate Travel Management (North) Ltd,99818586,0.25,T&S UK - Public Transport
BEIS,UKRI - BBSRC,11/10/2022,T&S UK - Public Transport,Innovation and Skills Group,Corporate Travel Management (North) Ltd,99818586,67.70,T&S UK - Public Transport
BEIS,UKRI - BBSRC,11/10/2022,T&S UK - Public Transport,Innovation and Skills Group,Corporate Travel Management (North) Ltd,99818586,0.25,T&S UK - Public Transport
BEIS,UKRI - BBSRC,11/10/2022,T&S UK - Public Transport,Innovation and Skills Group,Corporate Travel Management (North) Ltd,99818586,113.20,T&S UK - Public Transport
BEIS,UKRI - BBSRC,11/10/2022,T&S UK - Public Transport,Innovation and Skills Group,Corporate Travel Management (North) Ltd,99818586,0.25,T&S UK - Public Transport
BEIS,UKRI - BBSRC,11/10/2022,T&S UK - Public Transport,Innovation and Skills Group,Corporate Travel Management (North) Ltd,99818586,113.20,T&S UK - Public Transport
BEIS,UKRI - BBSRC,11/10/2022,T&S UK - Public Transport,Innovation and Skills Group,Corporate Travel Management (North) Ltd,99818586,0.25,T&S UK - Public Transport
BEIS,UKRI - BBSRC,11/10/2022,T&S UK - Public Transport,Innovation and Skills Group,Corporate Travel Management (North) Ltd,99818586,157.60,T&S UK - Public Transport
BEIS,UKRI - BBSRC,11/10/2022,T&S UK - Public Transport,Innovation and Skills Group,Corporate Travel Management (North) Ltd,99818586,0.25,T&S UK - Public Transport
BEIS,UKRI - BBSRC,11/10/2022,T&S UK - Public Transport,Innovation and Skills Group,Corporate Travel Management (North) Ltd,99818586,58.10,T&S UK - Public Transport
BEIS,UKRI - BBSRC,11/10/2022,T&S UK - Public Transport,Innovation and Skills Group,Corporate Travel Management (North) Ltd,99818586,0.25,T&S UK - Public Transport
BEIS,UKRI - BBSRC,11/10/2022,T&S UK - Public Transport,Innovation and Skills Group,Corporate Travel Management (North) Ltd,99818586,98.60,T&S UK - Public Transport
BEIS,UKRI - BBSRC,11/10/2022,T&S UK - Public Transport,Innovation and Skills Group,Corporate Travel Management (North) Ltd,99818586,0.25,T&S UK - Public Transport
BEIS,UKRI - BBSRC,11/10/2022,T&S UK - Public Transport,Innovation and Skills Group,Corporate Travel Management (North) Ltd,99818586,58.10,T&S UK - Public Transport
BEIS,UKRI - BBSRC,11/10/2022,T&S UK - Public Transport,Innovation and Skills Group,Corporate Travel Management (North) Ltd,99818586,0.25,T&S UK - Public Transport
BEIS,UKRI - BBSRC,11/10/2022,T&S UK - Public Transport,Innovation and Skills Group,Corporate Travel Management (North) Ltd,99818586,138.90,T&S UK - Public Transport
BEIS,UKRI - BBSRC,11/10/2022,T&S UK - Public Transport,Innovation and Skills Group,Corporate Travel Management (North) Ltd,99818586,0.25,T&S UK - Public Transport
BEIS,UKRI - BBSRC,11/10/2022,T&S UK - Public Transport,Innovation and Skills Group,Corporate Travel Management (North) Ltd,99818586,48.00,T&S UK - Public Transport
BEIS,UKRI - BBSRC,11/10/2022,T&S UK - Public Transport,Innovation and Skills Group,Corporate Travel Management (North) Ltd,99818586,0.25,T&S UK - Public Transport
BEIS,UKRI - BBSRC,11/10/2022,T&S UK - Public Transport,Innovation and Skills Group,Corporate Travel Management (North) Ltd,99818586,56.10,T&S UK - Public Transport
BEIS,UKRI - BBSRC,11/10/2022,T&S UK - Public Transport,Innovation and Skills Group,Corporate Travel Management (North) Ltd,99818586,0.25,T&S UK - Public Transport
BEIS,UKRI - BBSRC,11/10/2022,T&S UK - Public Transport,Innovation and Skills Group,Corporate Travel Management (North) Ltd,99818586,185.00,T&S UK - Public Transport
BEIS,UKRI - BBSRC,11/10/2022,T&S UK - Public Transport,Innovation and Skills Group,Corporate Travel Management (North) Ltd,99818586,0.25,T&S UK - Public Transport
BEIS,UKRI - BBSRC,11/10/2022,T&S UK - Public Transport,Innovation and Skills Group,Corporate Travel Management (North) Ltd,99818586,104.50,T&S UK - Public Transport
BEIS,UKRI - BBSRC,11/10/2022,T&S UK - Public Transport,Innovation and Skills Group,Corporate Travel Management (North) Ltd,99818586,0.25,T&S UK - Public Transport
BEIS,UKRI - BBSRC,11/10/2022,T&S UK - Public Transport,Innovation and Skills Group,Corporate Travel Management (North) Ltd,99818586,18.80,T&S UK - Public Transport
BEIS,UKRI - BBSRC,11/10/2022,T&S UK - Public Transport,Innovation and Skills Group,Corporate Travel Management (North) Ltd,99818586,0.25,T&S UK - Public Transport
BEIS,UKRI - BBSRC,11/10/2022,T&S UK - Public Transport,Innovation and Skills Group,Corporate Travel Management (North) Ltd,99818586,157.20,T&S UK - Public Transport
BEIS,UKRI - BBSRC,11/10/2022,T&S UK - Public Transport,Innovation and Skills Group,Corporate Travel Management (North) Ltd,99818586,0.25,T&S UK - Public Transport
BEIS,UKRI - BBSRC,11/10/2022,T&S UK - Public Transport,Innovation and Skills Group,Corporate Travel Management (North) Ltd,99818586,104.50,T&S UK - Public Transport
BEIS,UKRI - BBSRC,11/10/2022,T&S UK - Public Transport,Innovation and Skills Group,Corporate Travel Management (North) Ltd,99818586,0.25,T&S UK - Public Transport
BEIS,UKRI - BBSRC,11/10/2022,T&S UK - Public Transport,Innovation and Skills Group,Corporate Travel Management (North) Ltd,99818586,93.00,T&S UK - Public Transport
BEIS,UKRI - BBSRC,11/10/2022,T&S UK - Public Transport,Innovation and Skills Group,Corporate Travel Management (North) Ltd,99818586,0.25,T&S UK - Public Transport
BEIS,UKRI - BBSRC,11/10/2022,T&S UK - Public Transport,Innovation and Skills Group,Corporate Travel Management (North) Ltd,99818586,94.10,T&S UK - Public Transport
BEIS,UKRI - BBSRC,11/10/2022,T&S UK - Public Transport,Innovation and Skills Group,Corporate Travel Management (North) Ltd,99818586,0.25,T&S UK - Public Transport
BEIS,UKRI - BBSRC,11/10/2022,T&S UK - Public Transport,Innovation and Skills Group,Corporate Travel Management (North) Ltd,99818586,167.60,T&S UK - Public Transport
BEIS,UKRI - BBSRC,11/10/2022,T&S UK - Public Transport,Innovation and Skills Group,Corporate Travel Management (North) Ltd,99818586,0.25,T&S UK - Public Transport
BEIS,UKRI - BBSRC,11/10/2022,T&S UK - Public Transport,Innovation and Skills Group,Corporate Travel Management (North) Ltd,99818586,151.20,T&S UK - Public Transport
BEIS,UKRI - BBSRC,11/10/2022,T&S UK - Public Transport,Innovation and Skills Group,Corporate Travel Management (North) Ltd,99818586,0.25,T&S UK - Public Transport
BEIS,UKRI - BBSRC,11/10/2022,T&S UK - Public Transport,Innovation and Skills Group,Corporate Travel Management (North) Ltd,99818586,116.30,T&S UK - Public Transport
BEIS,UKRI - BBSRC,11/10/2022,T&S UK - Public Transport,Innovation and Skills Group,Corporate Travel Management (North) Ltd,99818586,0.25,T&S UK - Public Transport
BEIS,UKRI - BBSRC,11/10/2022,T&S UK - Public Transport,Innovation and Skills Group,Corporate Travel Management (North) Ltd,99818586,58.10,T&S UK - Public Transport
BEIS,UKRI - BBSRC,11/10/2022,T&S UK - Public Transport,Innovation and Skills Group,Corporate Travel Management (North) Ltd,99818586,2.50,T&S UK - Public Transport
BEIS,UKRI - BBSRC,11/10/2022,T&S UK - Public Transport,Innovation and Skills Group,Corporate Travel Management (North) Ltd,99818586,18.48,T&S UK - Public Transport
BEIS,UKRI - BBSRC,11/10/2022,T&S UK - Public Transport,Innovation and Skills Group,Corporate Travel Management (North) Ltd,99818586,0.25,T&S UK - Public Transport
BEIS,UKRI - BBSRC,11/10/2022,T&S UK - Public Transport,Innovation and Skills Group,Corporate Travel Management (North) Ltd,99818586,13.55,T&S UK - Public Transport
BEIS,UKRI - BBSRC,11/10/2022,T&S UK - Public Transport,Innovation and Skills Group,Corporate Travel Management (North) Ltd,99818586,0.25,T&S UK - Public Transport
BEIS,UKRI - BBSRC,11/10/2022,T&S UK - Public Transport,Innovation and Skills Group,Corporate Travel Management (North) Ltd,99818586,104.70,T&S UK - Public Transport
BEIS,UKRI - BBSRC,11/10/2022,T&S UK - Public Transport,Innovation and Skills Group,Corporate Travel Management (North) Ltd,99818586,0.25,T&S UK - Public Transport
BEIS,UKRI - BBSRC,11/10/2022,T&S UK - Public Transport,Innovation and Skills Group,Corporate Travel Management (North) Ltd,99818586,40.50,T&S UK - Public Transport
BEIS,UKRI - BBSRC,11/10/2022,T&S UK - Public Transport,Innovation and Skills Group,Corporate Travel Management (North) Ltd,99818586,0.25,T&S UK - Public Transport
BEIS,UKRI - BBSRC,11/10/2022,T&S UK - Public Transport,Innovation and Skills Group,Corporate Travel Management (North) Ltd,99818586,101.80,T&S UK - Public Transport
BEIS,UKRI - BBSRC,11/10/2022,T&S UK - Public Transport,Innovation and Skills Group,Corporate Travel Management (North) Ltd,99818586,0.25,T&S UK - Public Transport
BEIS,UKRI - BBSRC,11/10/2022,T&S UK - Public Transport,Innovation and Skills Group,Corporate Travel Management (North) Ltd,99818586,71.60,T&S UK - Public Transport
BEIS,UKRI - BBSRC,11/10/2022,T&S UK - Public Transport,Innovation and Skills Group,Corporate Travel Management (North) Ltd,99818586,0.25,T&S UK - Public Transport
BEIS,UKRI - BBSRC,11/10/2022,T&S UK - Public Transport,Innovation and Skills Group,Corporate Travel Management (North) Ltd,99818586,7.50,T&S UK - Public Transport
BEIS,UKRI - BBSRC,11/10/2022,T&S UK - Public Transport,Innovation and Skills Group,Corporate Travel Management (North) Ltd,99818586,0.25,T&S UK - Public Transport
BEIS,UKRI - BBSRC,11/10/2022,T&S UK - Public Transport,Innovation and Skills Group,Corporate Travel Management (North) Ltd,99818586,52.10,T&S UK - Public Transport
BEIS,UKRI - BBSRC,11/10/2022,T&S UK - Public Transport,Innovation and Skills Group,Corporate Travel Management (North) Ltd,99818586,0.25,T&S UK - Public Transport
BEIS,UKRI - BBSRC,11/10/2022,T&S UK - Public Transport,Innovation and Skills Group,Corporate Travel Management (North) Ltd,99818586,120.80,T&S UK - Public Transport
BEIS,UKRI - BBSRC,11/10/2022,T&S UK - Public Transport,Innovation and Skills Group,Corporate Travel Management (North) Ltd,99818586,0.50,T&S UK - Public Transport
BEIS,UKRI - BBSRC,11/10/2022,T&S UK - Public Transport,Innovation and Skills Group,Corporate Travel Management (North) Ltd,99818586,30.10,T&S UK - Public Transport
BEIS,UKRI - BBSRC,11/10/2022,T&S UK - Public Transport,Innovation and Skills Group,Corporate Travel Management (North) Ltd,99818586,96.90,T&S UK - Public Transport
BEIS,UKRI - BBSRC,11/10/2022,T&S UK - Public Transport,Innovation and Skills Group,Corporate Travel Management (North) Ltd,99818586,0.25,T&S UK - Public Transport
BEIS,UKRI - BBSRC,11/10/2022,T&S UK - Public Transport,Innovation and Skills Group,Corporate Travel Management (North) Ltd,99818586,119.00,T&S UK - Public Transport
BEIS,UKRI - BBSRC,11/10/2022,T&S UK - Public Transport,Innovation and Skills Group,Corporate Travel Management (North) Ltd,99818586,0.25,T&S UK - Public Transport
BEIS,UKRI - BBSRC,11/10/2022,T&S UK - Public Transport,Innovation and Skills Group,Corporate Travel Management (North) Ltd,99818586,40.50,T&S UK - Public Transport
BEIS,UKRI - BBSRC,11/10/2022,T&S UK - Public Transport,Innovation and Skills Group,Corporate Travel Management (North) Ltd,99818586,0.25,T&S UK - Public Transport
BEIS,UKRI - BBSRC,11/10/2022,T&S UK - Public Transport,Innovation and Skills Group,Corporate Travel Management (North) Ltd,99818586,133.20,T&S UK - Public Transport
BEIS,UKRI - BBSRC,11/10/2022,T&S UK - Public Transport,Innovation and Skills Group,Corporate Travel Management (North) Ltd,99818586,0.25,T&S UK - Public Transport
BEIS,UKRI - BBSRC,11/10/2022,T&S UK - Public Transport,Innovation and Skills Group,Corporate Travel Management (North) Ltd,99818586,43.30,T&S UK - Public Transport
BEIS,UKRI - BBSRC,11/10/2022,T&S UK - Public Transport,Innovation and Skills Group,Corporate Travel Management (North) Ltd,99818586,0.50,T&S UK - Public Transport
BEIS,UKRI - BBSRC,11/10/2022,T&S UK - Public Transport,Science Group,Corporate Travel Management (North) Ltd,99818586,0.25,T&S UK - Public Transport
BEIS,UKRI - BBSRC,11/10/2022,T&S UK - Public Transport,Science Group,Corporate Travel Management (North) Ltd,99818586,210.70,T&S UK - Public Transport
BEIS,UKRI - BBSRC,11/10/2022,T&S UK - Public Transport,Science Group,Corporate Travel Management (North) Ltd,99818586,0.25,T&S UK - Public Transport
BEIS,UKRI - BBSRC,11/10/2022,T&S UK - Public Transport,Science Group,Corporate Travel Management (North) Ltd,99818586,157.20,T&S UK - Public Transport
BEIS,UKRI - BBSRC,11/10/2022,T&S UK - Public Transport,Science Group,Corporate Travel Management (North) Ltd,99818586,0.25,T&S UK - Public Transport
BEIS,UKRI - BBSRC,11/10/2022,T&S UK - Public Transport,Science Group,Corporate Travel Management (North) Ltd,99818586,98.60,T&S UK - Public Transport
BEIS,UKRI - BBSRC,11/10/2022,T&S UK - Public Transport,Science Group,Corporate Travel Management (North) Ltd,99818586,0.25,T&S UK - Public Transport
BEIS,UKRI - BBSRC,11/10/2022,T&S UK - Public Transport,Science Group,Corporate Travel Management (North) Ltd,99818586,162.80,T&S UK - Public Transport
BEIS,UKRI - BBSRC,11/10/2022,T&S UK - Public Transport,Science Group,Corporate Travel Management (North) Ltd,99818586,0.25,T&S UK - Public Transport
BEIS,UKRI - BBSRC,11/10/2022,T&S UK - Public Transport,Science Group,Corporate Travel Management (North) Ltd,99818586,48.00,T&S UK - Public Transport
BEIS,UKRI - BBSRC,11/10/2022,T&S UK - Public Transport,Science Group,Corporate Travel Management (North) Ltd,99818586,0.25,T&S UK - Public Transport
BEIS,UKRI - BBSRC,11/10/2022,T&S UK - Public Transport,Science Group,Corporate Travel Management (North) Ltd,99818586,201.00,T&S UK - Public Transport
BEIS,UKRI - BBSRC,11/10/2022,T&S UK - Public Transport,Science Group,Corporate Travel Management (North) Ltd,99818586,0.25,T&S UK - Public Transport
BEIS,UKRI - BBSRC,11/10/2022,T&S UK - Public Transport,Science Group,Corporate Travel Management (North) Ltd,99818586,228.40,T&S UK - Public Transport
BEIS,UKRI - BBSRC,11/10/2022,T&S UK - Public Transport,Science Group,Corporate Travel Management (North) Ltd,99818586,0.25,T&S UK - Public Transport
BEIS,UKRI - BBSRC,11/10/2022,T&S UK - Public Transport,Science Group,Corporate Travel Management (North) Ltd,99818586,128.20,T&S UK - Public Transport
BEIS,UKRI - BBSRC,11/10/2022,T&S UK - Public Transport,Science Group,Corporate Travel Management (North) Ltd,99818586,0.25,T&S UK - Public Transport
BEIS,UKRI - BBSRC,11/10/2022,T&S UK - Public Transport,Science Group,Corporate Travel Management (North) Ltd,99818586,157.20,T&S UK - Public Transport
BEIS,UKRI - BBSRC,11/10/2022,T&S UK - Public Transport,Science Group,Corporate Travel Management (North) Ltd,99818586,0.25,T&S UK - Public Transport
BEIS,UKRI - BBSRC,11/10/2022,T&S UK - Public Transport,Science Group,Corporate Travel Management (North) Ltd,99818586,31.20,T&S UK - Public Transport
BEIS,UKRI - BBSRC,11/10/2022,T&S UK - Public Transport,Science Group,Corporate Travel Management (North) Ltd,99818586,0.25,T&S UK - Public Transport
BEIS,UKRI - BBSRC,11/10/2022,T&S UK - Public Transport,Science Group,Corporate Travel Management (North) Ltd,99818586,32.00,T&S UK - Public Transport
BEIS,UKRI - BBSRC,11/10/2022,T&S UK - Public Transport,Science Group,Corporate Travel Management (North) Ltd,99818586,0.25,T&S UK - Public Transport
BEIS,UKRI - BBSRC,11/10/2022,T&S UK - Public Transport,Science Group,Corporate Travel Management (North) Ltd,99818586,78.60,T&S UK - Public Transport
BEIS,UKRI - BBSRC,11/10/2022,T&S UK - Public Transport,Science Group,Corporate Travel Management (North) Ltd,99818586,0.25,T&S UK - Public Transport
BEIS,UKRI - BBSRC,11/10/2022,T&S UK - Public Transport,Science Group,Corporate Travel Management (North) Ltd,99818586,244.80,T&S UK - Public Transport
BEIS,UKRI - BBSRC,11/10/2022,T&S UK - Public Transport,Science Group,Corporate Travel Management (North) Ltd,99818586,0.50,T&S UK - Public Transport
BEIS,UKRI - BBSRC,11/10/2022,T&S UK - Public Transport,Science Group,Corporate Travel Management (North) Ltd,99818586,122.40,T&S UK - Public Transport
BEIS,UKRI - BBSRC,11/10/2022,T&S UK - Public Transport,Science Group,Corporate Travel Management (North) Ltd,99818586,41.70,T&S UK - Public Transport
BEIS,UKRI - BBSRC,11/10/2022,T&S UK - Public Transport,Science Group,Corporate Travel Management (North) Ltd,99818586,0.25,T&S UK - Public Transport
BEIS,UKRI - BBSRC,11/10/2022,T&S UK - Public Transport,Science Group,Corporate Travel Management (North) Ltd,99818586,60.00,T&S UK - Public Transport
BEIS,UKRI - BBSRC,11/10/2022,T&S UK - Public Transport,Science Group,Corporate Travel Management (North) Ltd,99818586,0.25,T&S UK - Public Transport
BEIS,UKRI - BBSRC,11/10/2022,T&S UK - Public Transport,Science Group,Corporate Travel Management (North) Ltd,99818586,102.70,T&S UK - Public Transport
BEIS,UKRI - BBSRC,11/10/2022,T&S UK - Public Transport,Science Group,Corporate Travel Management (North) Ltd,99818586,0.80,T&S UK - Public Transport
BEIS,UKRI - BBSRC,11/10/2022,T&S UK - Public Transport,Science Group,Corporate Travel Management (North) Ltd,99818586,110.00,T&S UK - Public Transport
BEIS,UKRI - BBSRC,11/10/2022,T&S UK - Public Transport,Science Group,Corporate Travel Management (North) Ltd,99818586,0.25,T&S UK - Public Transport
BEIS,UKRI - BBSRC,11/10/2022,T&S UK - Public Transport,Science Group,Corporate Travel Management (North) Ltd,99818586,118.80,T&S UK - Public Transport
BEIS,UKRI - BBSRC,11/10/2022,T&S UK - Public Transport,Science Group,Corporate Travel Management (North) Ltd,99818586,0.25,T&S UK - Public Transport
BEIS,UKRI - BBSRC,11/10/2022,T&S UK - Public Transport,Science Group,Corporate Travel Management (North) Ltd,99818586,7.30,T&S UK - Public Transport
BEIS,UKRI - BBSRC,11/10/2022,T&S UK - Public Transport,Science Group,Corporate Travel Management (North) Ltd,99818586,0.25,T&S UK - Public Transport
BEIS,UKRI - BBSRC,11/10/2022,T&S UK - Public Transport,Science Group,Corporate Travel Management (North) Ltd,99818586,46.40,T&S UK - Public Transport
BEIS,UKRI - BBSRC,11/10/2022,T&S UK - Public Transport,Science Group,Corporate Travel Management (North) Ltd,99818586,0.25,T&S UK - Public Transport
BEIS,UKRI - BBSRC,11/10/2022,T&S UK - Public Transport,Science Group,Corporate Travel Management (North) Ltd,99818586,78.60,T&S UK - Public Transport
BEIS,UKRI - BBSRC,11/10/2022,T&S UK - Public Transport,Science Group,Corporate Travel Management (North) Ltd,99818586,0.50,T&S UK - Public Transport
BEIS,UKRI - BBSRC,11/10/2022,T&S UK - Public Transport,Science Group,Corporate Travel Management (North) Ltd,99818586,7.30,T&S UK - Public Transport
BEIS,UKRI - BBSRC,11/10/2022,T&S UK - Public Transport,Science Group,Corporate Travel Management (North) Ltd,99818586,37.60,T&S UK - Public Transport
BEIS,UKRI - BBSRC,11/10/2022,T&S UK - Public Transport,Science Group,Corporate Travel Management (North) Ltd,99818586,0.25,T&S UK - Public Transport
BEIS,UKRI - BBSRC,11/10/2022,T&S UK - Public Transport,Science Group,Corporate Travel Management (North) Ltd,99818586,129.50,T&S UK - Public Transport
BEIS,UKRI - BBSRC,11/10/2022,T&S UK - Public Transport,Science Group,Corporate Travel Management (North) Ltd,99818586,0.25,T&S UK - Public Transport
BEIS,UKRI - BBSRC,11/10/2022,T&S UK - Public Transport,Science Group,Corporate Travel Management (North) Ltd,99818586,39.90,T&S UK - Public Transport
BEIS,UKRI - BBSRC,11/10/2022,T&S UK - Public Transport,Science Group,Corporate Travel Management (North) Ltd,99818586,0.25,T&S UK - Public Transport
BEIS,UKRI - BBSRC,11/10/2022,T&S UK - Public Transport,Science Group,Corporate Travel Management (North) Ltd,99818586,242.80,T&S UK - Public Transport
BEIS,UKRI - BBSRC,11/10/2022,T&S UK - Public Transport,Science Group,Corporate Travel Management (North) Ltd,99818586,0.80,T&S UK - Public Transport
BEIS,UKRI - BBSRC,11/10/2022,T&S UK - Public Transport,Science Group,Corporate Travel Management (North) Ltd,99818586,90.00,T&S UK - Public Transport
BEIS,UKRI - BBSRC,11/10/2022,T&S UK - Public Transport,Science Group,Corporate Travel Management (North) Ltd,99818586,0.25,T&S UK - Public Transport
BEIS,UKRI - BBSRC,11/10/2022,T&S UK - Public Transport,Science Group,Corporate Travel Management (North) Ltd,99818586,157.20,T&S UK - Public Transport
BEIS,UKRI - BBSRC,11/10/2022,T&S UK - Public Transport,Science Group,Corporate Travel Management (North) Ltd,99818586,0.25,T&S UK - Public Transport
BEIS,UKRI - BBSRC,11/10/2022,T&S UK - Public Transport,Science Group,Corporate Travel Management (North) Ltd,99818586,281.20,T&S UK - Public Transport
BEIS,UKRI - BBSRC,11/10/2022,T&S UK - Public Transport,Science Group,Corporate Travel Management (North) Ltd,99818586,0.25,T&S UK - Public Transport
BEIS,UKRI - BBSRC,11/10/2022,T&S UK - Public Transport,Science Group,Corporate Travel Management (North) Ltd,99818586,133.80,T&S UK - Public Transport
BEIS,UKRI - BBSRC,11/10/2022,T&S UK - Public Transport,Science Group,Corporate Travel Management (North) Ltd,99818586,0.25,T&S UK - Public Transport
BEIS,UKRI - BBSRC,11/10/2022,T&S UK - Public Transport,Science Group,Corporate Travel Management (North) Ltd,99818586,208.00,T&S UK - Public Transport
BEIS,UKRI - BBSRC,11/10/2022,T&S UK - Public Transport,Science Group,Corporate Travel Management (North) Ltd,99818586,0.25,T&S UK - Public Transport
BEIS,UKRI - BBSRC,11/10/2022,T&S UK - Public Transport,Science Group,Corporate Travel Management (North) Ltd,99818586,55.00,T&S UK - Public Transport
BEIS,UKRI - BBSRC,11/10/2022,T&S UK - Public Transport,Science Group,Corporate Travel Management (North) Ltd,99818586,0.50,T&S UK - Public Transport
BEIS,UKRI - BBSRC,11/10/2022,T&S UK - Public Transport,Science Group,Corporate Travel Management (North) Ltd,99818586,137.00,T&S UK - Public Transport
BEIS,UKRI - BBSRC,11/10/2022,T&S UK - Public Transport,Science Group,Corporate Travel Management (North) Ltd,99818586,0.25,T&S UK - Public Transport
BEIS,UKRI - BBSRC,11/10/2022,T&S UK - Public Transport,Science Group,Corporate Travel Management (North) Ltd,99818586,80.30,T&S UK - Public Transport
BEIS,UKRI - BBSRC,11/10/2022,T&S UK - Public Transport,Science Group,Corporate Travel Management (North) Ltd,99818586,0.25,T&S UK - Public Transport
BEIS,UKRI - BBSRC,11/10/2022,T&S UK - Public Transport,Science Group,Corporate Travel Management (North) Ltd,99818586,92.60,T&S UK - Public Transport
BEIS,UKRI - BBSRC,11/10/2022,T&S UK - Public Transport,Science Group,Corporate Travel Management (North) Ltd,99818586,0.25,T&S UK - Public Transport
BEIS,UKRI - BBSRC,11/10/2022,T&S UK - Public Transport,Science Group,Corporate Travel Management (North) Ltd,99818586,185.00,T&S UK - Public Transport
BEIS,UKRI - BBSRC,11/10/2022,T&S UK - Public Transport,Science Group,Corporate Travel Management (North) Ltd,99818586,0.25,T&S UK - Public Transport
BEIS,UKRI - BBSRC,11/10/2022,T&S UK - Public Transport,Science Group,Corporate Travel Management (North) Ltd,99818586,121.70,T&S UK - Public Transport
BEIS,UKRI - BBSRC,11/10/2022,T&S UK - Public Transport,Science Group,Corporate Travel Management (North) Ltd,99818586,0.25,T&S UK - Public Transport
BEIS,UKRI - BBSRC,11/10/2022,T&S UK - Public Transport,Science Group,Corporate Travel Management (North) Ltd,99818586,179.90,T&S UK - Public Transport
BEIS,UKRI - BBSRC,11/10/2022,T&S UK - Public Transport,Science Group,Corporate Travel Management (North) Ltd,99818586,0.25,T&S UK - Public Transport
BEIS,UKRI - BBSRC,11/10/2022,T&S UK - Public Transport,Science Group,Corporate Travel Management (North) Ltd,99818586,157.20,T&S UK - Public Transport
BEIS,UKRI - BBSRC,11/10/2022,T&S UK - Public Transport,Science Group,Corporate Travel Management (North) Ltd,99818586,0.50,T&S UK - Public Transport
BEIS,UKRI - BBSRC,11/10/2022,T&S UK - Public Transport,Science Group,Corporate Travel Management (North) Ltd,99818586,92.60,T&S UK - Public Transport
BEIS,UKRI - BBSRC,11/10/2022,T&S UK - Public Transport,Science Group,Corporate Travel Management (North) Ltd,99818586,50.50,T&S UK - Public Transport
BEIS,UKRI - BBSRC,11/10/2022,T&S UK - Public Transport,Science Group,Corporate Travel Management (North) Ltd,99818586,0.75,T&S UK - Public Transport
BEIS,UKRI - BBSRC,11/10/2022,T&S UK - Public Transport,Science Group,Corporate Travel Management (North) Ltd,99818586,246.30,T&S UK - Public Transport
BEIS,UKRI - BBSRC,11/10/2022,T&S UK - Public Transport,Science Group,Corporate Travel Management (North) Ltd,99818586,119.40,T&S UK - Public Transport
BEIS,UKRI - BBSRC,11/10/2022,T&S UK - Public Transport,Science Group,Corporate Travel Management (North) Ltd,99818586,20.30,T&S UK - Public Transport
BEIS,UKRI - BBSRC,11/10/2022,T&S UK - Public Transport,Science Group,Corporate Travel Management (North) Ltd,99818586,0.25,T&S UK - Public Transport
BEIS,UKRI - BBSRC,11/10/2022,T&S UK - Public Transport,Science Group,Corporate Travel Management (North) Ltd,99818586,104.70,T&S UK - Public Transport
BEIS,UKRI - BBSRC,11/10/2022,T&S UK - Public Transport,Science Group,Corporate Travel Management (North) Ltd,99818586,0.25,T&S UK - Public Transport
BEIS,UKRI - BBSRC,11/10/2022,T&S UK - Public Transport,Science Group,Corporate Travel Management (North) Ltd,99818586,133.20,T&S UK - Public Transport
BEIS,UKRI - BBSRC,11/10/2022,T&S UK - Public Transport,Science Group,Corporate Travel Management (North) Ltd,99818586,0.25,T&S UK - Public Transport
BEIS,UKRI - BBSRC,11/10/2022,T&S UK - Public Transport,Science Group,Corporate Travel Management (North) Ltd,99818586,340.00,T&S UK - Public Transport
BEIS,UKRI - BBSRC,11/10/2022,T&S UK - Public Transport,Science Group,Corporate Travel Management (North) Ltd,99818586,0.25,T&S UK - Public Transport
BEIS,UKRI - BBSRC,11/10/2022,T&S UK - Public Transport,Science Group,Corporate Travel Management (North) Ltd,99818586,276.20,T&S UK - Public Transport
BEIS,UKRI - BBSRC,11/10/2022,T&S UK - Public Transport,Science Group,Corporate Travel Management (North) Ltd,99818586,0.25,T&S UK - Public Transport
BEIS,UKRI - BBSRC,11/10/2022,T&S UK - Public Transport,Science Group,Corporate Travel Management (North) Ltd,99818586,136.60,T&S UK - Public Transport
BEIS,UKRI - BBSRC,11/10/2022,T&S UK - Public Transport,Science Group,Corporate Travel Management (North) Ltd,99818586,0.25,T&S UK - Public Transport
BEIS,UKRI - BBSRC,11/10/2022,T&S UK - Public Transport,Science Group,Corporate Travel Management (North) Ltd,99818586,110.70,T&S UK - Public Transport
BEIS,UKRI - BBSRC,11/10/2022,T&S UK - Public Transport,Science Group,Corporate Travel Management (North) Ltd,99818586,0.25,T&S UK - Public Transport
BEIS,UKRI - BBSRC,11/10/2022,T&S UK - Public Transport,Science Group,Corporate Travel Management (North) Ltd,99818586,45.60,T&S UK - Public Transport
BEIS,UKRI - BBSRC,11/10/2022,T&S UK - Public Transport,Science Group,Corporate Travel Management (North) Ltd,99818586,0.25,T&S UK - Public Transport
BEIS,UKRI - BBSRC,11/10/2022,T&S UK - Public Transport,Science Group,Corporate Travel Management (North) Ltd,99818586,113.20,T&S UK - Public Transport
BEIS,UKRI - BBSRC,11/10/2022,T&S UK - Public Transport,Science Group,Corporate Travel Management (North) Ltd,99818586,0.25,T&S UK - Public Transport
BEIS,UKRI - BBSRC,11/10/2022,T&S UK - Public Transport,Science Group,Corporate Travel Management (North) Ltd,99818586,301.10,T&S UK - Public Transport
BEIS,UKRI - BBSRC,11/10/2022,T&S UK - Public Transport,Science Group,Corporate Travel Management (North) Ltd,99818586,5.00,T&S UK - Public Transport
BEIS,UKRI - BBSRC,11/10/2022,T&S UK - Public Transport,Science Group,Corporate Travel Management (North) Ltd,99818586,-305.00,T&S UK - Public Transport
BEIS,UKRI - BBSRC,11/10/2022,T&S UK - Public Transport,Science Group,Corporate Travel Management (North) Ltd,99818586,0.25,T&S UK - Public Transport
BEIS,UKRI - BBSRC,11/10/2022,T&S UK - Public Transport,Science Group,Corporate Travel Management (North) Ltd,99818586,157.20,T&S UK - Public Transport
BEIS,UKRI - BBSRC,11/10/2022,T&S UK - Public Transport,Science Group,Corporate Travel Management (North) Ltd,99818586,0.25,T&S UK - Public Transport
BEIS,UKRI - BBSRC,11/10/2022,T&S UK - Public Transport,Science Group,Corporate Travel Management (North) Ltd,99818586,101.20,T&S UK - Public Transport
BEIS,UKRI - BBSRC,11/10/2022,T&S UK - Public Transport,Science Group,Corporate Travel Management (North) Ltd,99818586,0.25,T&S UK - Public Transport
BEIS,UKRI - BBSRC,11/10/2022,T&S UK - Public Transport,Science Group,Corporate Travel Management (North) Ltd,99818586,158.70,T&S UK - Public Transport
BEIS,UKRI - BBSRC,11/10/2022,T&S UK - Public Transport,Science Group,Corporate Travel Management (North) Ltd,99818586,0.25,T&S UK - Public Transport
BEIS,UKRI - BBSRC,11/10/2022,T&S UK - Public Transport,Science Group,Corporate Travel Management (North) Ltd,99818586,74.00,T&S UK - Public Transport
BEIS,UKRI - BBSRC,11/10/2022,T&S UK - Public Transport,Science Group,Corporate Travel Management (North) Ltd,99818586,0.25,T&S UK - Public Transport
BEIS,UKRI - BBSRC,11/10/2022,T&S UK - Public Transport,Science Group,Corporate Travel Management (North) Ltd,99818586,282.00,T&S UK - Public Transport
BEIS,UKRI - BBSRC,11/10/2022,T&S UK - Public Transport,Science Group,Corporate Travel Management (North) Ltd,99818586,0.25,T&S UK - Public Transport
BEIS,UKRI - BBSRC,11/10/2022,T&S UK - Public Transport,Science Group,Corporate Travel Management (North) Ltd,99818586,100.40,T&S UK - Public Transport
BEIS,UKRI - BBSRC,11/10/2022,T&S UK - Public Transport,Science Group,Corporate Travel Management (North) Ltd,99818586,0.25,T&S UK - Public Transport
BEIS,UKRI - BBSRC,11/10/2022,T&S UK - Public Transport,Science Group,Corporate Travel Management (North) Ltd,99818586,74.00,T&S UK - Public Transport
BEIS,UKRI - BBSRC,11/10/2022,T&S UK - Public Transport,Science Group,Corporate Travel Management (North) Ltd,99818586,0.25,T&S UK - Public Transport
BEIS,UKRI - BBSRC,11/10/2022,T&S UK - Public Transport,Science Group,Corporate Travel Management (North) Ltd,99818586,64.30,T&S UK - Public Transport
BEIS,UKRI - BBSRC,11/10/2022,T&S UK - Public Transport,Science Group,Corporate Travel Management (North) Ltd,99818586,0.25,T&S UK - Public Transport
BEIS,UKRI - BBSRC,11/10/2022,T&S UK - Public Transport,Science Group,Corporate Travel Management (North) Ltd,99818586,36.30,T&S UK - Public Transport
BEIS,UKRI - BBSRC,11/10/2022,T&S UK - Public Transport,Science Group,Corporate Travel Management (North) Ltd,99818586,0.25,T&S UK - Public Transport
BEIS,UKRI - BBSRC,11/10/2022,T&S UK - Public Transport,Science Group,Corporate Travel Management (North) Ltd,99818586,133.20,T&S UK - Public Transport
BEIS,UKRI - BBSRC,11/10/2022,T&S UK - Public Transport,Science Group,Corporate Travel Management (North) Ltd,99818586,0.32,T&S UK - Public Transport
BEIS,UKRI - BBSRC,11/10/2022,T&S UK - Public Transport,Science Group – Admin Function,Corporate Travel Management (North) Ltd,99818586,0.25,T&S UK - Public Transport
BEIS,UKRI - BBSRC,11/10/2022,T&S UK - Public Transport,Science Group – Admin Function,Corporate Travel Management (North) Ltd,99818586,155.45,T&S UK - Public Transport
BEIS,UKRI - BBSRC,11/10/2022,T&S UK - Public Transport,Science Group – Admin Function,Corporate Travel Management (North) Ltd,99818586,0.25,T&S UK - Public Transport
BEIS,UKRI - BBSRC,11/10/2022,T&S UK - Public Transport,Science Group – Admin Function,Corporate Travel Management (North) Ltd,99818586,157.60,T&S UK - Public Transport
BEIS,UKRI - BBSRC,11/10/2022,T&S UK - Public Transport,Science Group – Admin Function,Corporate Travel Management (North) Ltd,99818586,5.00,T&S UK - Public Transport
BEIS,UKRI - BBSRC,11/10/2022,T&S UK - Public Transport,Science Group – Admin Function,Corporate Travel Management (North) Ltd,99818586,-188.80,T&S UK - Public Transport
BEIS,UKRI - BBSRC,11/10/2022,T&S UK - Public Transport,Science Group – Admin Function,Corporate Travel Management (North) Ltd,99818586,0.25,T&S UK - Public Transport
BEIS,UKRI - BBSRC,11/10/2022,T&S UK - Public Transport,Science Group – Admin Function,Corporate Travel Management (North) Ltd,99818586,297.60,T&S UK - Public Transport
BEIS,UKRI - BBSRC,11/10/2022,T&S UK - Vehicle Hire,CE - Chief Executive,Corporate Travel Management (North) Ltd,99818586,2.50,T&S UK - Vehicle Hire
BEIS,UKRI - BBSRC,11/10/2022,T&S UK - Vehicle Hire,CE - Chief Executive,Corporate Travel Management (North) Ltd,99818586,47.33,T&S UK - Vehicle Hire
BEIS,UKRI - BBSRC,11/10/2022,T&S UK - Vehicle Hire,CE - Chief Executive,Corporate Travel Management (North) Ltd,99818586,0.50,T&S UK - Vehicle Hire
BEIS,UKRI - BBSRC,11/10/2022,T&S UK - Vehicle Hire,Innovation and Skills Group,Corporate Travel Management (North) Ltd,99818586,5.00,T&S UK - Vehicle Hire
BEIS,UKRI - BBSRC,11/10/2022,T&S UK - Vehicle Hire,Innovation and Skills Group,Corporate Travel Management (North) Ltd,99818586,27.48,T&S UK - Vehicle Hire
BEIS,UKRI - BBSRC,11/10/2022,T&S UK - Vehicle Hire,Innovation and Skills Group,Corporate Travel Management (North) Ltd,99818586,18.97,T&S UK - Vehicle Hire
BEIS,UKRI - BBSRC,11/10/2022,T&S UK - Vehicle Hire,Innovation and Skills Group,Corporate Travel Management (North) Ltd,99818586,5.00,T&S UK - Vehicle Hire
BEIS,UKRI - BBSRC,11/10/2022,T&S UK - Vehicle Hire,Innovation and Skills Group,Corporate Travel Management (North) Ltd,99818586,27.35,T&S UK - Vehicle Hire
BEIS,UKRI - BBSRC,11/10/2022,T&S UK - Vehicle Hire,Innovation and Skills Group,Corporate Travel Management (North) Ltd,99818586,19.27,T&S UK - Vehicle Hire
BEIS,UKRI - BBSRC,11/10/2022,T&S UK - Vehicle Hire,Innovation and Skills Group,Corporate Travel Management (North) Ltd,99818586,5.00,T&S UK - Vehicle Hire
BEIS,UKRI - BBSRC,11/10/2022,T&S UK - Vehicle Hire,Innovation and Skills Group,Corporate Travel Management (North) Ltd,99818586,23.89,T&S UK - Vehicle Hire
BEIS,UKRI - BBSRC,11/10/2022,T&S UK - Vehicle Hire,Innovation and Skills Group,Corporate Travel Management (North) Ltd,99818586,34.12,T&S UK - Vehicle Hire
BEIS,UKRI - BBSRC,11/10/2022,T&S UK - Vehicle Hire,Innovation and Skills Group,Corporate Travel Management (North) Ltd,99818586,2.50,T&S UK - Vehicle Hire
BEIS,UKRI - BBSRC,11/10/2022,T&S UK - Vehicle Hire,Innovation and Skills Group,Corporate Travel Management (North) Ltd,99818586,21.73,T&S UK - Vehicle Hire
BEIS,UKRI - BBSRC,11/10/2022,T&S UK - Vehicle Hire,Innovation and Skills Group,Corporate Travel Management (North) Ltd,99818586,2.50,T&S UK - Vehicle Hire
BEIS,UKRI - BBSRC,11/10/2022,T&S UK - Vehicle Hire,Innovation and Skills Group,Corporate Travel Management (North) Ltd,99818586,24.83,T&S UK - Vehicle Hire
BEIS,UKRI - BBSRC,11/10/2022,T&S UK - Vehicle Hire,Innovation and Skills Group,Corporate Travel Management (North) Ltd,99818586,2.50,T&S UK - Vehicle Hire
BEIS,UKRI - BBSRC,11/10/2022,T&S UK - Vehicle Hire,Innovation and Skills Group,Corporate Travel Management (North) Ltd,99818586,18.48,T&S UK - Vehicle Hire
BEIS,UKRI - BBSRC,11/10/2022,T&S UK - Vehicle Hire,Innovation and Skills Group,Corporate Travel Management (North) Ltd,99818586,4.50,T&S UK - Vehicle Hire
BEIS,UKRI - BBSRC,11/10/2022,T&S UK - Vehicle Hire,Science Group,Corporate Travel Management (North) Ltd,99818586,2.50,T&S UK - Vehicle Hire
BEIS,UKRI - BBSRC,11/10/2022,T&S UK - Vehicle Hire,Science Group,Corporate Travel Management (North) Ltd,99818586,159.88,T&S UK - Vehicle Hire
BEIS,UKRI - BBSRC,11/10/2022,T&S UK - Vehicle Hire,Science Group,Corporate Travel Management (North) Ltd,99818586,5.00,T&S UK - Vehicle Hire
BEIS,UKRI - BBSRC,11/10/2022,T&S UK - Vehicle Hire,Science Group,Corporate Travel Management (North) Ltd,99818586,19.91,T&S UK - Vehicle Hire
BEIS,UKRI - BBSRC,11/10/2022,T&S UK - Vehicle Hire,Science Group,Corporate Travel Management (North) Ltd,99818586,19.91,T&S UK - Vehicle Hire
BEIS,UKRI - BBSRC,11/10/2022,T&S UK - Vehicle Hire,Science Group,Corporate Travel Management (North) Ltd,99818586,2.50,T&S UK - Vehicle Hire
BEIS,UKRI - BBSRC,11/10/2022,T&S UK - Vehicle Hire,Science Group,Corporate Travel Management (North) Ltd,99818586,22.29,T&S UK - Vehicle Hire
BEIS,UKRI - BBSRC,11/10/2022,T&S UK - Vehicle Hire,Science Group,Corporate Travel Management (North) Ltd,99818586,2.00,T&S UK - Vehicle Hire
BEIS,UKRI - BBSRC,11/10/2022,T&S UK - Subsistence,Innovation and Skills Group CDSU,Unspecified,99818684,46.50,T&S UK - Subsistence
BEIS,UKRI - BBSRC,11/10/2022,T&S UK - Subsistence,FG - Estates,Unspecified,99818685,14.14,T&S UK - Subsistence
BEIS,UKRI - BBSRC,11/10/2022,T&S UK - Vehicle Hire,FG - Estates,Unspecified,99818685,70.00,T&S UK - Vehicle Hire
BEIS,UKRI - BBSRC,11/10/2022,T&S UK - Public Transport,Science Group,Unspecified,99818686,12.60,T&S UK - Public Transport
BEIS,UKRI - BBSRC,11/10/2022,T&S UK - Subsistence,Science Group,Unspecified,99818686,4.80,T&S UK - Subsistence
BEIS,UKRI - BBSRC,11/10/2022,T&S UK - Subsistence,Science Group,Unspecified,99818686,10.00,T&S UK - Subsistence
BEIS,UKRI - BBSRC,11/10/2022,T&S UK - Subsistence,Science Group,Unspecified,99818686,5.69,T&S UK - Subsistence
BEIS,UKRI - BBSRC,12/10/2022,Unspecified,Balance Sheet,HM Revenue & Customs,99816328,2332.86,PAYE Payable Salaries
BEIS,UKRI - BBSRC,12/10/2022,Unspecified,FG - Accounts & Business Planning,HM Revenue & Customs,99816329,34.00,Apprenticeship Levy
BEIS,UKRI - BBSRC,12/10/2022,Unspecified,Balance Sheet,HM Revenue & Customs,99817731,79483.05,PAYE Payable Salaries
BEIS,UKRI - BBSRC,12/10/2022,Unspecified,Balance Sheet,HM Revenue & Customs,99817732,6410.00,Student Loans
BEIS,UKRI - BBSRC,12/10/2022,Unspecified,Balance Sheet,HM Revenue & Customs,99817733,110150.04,NI Payable Salaries
BEIS,UKRI - BBSRC,12/10/2022,Unspecified,FG - Accounts & Business Planning,HM Revenue & Customs,99817734,2732.00,Apprenticeship Levy
BEIS,UKRI - BBSRC,12/10/2022,Other Programme Costs,Innovation and Skills Group CDSU,Storey’s Field Community Trust,99818578,428.11,Other Programme Costs
BEIS,UKRI - BBSRC,12/10/2022,T&S UK - Subsistence,CE - IRU,Unspecified,99819778,6.65,T&S UK - Subsistence
BEIS,UKRI - BBSRC,12/10/2022,T&S UK - Subsistence,Innovation and Skills Group,Unspecified,99819779,4.95,T&S UK - Subsistence
BEIS,UKRI - BBSRC,12/10/2022,T&S UK - Subsistence,Innovation and Skills Group,Unspecified,99819779,4.91,T&S UK - Subsistence
BEIS,UKRI - BBSRC,12/10/2022,Health & Safety (inc. Medicals & Opticians),Innovation and Skills Group,Unspecified,99819780,25.00,Health & Safety (inc. Medicals & Opticians)
BEIS,UKRI - BBSRC,12/10/2022,T&S UK - Mileage,Innovation and Skills Group,Unspecified,99819780,66.15,T&S UK - Mileage
BEIS,UKRI - BBSRC,12/10/2022,T&S UK - Parking Tolls Congestion Charges,Innovation and Skills Group,Unspecified,99819780,17.70,T&S UK - Parking Tolls Congestion Charges
BEIS,UKRI - BBSRC,12/10/2022,T&S UK - Subsistence,Innovation and Skills Group CDSU,Unspecified,99819781,22.61,T&S UK - Subsistence
BEIS,UKRI - BBSRC,12/10/2022,T&S UK - Subsistence,Innovation and Skills Group CDSU,Unspecified,99819781,20.00,T&S UK - Subsistence
BEIS,UKRI - BBSRC,13/10/2022,Union Deductions,Balance Sheet,PCS Union,99817735,45.21,Union Deductions
BEIS,UKRI - BBSRC,13/10/2022,Voluntary Deductions,Balance Sheet,Swindon Office Sports and Social Club,99817736,46.00,Voluntary Deductions
BEIS,UKRI - BBSRC,13/10/2022,Unspecified,Balance Sheet,Unspecified,99817737,20428.78,Ees Pension Deductions - JSS
BEIS,UKRI - BBSRC,13/10/2022,Unspecified,Balance Sheet,Unspecified,99817738,83895.03,Ers Pension Deductions - JSS
BEIS,UKRI - BBSRC,13/10/2022,Unspecified,Balance Sheet,Scottish Widows Life Assurance,99817739,447.16,Partnership Pension Deductions
BEIS,UKRI - BBSRC,13/10/2022,Unspecified,Balance Sheet,Scottish Widows Life Assurance,99817740,10.00,Other Pension Deductions
BEIS,UKRI - BBSRC,13/10/2022,Unspecified,Balance Sheet,Cabinet Office RM Shared Services,99817741,13.30,Ers Pension Deductions - JSS
BEIS,UKRI - BBSRC,13/10/2022,Unspecified,Balance Sheet,Cabinet Office RM Shared Services,99817742,13147.31,Ees Pension Deductions - MyCSP
BEIS,UKRI - BBSRC,13/10/2022,Unspecified,Balance Sheet,Cabinet Office RM Shared Services,99817743,64749.14,Ers Pension Deductions - MyCSP
BEIS,UKRI - BBSRC,13/10/2022,Nursery Deductions,Balance Sheet,UKRI - Engineering & Physical Sciences Research Council,99817744,1315.00,Nursery Deductions
BEIS,UKRI - BBSRC,13/10/2022,Unspecified,Balance Sheet,Unspecified,99817745,388.26,Ees Pension Deductions - MRC
BEIS,UKRI - BBSRC,13/10/2022,Unspecified,Balance Sheet,Unspecified,99817746,955.72,Ers Pension Deductions - MRC
BEIS,UKRI - BBSRC,13/10/2022,Unspecified,FG - Estates,Womble Bond Dickinson LLP,99820403,1633.80,Legal & Professional Services
BEIS,UKRI - BBSRC,13/10/2022,T&S UK - Parking Tolls Congestion Charges,Science Group,Unspecified,99820627,24.80,T&S UK - Parking Tolls Congestion Charges
BEIS,UKRI - BBSRC,13/10/2022,T&S UK - Subsistence,Science Group,Unspecified,99820627,3.00,T&S UK - Subsistence
BEIS,UKRI - BBSRC,13/10/2022,Health & Safety (inc. Medicals & Opticians),Innovation and Skills Group,Unspecified,99820628,16.99,Health & Safety (inc. Medicals & Opticians)
BEIS,UKRI - BBSRC,13/10/2022,T&S UK - Mileage,Innovation and Skills Group,Unspecified,99820629,131.40,T&S UK - Mileage
BEIS,UKRI - BBSRC,13/10/2022,T&S UK - Parking Tolls Congestion Charges,Innovation and Skills Group,Unspecified,99820629,12.00,T&S UK - Parking Tolls Congestion Charges
BEIS,UKRI - BBSRC,13/10/2022,T&S UK - Subsistence,Innovation and Skills Group,Unspecified,99820629,15.00,T&S UK - Subsistence
BEIS,UKRI - BBSRC,13/10/2022,T&S UK - Subsistence,Innovation and Skills Group,Unspecified,99820629,9.55,T&S UK - Subsistence
BEIS,UKRI - BBSRC,14/10/2022,T&S UK - Vehicle Hire,CIMG - Director,Enterprise Rent-A-Car UK Ltd,99820794,150.55,T&S UK - Vehicle Hire
BEIS,UKRI - BBSRC,14/10/2022,T&S UK - Vehicle Hire,CIMG - Director,Enterprise Rent-A-Car UK Ltd,99820794,30.11,T&S UK - Vehicle Hire
BEIS,UKRI - BBSRC,14/10/2022,T&S UK - Vehicle Hire,FG - Estates,Enterprise Rent-A-Car UK Ltd,99820794,66.77,T&S UK - Vehicle Hire
BEIS,UKRI - BBSRC,14/10/2022,T&S UK - Vehicle Hire,FG - Estates,Enterprise Rent-A-Car UK Ltd,99820794,13.35,T&S UK - Vehicle Hire
BEIS,UKRI - BBSRC,14/10/2022,Research Grant Expenditure,SPF W1 EMBL EBI,EMBL (European Molecular Biology Laboratory),99821888,12996.47,Research Grant Expenditure
BEIS,UKRI - BBSRC,14/10/2022,T&S UK - Subsistence,Innovation and Skills Group CDSU,Unspecified,99822015,28.69,T&S UK - Subsistence
BEIS,UKRI - BBSRC,14/10/2022,T&S UK - Subsistence,CE - CPS,Unspecified,99822016,21.04,T&S UK - Subsistence
BEIS,UKRI - BBSRC,17/10/2022,Training Awards - Postgraduates,FG - Accounts & Business Planning,University of Sheffield,99816572,6623.97,Training Awards - Postgraduates
BEIS,UKRI - BBSRC,17/10/2022,Training Awards - Postgraduates,FG - Accounts & Business Planning,University of Oxford,99816573,6623.97,Training Awards - Postgraduates
BEIS,UKRI - BBSRC,17/10/2022,Training Awards - Postgraduates,FG - Accounts & Business Planning,University of Oxford,99816574,6623.97,Training Awards - Postgraduates
BEIS,UKRI - BBSRC,17/10/2022,Training Awards - Postgraduates,FG - Accounts & Business Planning,National Institute For Agricultural Botany (NIAB),99816575,6495.56,Training Awards - Postgraduates
BEIS,UKRI - BBSRC,17/10/2022,Training Awards - Postgraduates,FG - Accounts & Business Planning,The University of Manchester,99816576,6495.56,Training Awards - Postgraduates
BEIS,UKRI - BBSRC,17/10/2022,Training Awards - Postgraduates,FG - Accounts & Business Planning,National Institute For Agricultural Botany (NIAB),99816577,6495.56,Training Awards - Postgraduates
BEIS,UKRI - BBSRC,17/10/2022,Training Awards - Postgraduates,FG - Accounts & Business Planning,National Institute For Agricultural Botany (NIAB),99816578,6495.56,Training Awards - Postgraduates
BEIS,UKRI - BBSRC,17/10/2022,Training Awards - Postgraduates,FG - Accounts & Business Planning,National Institute For Agricultural Botany (NIAB),99816579,6495.56,Training Awards - Postgraduates
BEIS,UKRI - BBSRC,17/10/2022,Training Awards - Postgraduates,FG - Accounts & Business Planning,National Institute For Agricultural Botany (NIAB),99816580,6495.56,Training Awards - Postgraduates
BEIS,UKRI - BBSRC,17/10/2022,Training Awards - Postgraduates,FG - Accounts & Business Planning,National Institute For Agricultural Botany (NIAB),99816581,6495.56,Training Awards - Postgraduates
BEIS,UKRI - BBSRC,17/10/2022,Training Awards - Postgraduates,FG - Accounts & Business Planning,National Institute For Agricultural Botany (NIAB),99816582,6495.56,Training Awards - Postgraduates
BEIS,UKRI - BBSRC,17/10/2022,Training Awards - Postgraduates,FG - Accounts & Business Planning,National Institute For Agricultural Botany (NIAB),99816583,6495.56,Training Awards - Postgraduates
BEIS,UKRI - BBSRC,17/10/2022,Training Awards - Postgraduates,FG - Accounts & Business Planning,Queen Mary University of London,99816584,6876.63,Training Awards - Postgraduates
BEIS,UKRI - BBSRC,17/10/2022,Training Awards - Postgraduates,FG - Accounts & Business Planning,The University of Manchester,99816585,6495.56,Training Awards - Postgraduates
BEIS,UKRI - BBSRC,17/10/2022,Training Awards - Postgraduates,FG - Accounts & Business Planning,University of York,99816586,6495.56,Training Awards - Postgraduates
BEIS,UKRI - BBSRC,17/10/2022,Training Awards - Postgraduates,FG - Accounts & Business Planning,University of Warwick,99816587,6495.56,Training Awards - Postgraduates
BEIS,UKRI - BBSRC,17/10/2022,Training Awards - Postgraduates,FG - Accounts & Business Planning,University of Nottingham,99816588,6495.56,Training Awards - Postgraduates
BEIS,UKRI - BBSRC,17/10/2022,Training Awards - Postgraduates,FG - Accounts & Business Planning,University of Liverpool,99816589,6495.56,Training Awards - Postgraduates
BEIS,UKRI - BBSRC,17/10/2022,Training Awards - Postgraduates,FG - Accounts & Business Planning,University of Liverpool,99816590,6495.56,Training Awards - Postgraduates
BEIS,UKRI - BBSRC,17/10/2022,Training Awards - Postgraduates,FG - Accounts & Business Planning,University of Exeter,99816591,6495.56,Training Awards - Postgraduates
BEIS,UKRI - BBSRC,17/10/2022,Training Awards - Postgraduates,FG - Accounts & Business Planning,Teesside University,99816592,6495.56,Training Awards - Postgraduates
BEIS,UKRI - BBSRC,17/10/2022,Training Awards - Postgraduates,FG - Accounts & Business Planning,Quadram Institute Bioscience,99816593,6495.56,Training Awards - Postgraduates
BEIS,UKRI - BBSRC,17/10/2022,Training Awards - Postgraduates,FG - Accounts & Business Planning,Queen Mary University of London,99816594,6995.56,Training Awards - Postgraduates
BEIS,UKRI - BBSRC,17/10/2022,Training Awards - Postgraduates,FG - Accounts & Business Planning,University of Cambridge,99816595,6495.56,Training Awards - Postgraduates
BEIS,UKRI - BBSRC,17/10/2022,Training Awards - Postgraduates,FG - Accounts & Business Planning,University of York,99816596,6495.56,Training Awards - Postgraduates
BEIS,UKRI - BBSRC,17/10/2022,Training Awards - Postgraduates,FG - Accounts & Business Planning,University of Strathclyde,99816597,6495.56,Training Awards - Postgraduates
BEIS,UKRI - BBSRC,17/10/2022,Training Awards - Postgraduates,FG - Accounts & Business Planning,Robert Gordon University,99816598,6495.56,Training Awards - Postgraduates
BEIS,UKRI - BBSRC,17/10/2022,Training Awards - Postgraduates,FG - Accounts & Business Planning,The University of Manchester,99816599,6495.56,Training Awards - Postgraduates
BEIS,UKRI - BBSRC,17/10/2022,Training Awards - Postgraduates,FG - Accounts & Business Planning,University of Edinburgh,99816600,6495.56,Training Awards - Postgraduates
BEIS,UKRI - BBSRC,17/10/2022,Training Awards - Postgraduates,FG - Accounts & Business Planning,University of Edinburgh,99816601,6495.56,Training Awards - Postgraduates
BEIS,UKRI - BBSRC,17/10/2022,Training Awards - Postgraduates,FG - Accounts & Business Planning,University of Edinburgh,99816602,6495.56,Training Awards - Postgraduates
BEIS,UKRI - BBSRC,17/10/2022,Training Awards - Postgraduates,FG - Accounts & Business Planning,University of Edinburgh,99816603,6495.56,Training Awards - Postgraduates
BEIS,UKRI - BBSRC,17/10/2022,Training Awards - Postgraduates,FG - Accounts & Business Planning,University of York,99816604,6495.56,Training Awards - Postgraduates
BEIS,UKRI - BBSRC,17/10/2022,Training Awards - Postgraduates,FG - Accounts & Business Planning,Kingston University,99816605,6995.56,Training Awards - Postgraduates
BEIS,UKRI - BBSRC,17/10/2022,Training Awards - Postgraduates,FG - Accounts & Business Planning,University College London,99816606,7354.25,Training Awards - Postgraduates
BEIS,UKRI - BBSRC,17/10/2022,Training Awards - Postgraduates,FG - Accounts & Business Planning,University College London,99816606,7354.19,Training Awards - Postgraduates
BEIS,UKRI - BBSRC,17/10/2022,Training Awards - Postgraduates,FG - Accounts & Business Planning,University College London,99816606,7354.19,Training Awards - Postgraduates
BEIS,UKRI - BBSRC,17/10/2022,Training Awards - Postgraduates,FG - Accounts & Business Planning,Imperial College London,99816607,6995.56,Training Awards - Postgraduates
BEIS,UKRI - BBSRC,17/10/2022,Training Awards - Postgraduates,FG - Accounts & Business Planning,Imperial College London,99816608,6995.56,Training Awards - Postgraduates
BEIS,UKRI - BBSRC,17/10/2022,Training Awards - Postgraduates,FG - Accounts & Business Planning,Imperial College London,99816608,6995.56,Training Awards - Postgraduates
BEIS,UKRI - BBSRC,17/10/2022,Training Awards - Postgraduates,FG - Accounts & Business Planning,Imperial College London,99816608,6995.58,Training Awards - Postgraduates
BEIS,UKRI - BBSRC,17/10/2022,Training Awards - Postgraduates,FG - Accounts & Business Planning,Imperial College London,99816608,6995.56,Training Awards - Postgraduates
BEIS,UKRI - BBSRC,17/10/2022,Training Awards - Postgraduates,FG - Accounts & Business Planning,Imperial College London,99816608,6995.56,Training Awards - Postgraduates
BEIS,UKRI - BBSRC,17/10/2022,Training Awards - Postgraduates,FG - Accounts & Business Planning,University of Nottingham,99816609,6495.56,Training Awards - Postgraduates
BEIS,UKRI - BBSRC,17/10/2022,Training Awards - Postgraduates,FG - Accounts & Business Planning,University of Liverpool,99816610,6495.56,Training Awards - Postgraduates
BEIS,UKRI - BBSRC,17/10/2022,Training Awards - Postgraduates,FG - Accounts & Business Planning,University of Leeds,99816611,6495.56,Training Awards - Postgraduates
BEIS,UKRI - BBSRC,17/10/2022,Training Awards - Postgraduates,FG - Accounts & Business Planning,University of Glasgow,99816612,6495.56,Training Awards - Postgraduates
BEIS,UKRI - BBSRC,17/10/2022,Training Awards - Postgraduates,FG - Accounts & Business Planning,Babraham Institute,99816613,6495.56,Training Awards - Postgraduates
BEIS,UKRI - BBSRC,17/10/2022,Training Awards - Postgraduates,FG - Accounts & Business Planning,University of Sheffield,99816614,6495.56,Training Awards - Postgraduates
BEIS,UKRI - BBSRC,17/10/2022,Training Awards - Postgraduates,FG - Accounts & Business Planning,University of Nottingham,99816615,6495.56,Training Awards - Postgraduates
BEIS,UKRI - BBSRC,17/10/2022,Training Awards - Postgraduates,FG - Accounts & Business Planning,University of Birmingham GRANT,99816616,6495.56,Training Awards - Postgraduates
BEIS,UKRI - BBSRC,17/10/2022,Training Awards - Postgraduates,FG - Accounts & Business Planning,University College London,99816617,6995.56,Training Awards - Postgraduates
BEIS,UKRI - BBSRC,17/10/2022,Training Awards - Postgraduates,FG - Accounts & Business Planning,University College London,99816618,6995.56,Training Awards - Postgraduates
BEIS,UKRI - BBSRC,17/10/2022,Training Awards - Postgraduates,FG - Accounts & Business Planning,University College London,99816619,6995.56,Training Awards - Postgraduates
BEIS,UKRI - BBSRC,17/10/2022,Training Awards - Postgraduates,FG - Accounts & Business Planning,Institute of Cancer Research,99816620,6995.56,Training Awards - Postgraduates
BEIS,UKRI - BBSRC,17/10/2022,Training Awards - Postgraduates,FG - Accounts & Business Planning,Brunel University London,99816621,6995.56,Training Awards - Postgraduates
BEIS,UKRI - BBSRC,17/10/2022,Training Awards - Postgraduates,FG - Accounts & Business Planning,Queen Mary University of London,99816622,6995.56,Training Awards - Postgraduates
BEIS,UKRI - BBSRC,17/10/2022,Training Awards - Postgraduates,FG - Accounts & Business Planning,Imperial College London,99816623,6995.56,Training Awards - Postgraduates
BEIS,UKRI - BBSRC,17/10/2022,Training Awards - Postgraduates,FG - Accounts & Business Planning,Imperial College London,99816624,6995.56,Training Awards - Postgraduates
BEIS,UKRI - BBSRC,17/10/2022,Training Awards - Postgraduates,FG - Accounts & Business Planning,University of Sheffield,99816625,6495.56,Training Awards - Postgraduates
BEIS,UKRI - BBSRC,17/10/2022,Training Awards - Postgraduates,FG - Accounts & Business Planning,The University of Manchester,99816626,6495.56,Training Awards - Postgraduates
BEIS,UKRI - BBSRC,17/10/2022,Training Awards - Postgraduates,FG - Accounts & Business Planning,University of Cambridge,99816627,6495.56,Training Awards - Postgraduates
BEIS,UKRI - BBSRC,17/10/2022,Training Awards - Postgraduates,FG - Accounts & Business Planning,Babraham Institute,99816628,6495.56,Training Awards - Postgraduates
BEIS,UKRI - BBSRC,17/10/2022,Training Awards - Postgraduates,FG - Accounts & Business Planning,University of Newcastle Upon Tyne,99816629,6376.63,Training Awards - Postgraduates
BEIS,UKRI - BBSRC,17/10/2022,Training Awards - Postgraduates,FG - Accounts & Business Planning,University of Aberdeen,99816630,6376.63,Training Awards - Postgraduates
BEIS,UKRI - BBSRC,17/10/2022,Training Awards - Postgraduates,FG - Accounts & Business Planning,University of Cambridge,99816631,6376.62,Training Awards - Postgraduates
BEIS,UKRI - BBSRC,17/10/2022,Training Awards - Postgraduates,FG - Accounts & Business Planning,The University of Manchester,99816632,6376.62,Training Awards - Postgraduates
BEIS,UKRI - BBSRC,17/10/2022,Training Awards - Postgraduates,FG - Accounts & Business Planning,Queen Mary University of London,99816633,6876.62,Training Awards - Postgraduates
BEIS,UKRI - BBSRC,17/10/2022,Training Awards - Postgraduates,FG - Accounts & Business Planning,King's College London,99816634,6876.62,Training Awards - Postgraduates
BEIS,UKRI - BBSRC,17/10/2022,Training Awards - Postgraduates,FG - Accounts & Business Planning,University of Southampton GRANT,99816635,6376.62,Training Awards - Postgraduates
BEIS,UKRI - BBSRC,17/10/2022,Training Awards - Postgraduates,FG - Accounts & Business Planning,University of Southampton GRANT,99816636,6376.62,Training Awards - Postgraduates
BEIS,UKRI - BBSRC,17/10/2022,Training Awards - Postgraduates,FG - Accounts & Business Planning,National Institute For Agricultural Botany (NIAB),99816637,6376.62,Training Awards - Postgraduates
BEIS,UKRI - BBSRC,17/10/2022,Training Awards - Postgraduates,FG - Accounts & Business Planning,National Institute For Agricultural Botany (NIAB),99816638,6376.62,Training Awards - Postgraduates
BEIS,UKRI - BBSRC,17/10/2022,Training Awards - Postgraduates,FG - Accounts & Business Planning,National Institute For Agricultural Botany (NIAB),99816639,6376.62,Training Awards - Postgraduates
BEIS,UKRI - BBSRC,17/10/2022,Training Awards - Postgraduates,FG - Accounts & Business Planning,National Institute For Agricultural Botany (NIAB),99816640,6376.62,Training Awards - Postgraduates
BEIS,UKRI - BBSRC,17/10/2022,Training Awards - Postgraduates,FG - Accounts & Business Planning,National Institute For Agricultural Botany (NIAB),99816641,6376.62,Training Awards - Postgraduates
BEIS,UKRI - BBSRC,17/10/2022,Training Awards - Postgraduates,FG - Accounts & Business Planning,National Institute For Agricultural Botany (NIAB),99816642,6376.62,Training Awards - Postgraduates
BEIS,UKRI - BBSRC,17/10/2022,Training Awards - Postgraduates,FG - Accounts & Business Planning,University of Reading,99816643,6376.62,Training Awards - Postgraduates
BEIS,UKRI - BBSRC,17/10/2022,Training Awards - Postgraduates,FG - Accounts & Business Planning,University of Reading,99816644,6376.62,Training Awards - Postgraduates
BEIS,UKRI - BBSRC,17/10/2022,Training Awards - Postgraduates,FG - Accounts & Business Planning,University of Reading,99816645,6376.62,Training Awards - Postgraduates
BEIS,UKRI - BBSRC,17/10/2022,Training Awards - Postgraduates,FG - Accounts & Business Planning,Lancaster University,99816646,6376.62,Training Awards - Postgraduates
BEIS,UKRI - BBSRC,17/10/2022,Training Awards - Postgraduates,FG - Accounts & Business Planning,Lancaster University,99816647,6376.62,Training Awards - Postgraduates
BEIS,UKRI - BBSRC,17/10/2022,Training Awards - Postgraduates,FG - Accounts & Business Planning,Lancaster University,99816648,6376.62,Training Awards - Postgraduates
BEIS,UKRI - BBSRC,17/10/2022,Training Awards - Postgraduates,FG - Accounts & Business Planning,University of Oxford,99816649,6376.62,Training Awards - Postgraduates
BEIS,UKRI - BBSRC,17/10/2022,Training Awards - Postgraduates,FG - Accounts & Business Planning,University of Warwick,99816650,6376.62,Training Awards - Postgraduates
BEIS,UKRI - BBSRC,17/10/2022,Training Awards - Postgraduates,FG - Accounts & Business Planning,Queen Mary University of London,99816651,6876.62,Training Awards - Postgraduates
BEIS,UKRI - BBSRC,17/10/2022,Training Awards - Postgraduates,FG - Accounts & Business Planning,King's College London,99816652,6876.62,Training Awards - Postgraduates
BEIS,UKRI - BBSRC,17/10/2022,Training Awards - Postgraduates,FG - Accounts & Business Planning,King's College London,99816653,5063.70,Training Awards - Postgraduates
BEIS,UKRI - BBSRC,17/10/2022,Training Awards - Postgraduates,FG - Accounts & Business Planning,King's College London,99816654,6876.62,Training Awards - Postgraduates
BEIS,UKRI - BBSRC,17/10/2022,Training Awards - Postgraduates,FG - Accounts & Business Planning,Imperial College London,99816655,6876.62,Training Awards - Postgraduates
BEIS,UKRI - BBSRC,17/10/2022,Training Awards - Postgraduates,FG - Accounts & Business Planning,Imperial College London,99816656,6876.62,Training Awards - Postgraduates
BEIS,UKRI - BBSRC,17/10/2022,Training Awards - Postgraduates,FG - Accounts & Business Planning,University College London,99816657,6876.62,Training Awards - Postgraduates
BEIS,UKRI - BBSRC,17/10/2022,Training Awards - Postgraduates,FG - Accounts & Business Planning,University College London,99816658,6876.62,Training Awards - Postgraduates
BEIS,UKRI - BBSRC,17/10/2022,Training Awards - Postgraduates,FG - Accounts & Business Planning,Imperial College London,99816659,6876.62,Training Awards - Postgraduates
BEIS,UKRI - BBSRC,17/10/2022,Training Awards - Postgraduates,FG - Accounts & Business Planning,University of Reading,99816660,2584.00,Training Awards - Postgraduates
BEIS,UKRI - BBSRC,17/10/2022,Training Awards - Postgraduates,FG - Accounts & Business Planning,University of Sheffield,99816661,6376.62,Training Awards - Postgraduates
BEIS,UKRI - BBSRC,17/10/2022,Training Awards - Postgraduates,FG - Accounts & Business Planning,University of Nottingham,99816662,6376.62,Training Awards - Postgraduates
BEIS,UKRI - BBSRC,17/10/2022,Training Awards - Postgraduates,FG - Accounts & Business Planning,University of Glasgow,99816663,6376.62,Training Awards - Postgraduates
BEIS,UKRI - BBSRC,17/10/2022,Training Awards - Postgraduates,FG - Accounts & Business Planning,University of Leeds,99816664,6376.62,Training Awards - Postgraduates
BEIS,UKRI - BBSRC,17/10/2022,Training Awards - Postgraduates,FG - Accounts & Business Planning,University of Cambridge,99816665,6376.62,Training Awards - Postgraduates
BEIS,UKRI - BBSRC,17/10/2022,Training Awards - Postgraduates,FG - Accounts & Business Planning,University of Cambridge,99816666,6376.62,Training Awards - Postgraduates
BEIS,UKRI - BBSRC,17/10/2022,Training Awards - Postgraduates,FG - Accounts & Business Planning,University of Cambridge,99816667,6376.62,Training Awards - Postgraduates
BEIS,UKRI - BBSRC,17/10/2022,Training Awards - Postgraduates,FG - Accounts & Business Planning,University of Cambridge,99816668,6376.62,Training Awards - Postgraduates
BEIS,UKRI - BBSRC,17/10/2022,Training Awards - Postgraduates,FG - Accounts & Business Planning,University of St Andrews,99816669,6376.62,Training Awards - Postgraduates
BEIS,UKRI - BBSRC,17/10/2022,Training Awards - Postgraduates,FG - Accounts & Business Planning,The University of Manchester,99816670,6376.62,Training Awards - Postgraduates
BEIS,UKRI - BBSRC,17/10/2022,Training Awards - Postgraduates,FG - Accounts & Business Planning,University of Exeter,99816671,6376.62,Training Awards - Postgraduates
BEIS,UKRI - BBSRC,17/10/2022,Training Awards - Postgraduates,FG - Accounts & Business Planning,University of Exeter,99816672,6376.62,Training Awards - Postgraduates
BEIS,UKRI - BBSRC,17/10/2022,Training Awards - Postgraduates,FG - Accounts & Business Planning,Keele University,99816673,6376.62,Training Awards - Postgraduates
BEIS,UKRI - BBSRC,17/10/2022,Training Awards - Postgraduates,FG - Accounts & Business Planning,University of Edinburgh,99816674,6376.62,Training Awards - Postgraduates
BEIS,UKRI - BBSRC,17/10/2022,Training Awards - Postgraduates,FG - Accounts & Business Planning,Wellcome Trust Sanger Institute,99816675,6376.62,Training Awards - Postgraduates
BEIS,UKRI - BBSRC,17/10/2022,Training Awards - Postgraduates,FG - Accounts & Business Planning,University of Glasgow,99816676,6376.62,Training Awards - Postgraduates
BEIS,UKRI - BBSRC,17/10/2022,Training Awards - Postgraduates,FG - Accounts & Business Planning,University of Sheffield,99816677,6376.62,Training Awards - Postgraduates
BEIS,UKRI - BBSRC,17/10/2022,Training Awards - Postgraduates,FG - Accounts & Business Planning,University of Oxford,99816678,6376.62,Training Awards - Postgraduates
BEIS,UKRI - BBSRC,17/10/2022,Training Awards - Postgraduates,FG - Accounts & Business Planning,University of Birmingham GRANT,99816679,6376.62,Training Awards - Postgraduates
BEIS,UKRI - BBSRC,17/10/2022,Training Awards - Postgraduates,FG - Accounts & Business Planning,The University of Manchester,99816680,6376.62,Training Awards - Postgraduates
BEIS,UKRI - BBSRC,17/10/2022,Training Awards - Postgraduates,FG - Accounts & Business Planning,University of Exeter,99816681,6376.62,Training Awards - Postgraduates
BEIS,UKRI - BBSRC,17/10/2022,Training Awards - Postgraduates,FG - Accounts & Business Planning,University of Exeter,99816682,5668.11,Training Awards - Postgraduates
BEIS,UKRI - BBSRC,17/10/2022,Training Awards - Postgraduates,FG - Accounts & Business Planning,University of Cambridge,99816683,6376.62,Training Awards - Postgraduates
BEIS,UKRI - BBSRC,17/10/2022,Training Awards - Postgraduates,FG - Accounts & Business Planning,University of Cambridge,99816684,6376.62,Training Awards - Postgraduates
BEIS,UKRI - BBSRC,17/10/2022,Training Awards - Postgraduates,FG - Accounts & Business Planning,Babraham Institute,99816685,6376.62,Training Awards - Postgraduates
BEIS,UKRI - BBSRC,17/10/2022,Training Awards - Postgraduates,FG - Accounts & Business Planning,University of Nottingham,99816686,6376.62,Training Awards - Postgraduates
BEIS,UKRI - BBSRC,17/10/2022,Training Awards - Postgraduates,FG - Accounts & Business Planning,University of Huddersfield,99816687,6376.62,Training Awards - Postgraduates
BEIS,UKRI - BBSRC,17/10/2022,Training Awards - Postgraduates,FG - Accounts & Business Planning,University of Leeds,99816688,6376.62,Training Awards - Postgraduates
BEIS,UKRI - BBSRC,17/10/2022,Training Awards - Postgraduates,FG - Accounts & Business Planning,University of Glasgow,99816689,6376.62,Training Awards - Postgraduates
BEIS,UKRI - BBSRC,17/10/2022,Training Awards - Postgraduates,FG - Accounts & Business Planning,University of Edinburgh,99816690,6376.62,Training Awards - Postgraduates
BEIS,UKRI - BBSRC,17/10/2022,Training Awards - Postgraduates,FG - Accounts & Business Planning,University of Strathclyde,99816691,6376.62,Training Awards - Postgraduates
BEIS,UKRI - BBSRC,17/10/2022,Training Awards - Postgraduates,FG - Accounts & Business Planning,University of Sheffield,99816692,5539.85,Training Awards - Postgraduates
BEIS,UKRI - BBSRC,17/10/2022,Training Awards - Postgraduates,FG - Accounts & Business Planning,University of Strathclyde,99816693,6376.62,Training Awards - Postgraduates
BEIS,UKRI - BBSRC,17/10/2022,Training Awards - Postgraduates,FG - Accounts & Business Planning,University of Edinburgh,99816694,6376.62,Training Awards - Postgraduates
BEIS,UKRI - BBSRC,17/10/2022,Training Awards - Postgraduates,FG - Accounts & Business Planning,University of Aberdeen,99816695,6376.62,Training Awards - Postgraduates
BEIS,UKRI - BBSRC,17/10/2022,Training Awards - Postgraduates,FG - Accounts & Business Planning,University of York,99816696,6376.62,Training Awards - Postgraduates
BEIS,UKRI - BBSRC,17/10/2022,Training Awards - Postgraduates,FG - Accounts & Business Planning,University of Edinburgh,99816697,6376.62,Training Awards - Postgraduates
BEIS,UKRI - BBSRC,17/10/2022,Training Awards - Postgraduates,FG - Accounts & Business Planning,Heriot Watt University,99816698,6376.62,Training Awards - Postgraduates
BEIS,UKRI - BBSRC,17/10/2022,Training Awards - Postgraduates,FG - Accounts & Business Planning,University of Edinburgh,99816699,6376.62,Training Awards - Postgraduates
BEIS,UKRI - BBSRC,17/10/2022,Training Awards - Postgraduates,FG - Accounts & Business Planning,University of Greenwich,99816700,182104.00,Training Awards - Postgraduates
BEIS,UKRI - BBSRC,17/10/2022,Training Awards - Postgraduates,FG - Accounts & Business Planning,The University of Manchester,99816701,6267.44,Training Awards - Postgraduates
BEIS,UKRI - BBSRC,17/10/2022,Training Awards - Postgraduates,FG - Accounts & Business Planning,The University of Manchester,99816702,6267.44,Training Awards - Postgraduates
BEIS,UKRI - BBSRC,17/10/2022,Training Awards - Postgraduates,FG - Accounts & Business Planning,The University of Manchester,99816703,6267.44,Training Awards - Postgraduates
BEIS,UKRI - BBSRC,17/10/2022,Training Awards - Postgraduates,FG - Accounts & Business Planning,University of Nottingham,99816704,6267.44,Training Awards - Postgraduates
BEIS,UKRI - BBSRC,17/10/2022,Training Awards - Postgraduates,FG - Accounts & Business Planning,University of Warwick,99816705,6267.44,Training Awards - Postgraduates
BEIS,UKRI - BBSRC,17/10/2022,Training Awards - Postgraduates,FG - Accounts & Business Planning,University of Nottingham,99816706,6267.44,Training Awards - Postgraduates
BEIS,UKRI - BBSRC,17/10/2022,Training Awards - Postgraduates,FG - Accounts & Business Planning,University of Durham,99816707,6267.44,Training Awards - Postgraduates
BEIS,UKRI - BBSRC,17/10/2022,Training Awards - Postgraduates,FG - Accounts & Business Planning,University of Cambridge,99816708,6267.44,Training Awards - Postgraduates
BEIS,UKRI - BBSRC,17/10/2022,Training Awards - Postgraduates,FG - Accounts & Business Planning,National Institute For Agricultural Botany (NIAB),99816709,6267.44,Training Awards - Postgraduates
BEIS,UKRI - BBSRC,17/10/2022,Training Awards - Postgraduates,FG - Accounts & Business Planning,National Institute For Agricultural Botany (NIAB),99816710,6267.44,Training Awards - Postgraduates
BEIS,UKRI - BBSRC,17/10/2022,Training Awards - Postgraduates,FG - Accounts & Business Planning,University of Exeter,99816711,5013.95,Training Awards - Postgraduates
BEIS,UKRI - BBSRC,17/10/2022,Training Awards - Postgraduates,FG - Accounts & Business Planning,University of Reading,99816712,6267.44,Training Awards - Postgraduates
BEIS,UKRI - BBSRC,17/10/2022,Training Awards - Postgraduates,FG - Accounts & Business Planning,National Institute For Agricultural Botany (NIAB),99816713,6267.44,Training Awards - Postgraduates
BEIS,UKRI - BBSRC,17/10/2022,Training Awards - Postgraduates,FG - Accounts & Business Planning,National Institute For Agricultural Botany (NIAB),99816714,6267.44,Training Awards - Postgraduates
BEIS,UKRI - BBSRC,17/10/2022,Training Awards - Postgraduates,FG - Accounts & Business Planning,National Institute For Agricultural Botany (NIAB),99816715,6267.44,Training Awards - Postgraduates
BEIS,UKRI - BBSRC,17/10/2022,Training Awards - Postgraduates,FG - Accounts & Business Planning,Quadram Institute Bioscience,99816716,6267.44,Training Awards - Postgraduates
BEIS,UKRI - BBSRC,17/10/2022,Training Awards - Postgraduates,FG - Accounts & Business Planning,University College London,99816717,6344.49,Training Awards - Postgraduates
BEIS,UKRI - BBSRC,17/10/2022,Training Awards - Postgraduates,FG - Accounts & Business Planning,Lancaster University,99816718,6267.44,Training Awards - Postgraduates
BEIS,UKRI - BBSRC,17/10/2022,Training Awards - Postgraduates,FG - Accounts & Business Planning,University of Nottingham,99816719,4874.66,Training Awards - Postgraduates
BEIS,UKRI - BBSRC,17/10/2022,Training Awards - Postgraduates,FG - Accounts & Business Planning,University of Liverpool,99816720,6267.44,Training Awards - Postgraduates
BEIS,UKRI - BBSRC,17/10/2022,Training Awards - Postgraduates,FG - Accounts & Business Planning,University of Strathclyde,99816721,6267.44,Training Awards - Postgraduates
BEIS,UKRI - BBSRC,17/10/2022,Training Awards - Postgraduates,FG - Accounts & Business Planning,"Royal Holloway, University of London",99816722,6767.44,Training Awards - Postgraduates
BEIS,UKRI - BBSRC,17/10/2022,Training Awards - Postgraduates,FG - Accounts & Business Planning,"Royal Holloway, University of London",99816722,2416.92,Training Awards - Postgraduates
BEIS,UKRI - BBSRC,17/10/2022,Training Awards - Postgraduates,FG - Accounts & Business Planning,Lancaster University,99816723,6267.44,Training Awards - Postgraduates
BEIS,UKRI - BBSRC,17/10/2022,Training Awards - Postgraduates,FG - Accounts & Business Planning,University of Reading,99816724,6267.44,Training Awards - Postgraduates
BEIS,UKRI - BBSRC,17/10/2022,Training Awards - Postgraduates,FG - Accounts & Business Planning,Lancaster University,99816725,6267.44,Training Awards - Postgraduates
BEIS,UKRI - BBSRC,17/10/2022,Training Awards - Postgraduates,FG - Accounts & Business Planning,Lancaster University,99816726,6267.44,Training Awards - Postgraduates
BEIS,UKRI - BBSRC,17/10/2022,Training Awards - Postgraduates,FG - Accounts & Business Planning,Lancaster University,99816727,6267.44,Training Awards - Postgraduates
BEIS,UKRI - BBSRC,17/10/2022,Training Awards - Postgraduates,FG - Accounts & Business Planning,University of Liverpool,99816728,6267.44,Training Awards - Postgraduates
BEIS,UKRI - BBSRC,17/10/2022,Training Awards - Postgraduates,FG - Accounts & Business Planning,Queen Mary University of London,99816729,6767.44,Training Awards - Postgraduates
BEIS,UKRI - BBSRC,17/10/2022,Training Awards - Postgraduates,FG - Accounts & Business Planning,King's College London,99816730,6767.44,Training Awards - Postgraduates
BEIS,UKRI - BBSRC,17/10/2022,Training Awards - Postgraduates,FG - Accounts & Business Planning,University of Birmingham GRANT,99816731,6267.44,Training Awards - Postgraduates
BEIS,UKRI - BBSRC,17/10/2022,Training Awards - Postgraduates,FG - Accounts & Business Planning,University of Strathclyde,99816732,6267.44,Training Awards - Postgraduates
BEIS,UKRI - BBSRC,17/10/2022,Training Awards - Postgraduates,FG - Accounts & Business Planning,University of Strathclyde,99816733,6267.44,Training Awards - Postgraduates
BEIS,UKRI - BBSRC,17/10/2022,Training Awards - Postgraduates,FG - Accounts & Business Planning,University of York,99816734,6267.44,Training Awards - Postgraduates
BEIS,UKRI - BBSRC,17/10/2022,Training Awards - Postgraduates,FG - Accounts & Business Planning,University of Newcastle Upon Tyne,99816735,6267.44,Training Awards - Postgraduates
BEIS,UKRI - BBSRC,17/10/2022,Training Awards - Postgraduates,FG - Accounts & Business Planning,University of Edinburgh,99816736,6267.44,Training Awards - Postgraduates
BEIS,UKRI - BBSRC,17/10/2022,Training Awards - Postgraduates,FG - Accounts & Business Planning,Lancaster University,99816737,6267.44,Training Awards - Postgraduates
BEIS,UKRI - BBSRC,17/10/2022,Training Awards - Postgraduates,FG - Accounts & Business Planning,University of Newcastle Upon Tyne,99816738,6267.44,Training Awards - Postgraduates
BEIS,UKRI - BBSRC,17/10/2022,Training Awards - Postgraduates,FG - Accounts & Business Planning,The University of Manchester,99816739,6267.44,Training Awards - Postgraduates
BEIS,UKRI - BBSRC,17/10/2022,Training Awards - Postgraduates,FG - Accounts & Business Planning,The Scottish Association for Marine Science (SAMS Group),99816740,6267.44,Training Awards - Postgraduates
BEIS,UKRI - BBSRC,17/10/2022,Training Awards - Postgraduates,FG - Accounts & Business Planning,University of Edinburgh,99816741,6267.44,Training Awards - Postgraduates
BEIS,UKRI - BBSRC,17/10/2022,Training Awards - Postgraduates,FG - Accounts & Business Planning,University of Edinburgh,99816742,6267.44,Training Awards - Postgraduates
BEIS,UKRI - BBSRC,17/10/2022,Training Awards - Postgraduates,FG - Accounts & Business Planning,The University of Manchester,99816743,6267.44,Training Awards - Postgraduates
BEIS,UKRI - BBSRC,17/10/2022,Training Awards - Postgraduates,FG - Accounts & Business Planning,University of Sheffield,99816744,6267.44,Training Awards - Postgraduates
BEIS,UKRI - BBSRC,17/10/2022,Training Awards - Postgraduates,FG - Accounts & Business Planning,University of Sheffield,99816745,6267.44,Training Awards - Postgraduates
BEIS,UKRI - BBSRC,17/10/2022,Training Awards - Postgraduates,FG - Accounts & Business Planning,University of Cambridge,99816746,6267.44,Training Awards - Postgraduates
BEIS,UKRI - BBSRC,17/10/2022,Training Awards - Postgraduates,FG - Accounts & Business Planning,King's College London,99816747,6767.44,Training Awards - Postgraduates
BEIS,UKRI - BBSRC,17/10/2022,Training Awards - Postgraduates,FG - Accounts & Business Planning,Sheffield Hallam University,99816748,6267.44,Training Awards - Postgraduates
BEIS,UKRI - BBSRC,17/10/2022,Training Awards - Postgraduates,FG - Accounts & Business Planning,University of Leeds,99816749,6267.44,Training Awards - Postgraduates
BEIS,UKRI - BBSRC,17/10/2022,Training Awards - Postgraduates,FG - Accounts & Business Planning,Babraham Institute,99816750,6267.44,Training Awards - Postgraduates
BEIS,UKRI - BBSRC,17/10/2022,Training Awards - Postgraduates,FG - Accounts & Business Planning,The University of Manchester,99816751,4821.11,Training Awards - Postgraduates
BEIS,UKRI - BBSRC,17/10/2022,Training Awards - Postgraduates,FG - Accounts & Business Planning,The University of Manchester,99816752,5571.05,Training Awards - Postgraduates
BEIS,UKRI - BBSRC,17/10/2022,Training Awards - Postgraduates,FG - Accounts & Business Planning,The University of Manchester,99816753,6267.44,Training Awards - Postgraduates
BEIS,UKRI - BBSRC,17/10/2022,Training Awards - Postgraduates,FG - Accounts & Business Planning,University of Nottingham,99816754,6267.44,Training Awards - Postgraduates
BEIS,UKRI - BBSRC,17/10/2022,Training Awards - Postgraduates,FG - Accounts & Business Planning,University of Nottingham,99816755,5222.86,Training Awards - Postgraduates
BEIS,UKRI - BBSRC,17/10/2022,Training Awards - Postgraduates,FG - Accounts & Business Planning,University of Nottingham,99816756,6267.44,Training Awards - Postgraduates
BEIS,UKRI - BBSRC,17/10/2022,Training Awards - Postgraduates,FG - Accounts & Business Planning,Cardiff University,99816757,6267.44,Training Awards - Postgraduates
BEIS,UKRI - BBSRC,17/10/2022,Training Awards - Postgraduates,FG - Accounts & Business Planning,Queen's University Belfast GRANT,99816758,6267.44,Training Awards - Postgraduates
BEIS,UKRI - BBSRC,17/10/2022,Training Awards - Postgraduates,FG - Accounts & Business Planning,University of Cambridge,99816759,6267.44,Training Awards - Postgraduates
BEIS,UKRI - BBSRC,17/10/2022,Training Awards - Postgraduates,FG - Accounts & Business Planning,University of Glasgow,99816760,6267.44,Training Awards - Postgraduates
BEIS,UKRI - BBSRC,17/10/2022,Training Awards - Postgraduates,FG - Accounts & Business Planning,University of Glasgow,99816761,6267.44,Training Awards - Postgraduates
BEIS,UKRI - BBSRC,17/10/2022,Training Awards - Postgraduates,FG - Accounts & Business Planning,University of Glasgow,99816762,6267.44,Training Awards - Postgraduates
BEIS,UKRI - BBSRC,17/10/2022,Training Awards - Postgraduates,FG - Accounts & Business Planning,University College London,99816763,6767.44,Training Awards - Postgraduates
BEIS,UKRI - BBSRC,17/10/2022,Training Awards - Postgraduates,FG - Accounts & Business Planning,University College London,99816764,6767.44,Training Awards - Postgraduates
BEIS,UKRI - BBSRC,17/10/2022,Training Awards - Postgraduates,FG - Accounts & Business Planning,European Bioinformatics Institute,99816765,6267.44,Training Awards - Postgraduates
BEIS,UKRI - BBSRC,17/10/2022,Training Awards - Postgraduates,FG - Accounts & Business Planning,Rothamsted Research Ltd,99816766,6267.44,Training Awards - Postgraduates
BEIS,UKRI - BBSRC,17/10/2022,Training Awards - Postgraduates,FG - Accounts & Business Planning,University of Newcastle Upon Tyne,99816767,6267.44,Training Awards - Postgraduates
BEIS,UKRI - BBSRC,17/10/2022,Training Awards - Postgraduates,FG - Accounts & Business Planning,University of Newcastle Upon Tyne,99816768,6267.44,Training Awards - Postgraduates
BEIS,UKRI - BBSRC,17/10/2022,Training Awards - Postgraduates,FG - Accounts & Business Planning,University of Newcastle Upon Tyne,99816769,6267.44,Training Awards - Postgraduates
BEIS,UKRI - BBSRC,17/10/2022,Training Awards - Postgraduates,FG - Accounts & Business Planning,University of Bristol GRANT,99816770,6267.44,Training Awards - Postgraduates
BEIS,UKRI - BBSRC,17/10/2022,Training Awards - Postgraduates,FG - Accounts & Business Planning,University of Exeter,99816771,3133.72,Training Awards - Postgraduates
BEIS,UKRI - BBSRC,17/10/2022,Training Awards - Postgraduates,FG - Accounts & Business Planning,University of Birmingham GRANT,99816772,6267.44,Training Awards - Postgraduates
BEIS,UKRI - BBSRC,17/10/2022,Training Awards - Postgraduates,FG - Accounts & Business Planning,University of Birmingham GRANT,99816773,6267.44,Training Awards - Postgraduates
BEIS,UKRI - BBSRC,17/10/2022,Training Awards - Postgraduates,FG - Accounts & Business Planning,University of York,99816774,6267.44,Training Awards - Postgraduates
BEIS,UKRI - BBSRC,17/10/2022,Training Awards - Postgraduates,FG - Accounts & Business Planning,University of York,99816775,6267.44,Training Awards - Postgraduates
BEIS,UKRI - BBSRC,17/10/2022,Training Awards - Postgraduates,FG - Accounts & Business Planning,Queen Mary University of London,99816776,6767.44,Training Awards - Postgraduates
BEIS,UKRI - BBSRC,17/10/2022,Training Awards - Postgraduates,FG - Accounts & Business Planning,University of Edinburgh,99816777,6267.44,Training Awards - Postgraduates
BEIS,UKRI - BBSRC,17/10/2022,Training Awards - Postgraduates,FG - Accounts & Business Planning,University of Reading,99816778,6267.44,Training Awards - Postgraduates
BEIS,UKRI - BBSRC,17/10/2022,Training Awards - Postgraduates,FG - Accounts & Business Planning,University of Leeds,99816779,6267.44,Training Awards - Postgraduates
BEIS,UKRI - BBSRC,17/10/2022,Training Awards - Postgraduates,FG - Accounts & Business Planning,University of Durham,99816780,6267.44,Training Awards - Postgraduates
BEIS,UKRI - BBSRC,17/10/2022,Training Awards - Postgraduates,FG - Accounts & Business Planning,Keele University,99816781,6267.44,Training Awards - Postgraduates
BEIS,UKRI - BBSRC,17/10/2022,Training Awards - Postgraduates,FG - Accounts & Business Planning,King's College London,99816782,6767.44,Training Awards - Postgraduates
BEIS,UKRI - BBSRC,17/10/2022,Training Awards - Postgraduates,FG - Accounts & Business Planning,King's College London,99816783,6767.44,Training Awards - Postgraduates
BEIS,UKRI - BBSRC,17/10/2022,Training Awards - Postgraduates,FG - Accounts & Business Planning,Imperial College London,99816784,7222.95,Training Awards - Postgraduates
BEIS,UKRI - BBSRC,17/10/2022,Training Awards - Postgraduates,FG - Accounts & Business Planning,Imperial College London,99816785,6767.44,Training Awards - Postgraduates
BEIS,UKRI - BBSRC,17/10/2022,Training Awards - Postgraduates,FG - Accounts & Business Planning,Imperial College London,99816786,6767.44,Training Awards - Postgraduates
BEIS,UKRI - BBSRC,17/10/2022,Training Awards - Postgraduates,FG - Accounts & Business Planning,University of Liverpool,99816787,6267.44,Training Awards - Postgraduates
BEIS,UKRI - BBSRC,17/10/2022,Training Awards - Postgraduates,FG - Accounts & Business Planning,University of Cambridge,99816788,6267.44,Training Awards - Postgraduates
BEIS,UKRI - BBSRC,17/10/2022,Training Awards - Postgraduates,FG - Accounts & Business Planning,University of Sheffield,99816789,5571.05,Training Awards - Postgraduates
BEIS,UKRI - BBSRC,17/10/2022,Training Awards - Postgraduates,FG - Accounts & Business Planning,University of Southampton GRANT,99816790,6267.44,Training Awards - Postgraduates
BEIS,UKRI - BBSRC,17/10/2022,Training Awards - Postgraduates,FG - Accounts & Business Planning,University of Southampton GRANT,99816791,6267.44,Training Awards - Postgraduates
BEIS,UKRI - BBSRC,17/10/2022,Training Awards - Postgraduates,FG - Accounts & Business Planning,University of Hertfordshire,99816792,6267.44,Training Awards - Postgraduates
BEIS,UKRI - BBSRC,17/10/2022,Training Awards - Postgraduates,FG - Accounts & Business Planning,University of Dundee,99816793,6267.44,Training Awards - Postgraduates
BEIS,UKRI - BBSRC,17/10/2022,Training Awards - Postgraduates,FG - Accounts & Business Planning,University of Oxford,99816794,519112.00,Training Awards - Postgraduates
BEIS,UKRI - BBSRC,17/10/2022,Training Awards - Postgraduates,FG - Accounts & Business Planning,University of Reading,99816795,441178.00,Training Awards - Postgraduates
BEIS,UKRI - BBSRC,17/10/2022,Training Awards - Postgraduates,FG - Accounts & Business Planning,University of Southampton GRANT,99816796,408841.50,Training Awards - Postgraduates
